Workbook

Sheet Alapadatok
B2: Terület (ez lesz a műszakriport fejléce): | C2: MG 160/180
D3: Éjszaka | G3: Délelőtt | J3: Délután
C4: Koordinátori terület neve | D4: Elvárt db MPS alapján | E4: MPS alapján szükséges létszám | F4: Elvárt db/ operátor | G4: Elvárt db MPS alapján | H4: MPS alapján szükséges létszám | I4: Elvárt db/ operátor | J4: Elvárt db MPS alapján | K4: MPS alapján szükséges létszám | L4: Elvárt db/ operátor
B5: 1. Cella neve (ez jelenik meg a műszakriportban) | C5: Motor sor | D5: 52 | E5: 7 | F5: 7.43 | G5: 54 | H5: 8 | I5: 6.75 | J5: 54 | K5: 8 | L5: 6.75
B6: 2. Cella neve (ez jelenik meg a műszakriportban) | C6: 2p Sztátor sor | D6: 50 | E6: 6 | F6: 8.33 | G6: 52 | H6: 6 | I6: 8.67 | J6: 45 | K6: 5 | L6: 9
B7: 3. Cella neve (ez jelenik meg a műszakriportban) | C7: 4p sztátor sor | D7: 0 | E7: 0 | F7: 0 | G7: 20 | H7: 4 | I7: 5 | J7: 0 | K7: 0 | L7: 0
B8: 4. Cella neve (ez jelenik meg a műszakriportban) | C8: DE cella | D8: 52 | E8: 2 | F8: 26 | G8: 52 | H8: 2 | I8: 26 | J8: 52 | K8: 2 | L8: 26
B9: 5. Cella neve (ez jelenik meg a műszakriportban) | C9: NDE cella | D9: 95 | E9: 1 | F9: 95 | G9: 95 | H9: 1 | I9: 95 | J9: 95 | K9: 1 | L9: 95
B10: 6. Cella neve (ez jelenik meg a műszakriportban) | C10: T+R | D10: 54 | E10: 3 | F10: 18 | G10: 54 | H10: 3 | I10: 18 | J10: 54 | K10: 3 | L10: 18
B11: 7. Cella neve (ez jelenik meg a műszakriportban) | C11: Cella7 | D11: 0 | E11: 0 | F11: =IF(E11=0,0,D11/E11) -> 0 | G11: 0 | H11: 0 | I11: =IF(H11=0,0,G11/H11) -> 0 | J11: 0 | K11: 0 | L11: =IF(K11=0,0,J11/K11) -> 0
B12: 8. Cella neve (ez jelenik meg a műszakriportban) | C12: Cella8 | D12: 0 | E12: 0 | F12: 0 | G12: 0 | H12: 0 | I12: 0 | J12: 0 | K12: 0 | L12: 0
B13: 9. Cella neve (ez jelenik meg a műszakriportban) | C13: Cella9 | D13: 0 | E13: 0 | F13: 0 | G13: 0 | H13: 0 | I13: 0 | J13: 0 | K13: 0 | L13: 0
B14: 10. Cella neve (ez jelenik meg a műszakriportban) | C14: Cella10 | D14: 0 | E14: 0 | F14: 0 | G14: 0 | H14: 0 | I14: 0 | J14: 0 | K14: 0 | L14: 0
B15: 11. Cella neve (ez jelenik meg a műszakriportban) | C15: Cella11 | D15: 0 | E15: 0 | F15: 0 | G15: 0 | H15: 0 | I15: 0 | J15: 0 | K15: 0 | L15: 0
B16: 12. Cella neve (ez jelenik meg a műszakriportban) | C16: Cella12 | D16: 0 | E16: 0 | F16: 0 | G16: 0 | H16: 0 | I16: 0 | J16: 0 | K16: 0 | L16: 0
B17: 13. Cella neve (ez jelenik meg a műszakriportban) | C17: Cella13 | D17: 0 | E17: 0 | F17: 0 | G17: 0 | H17: 0 | I17: 0 | J17: 0 | K17: 0 | L17: 0
B18: 14. Cella neve (ez jelenik meg a műszakriportban) | C18: Cella14 | D18: 0 | E18: 0 | F18: 0 | G18: 0 | H18: 0 | I18: 0 | J18: 0 | K18: 0 | L18: 0
B19: 15. Cella neve (ez jelenik meg a műszakriportban) | C19: Cella15 | D19: 0 | E19: 0 | F19: =IF(E19=0,0,D19/E19) -> 0 | G19: 0 | H19: 0 | I19: 0 | J19: 0 | K19: 0 | L19: =IF(K19=0,0,J19/K19) -> 0
C21: FIGYELEM: Töltsd fel a vastag kereten belüli (színes cellák) adatait!

Sheet állásidő_kódok
B1: Állásidő hibakódok / Downtime codes
B3: Probléma kódja | C3: Kategória | D3: Probléma leírása | F3: Módosítás:
B4: 5 | C4: Emberi erőforrás hiány I. | D4: E-I. - 5%-os emberi erőforrás hiány | F4: Régit hagyd meg!
B5: 10 | C5: Emberi erőforrás hiány I. | D5: E-I. - 10%-os emberi erőforrás hiány | F5: Új kódot új sorba vigyél fel!
B6: 1 | C6: Emberi erőforrás hiány I. | D6: E-I. - Emberi erőforrás hiány
F8: Kategória javaslatok:
G9: 1-től 99-ig | H9: Emberi erőforrás hiány I.
H10: Pl.: | I10: 5%-os hiány | J10: 5-ös kód | K10: (22 perc)
I11: 10%-os hiány | J11: 10-es kód | K11: (44,5 perc)
G13: 100-tól 199-ig | H13: Emberi erőforrás hiány II.
H14: Pl.: | I14: Betanulás-betanítás | J14: 105-ös kód | K14: (xxx perc)
I15: Gépbeállítóra várakozás | J15: 110-es kód | K15: (yyy perc)
B17: 100 | C17: Emberi erőforrás hiány II. | D17: E-II. - Betanulás-betanítás | G17: 200-tól 249-ig | H17: Anyagellátási problémák
B18: 102 | C18: Emberi erőforrás hiány II. | D18: E-II. - Lapkaszoba | H18: Pl.: | I18: Anyaghiány SM-ból | J18: 205-ös kód | K18: (xxx perc)
B19: 105 | C19: Emberi erőforrás hiány II. | D19: E-II. - Gépbeállítóra várakozás | I19: Csomagolóanyag hiány | J19: 210-es kód | K19: (yyy perc)
G21: 250-től 299-ig | H21: Anyaghibák miatti kiesések
H22: Pl.: | I22: Raktári alapanyag hiba | J22: 255-ös kód | K22: (xxx perc)
I23: Komponens anyag hiba | J23: 260-as kód | K23: (yyy perc)
G25: 300-tól 399-ig | H25: Géphibák
H26: Pl.: | I26: Gyártósor meghibásodása | J26: 305-ös kód | K26: (xxx perc)
I27: Teszter meghibásodása | J27: 310-es kód | K27: (yyy perc)
G29: 400-tól 499-ig | H29: Javítás miatti operátori kieső idők
H30: Pl.: | I30: Szivattyú keveset emel | J30: 405-ös kód | K30: (xxx perc)
I31: Szivattyú sokat emel | J31: 410-es kód | K31: (yyy perc)
G33: 500-tól 599-ig | H33: Támogató funkciók miatti kieső idők
B34: 200 | C34: Anyagellátási problémák | D34: AE - Anyaghiány Szupermarketból | H34: Pl.: | I34: Mérnöki döntésre várakozás | J34: 505-ös kód | K34: (xxx perc)
B35: 201 | C35: Anyagellátási problémák | D35: AE-Alapanyaghiány (GW) | I35: BOM hiba | J35: 510-es kód | K35: (yyy perc)
B36: 205 | C36: Anyagellátási problémák | D36: AE - Csomagolóanyag hiány
G37: 900-tól 999-ig | H37: Tervezett kieső idők
H38: Pl.: | I38: Tervezett karbantartás | J38: 905-ös kód | K38: (xxx perc)
I39: Gyár gyűlés | J39: 910-es kód | K39: (yyy perc)
B53: 250 | C53: Anyaghibák miatti kiesések | D53: AH - Raktári alapanyag hiba
B54: 255 | C54: Anyaghibák miatti kiesések | D54: AH - Komponens anyag hiba
B75: 300 | C75: Géphiba miatti kieső idő | D75: G - Gyártósor meghibásodása
B76: 301 | C76: Géphiba miatti kieső idő | D76: G - Címke nyomtató hiba
B77: 302 | C77: Géphiba miatti kieső idő | D77: G - Gravírozó hiba
B78: 303 | C78: Géphiba miatti kieső idő | D78: G - T+R Okuma hiba
B79: 304 | C79: Géphiba miatti kieső idő | D79: G - Gagemax hiba/várakozás
B80: 305 | C80: Géphiba miatti kieső idő | D80: G - Teszter meghibásodása
B81: 306 | C81: Géphiba miatti kieső idő | D81: G - NDE Géphiba
B82: 307 | C82: Géphiba miatti kieső idő | D82: G - E-tower hiba
B83: 308 | C83: Géphiba miatti kieső idő | D83: G - T+R robothiba
B84: 309 | C84: Géphiba miatti kieső idő | D84: G - Helios hiba
B85: 310 | C85: Géphiba miatti kieső idő | D85: G - Átállás
B86: 311 | C86: Géphiba miatti kieső idő | D86: G - DE cella robothiba
B87: 312 | C87: Géphiba miatti kieső idő | D87: G - DE cella OP20-doosan hiba
B88: 313 | C88: Géphiba miatti kieső idő | D88: G - Aliance lakkozó hiba
B89: 314 | C89: Géphiba miatti kieső idő | D89: G - Gép kiöntött
B90: 315 | C90: Géphiba miatti kieső idő | D90: G - Karbantartói javítás
B91: 316 | C91: Géphiba miatti kieső idő | D91: G - Szakszerviz
B92: 317 | C92: Géphiba miatti kieső idő | D92: G - BWS hiba
B93: 318 | C93: Géphiba miatti kieső idő | D93: G - T+R Doosan hiba
B94: 319 | C94: Géphiba miatti kieső idő | D94: G - Sztátor saruzó hiba
B95: 320 | C95: Géphiba miatti kieső idő | D95: G - MG /MGE teszter hiba
B96: 321 | C96: Géphiba miatti kieső idő | D96: G - Indukciós kemence hiba
B97: 322 | C97: Géphiba miatti kieső idő | D97: G - T+R OP30 hiba
B98: 323 | C98: Géphiba miatti kieső idő | D98: G - DE cella OP10-Mori hiba
B99: 324 | C99: Géphiba miatti kieső idő | D99: G - T+R OP50 hiba
B100: 325 | C100: Géphiba miatti kieső idő | D100: G - Fúrótörés
B101: 326 | C101: Géphiba miatti kieső idő | D101: G - Program módosítás
B102: 327 | C102: Géphiba miatti kieső idő | D102: G - Borogató hiba
B103: 328 | C103: Géphiba miatti kieső idő | D103: G - MQ szerver hiba
B104: 329 | C104: Géphiba miatti kieső idő | D104: G - MG címke nyomtató hiba
B105: 330 | C105: Géphiba miatti kieső idő | D105: G - MGE címke nyomtató hiba
B106: 400 | C106: Javítás miatti operátori kieső idők | D106: J - Szivattyú keveset emel
B107: 405 | C107: Javítás miatti operátori kieső idők | D107: J - Szivattyú sokat emel
B108: 406 | C108: Javítás miatti operátori kieső idők | D108: J - minőségügyi probléma
B121: 600 | C121: Támogató funkciók miatti kieső idők | D121: TF - Mérnöki döntésre várakozás
B122: 605 | C122: Támogató funkciók miatti kieső idők | D122: TF - BOM hiba
B128: 900 | C128: Tervezett kieső idők | D128: T - Tervezett karbantartás
B129: 901 | C129: Tervezett kieső idők | D129: T - PDD
B130: 902 | C130: Tervezett kieső idők | D130: T - Munkavédelmi oktatás
B131: 903 | C131: Tervezett kieső idők | D131: T - dtv projekt
B132: 904 | C132: Tervezett kieső idők | D132: T - EMS
B133: 905 | C133: Tervezett kieső idők | D133: T - Gyári gyűlés
B134: 906 | C134: Tervezett kieső idők | D134: T - Tervezett takarítás
C135: Tervezett kieső idők

Sheet Állásidő_kimutatás
H1: Írd be! | Q1: Írd be! | U1: Írd be! | AA1: Válaszd ki! | AD1: Válaszd ki! | AG1: Válaszd ki!
F2: Terület: | G2: MG 160/180 | P2: Dátum: | Q2: 2018-11-01 | T2: -tól | U2: 2018-11-23 | X2: -ig | Z2: Műszak: | AB2: Napszak: | AD2: Délután | AF2: Cella: | AG2: Motor sor
A3: Összes Állásidők területenként
A4: Éjszaka | B4: =SUM(Állásidők_rögzítése!$C$3:$C$1700) -> 1150
A5: Délelőtt | B5: =SUM(Állásidők_rögzítése!$E$3:$E$1700) -> 1620
A6: Délután | B6: =SUM(Állásidők_rögzítése!$G$3:$G$1700) -> 1530
A7: Összesen | B7: =SUM(B4:B6) -> 4300
A9: Sum of Időtartam (Perc)
A10: Állásidő megnevezése | B10: Perc
A11: =IFERROR(VLOOKUP(Állásidők_rögzítése!AE2,állásidő_kódok!$B:$D,3,0),"") -> E-II. - Betanulás-betanítás | B11: =IF(Állásidők_rögzítése!$AF2=0,"",Állásidők_rögzítése!$AF2) -> 380
A12: =IFERROR(VLOOKUP(Állásidők_rögzítése!AE3,állásidő_kódok!$B:$D,3,0),"") -> G - DE cella robothiba | B12: =IF(Állásidők_rögzítése!$AF3=0,"",Állásidők_rögzítése!$AF3) -> 60
A13: =IFERROR(VLOOKUP(Állásidők_rögzítése!AE4,állásidő_kódok!$B:$D,3,0),"") -> E-I. - Emberi erőforrás hiány | B13: =IF(Állásidők_rögzítése!$AF4=0,"",Állásidők_rögzítése!$AF4) -> 930
A14: =IFERROR(VLOOKUP(Állásidők_rögzítése!AE5,állásidő_kódok!$B:$D,3,0),"") -> AE - Anyaghiány Szupermarketból | B14: =IF(Állásidők_rögzítése!$AF5=0,"",Állásidők_rögzítése!$AF5) -> 330
A15: =IFERROR(VLOOKUP(Állásidők_rögzítése!AE6,állásidő_kódok!$B:$D,3,0),"") -> AE - Csomagolóanyag hiány | B15: =IF(Állásidők_rögzítése!$AF6=0,"",Állásidők_rögzítése!$AF6) -> 400
A16: =IFERROR(VLOOKUP(Állásidők_rögzítése!AE7,állásidő_kódok!$B:$D,3,0),"") ->  | B16: =IF(Állásidők_rögzítése!$AF7=0,"",Állásidők_rögzítése!$AF7) -> 
A17: =IFERROR(VLOOKUP(Állásidők_rögzítése!AE8,állásidő_kódok!$B:$D,3,0),"") -> E-I. - 5%-os emberi erőforrás hiány | B17: =IF(Állásidők_rögzítése!$AF8=0,"",Állásidők_rögzítése!$AF8) -> 400
A18: =IFERROR(VLOOKUP(Állásidők_rögzítése!AE9,állásidő_kódok!$B:$D,3,0),"") -> G - Gyártósor meghibásodása | B18: =IF(Állásidők_rögzítése!$AF9=0,"",Állásidők_rögzítése!$AF9) -> 200
A19: =IFERROR(VLOOKUP(Állásidők_rögzítése!AE10,állásidő_kódok!$B:$D,3,0),"") -> J - Szivattyú keveset emel | B19: =IF(Állásidők_rögzítése!$AF10=0,"",Állásidők_rögzítése!$AF10) -> 480
A20: =IFERROR(VLOOKUP(Állásidők_rögzítése!AE11,állásidő_kódok!$B:$D,3,0),"") -> AE-Alapanyaghiány (GW) | B20: =IF(Állásidők_rögzítése!$AF11=0,"",Állásidők_rögzítése!$AF11) -> 700
A21: =IFERROR(VLOOKUP(Állásidők_rögzítése!AE12,állásidő_kódok!$B:$D,3,0),"") -> G - Szakszerviz | B21: =IF(Állásidők_rögzítése!$AF12=0,"",Állásidők_rögzítése!$AF12) -> 240
A22: =IFERROR(VLOOKUP(Állásidők_rögzítése!AE13,állásidő_kódok!$B:$D,3,0),"") -> G - Karbantartói javítás | B22: =IF(Állásidők_rögzítése!$AF13=0,"",Állásidők_rögzítése!$AF13) -> 150
A23: =IFERROR(VLOOKUP(Állásidők_rögzítése!AE14,állásidő_kódok!$B:$D,3,0),"") -> G - Átállás | B23: =IF(Állásidők_rögzítése!$AF14=0,"",Állásidők_rögzítése!$AF14) -> 30
A24: =IFERROR(VLOOKUP(Állásidők_rögzítése!AE15,állásidő_kódok!$B:$D,3,0),"") ->  | B24: =IF(Állásidők_rögzítése!$AF15=0,"",Állásidők_rögzítése!$AF15) -> 
A25: =IFERROR(VLOOKUP(Állásidők_rögzítése!AE16,állásidő_kódok!$B:$D,3,0),"") ->  | B25: =IF(Állásidők_rögzítése!$AF16=0,"",Állásidők_rögzítése!$AF16) -> 
A26: =IFERROR(VLOOKUP(Állásidők_rögzítése!AE17,állásidő_kódok!$B:$D,3,0),"") ->  | B26: =IF(Állásidők_rögzítése!$AF17=0,"",Állásidők_rögzítése!$AF17) -> 
A27: =IFERROR(VLOOKUP(Állásidők_rögzítése!AE18,állásidő_kódok!$B:$D,3,0),"") ->  | B27: =IF(Állásidők_rögzítése!$AF18=0,"",Állásidők_rögzítése!$AF18) -> 
A28: =IFERROR(VLOOKUP(Állásidők_rögzítése!AE19,állásidő_kódok!$B:$D,3,0),"") ->  | B28: =IF(Állásidők_rögzítése!$AF19=0,"",Állásidők_rögzítése!$AF19) -> 
A29: =IFERROR(VLOOKUP(Állásidők_rögzítése!AE20,állásidő_kódok!$B:$D,3,0),"") ->  | B29: =IF(Állásidők_rögzítése!$AF20=0,"",Állásidők_rögzítése!$AF20) -> 
A30: =IFERROR(VLOOKUP(Állásidők_rögzítése!AE21,állásidő_kódok!$B:$D,3,0),"") ->  | B30: =IF(Állásidők_rögzítése!$AF21=0,"",Állásidők_rögzítése!$AF21) -> 
A32: Napszak: | B32: Éjszaka
B33: Délelőtt
B34: Délután
B35: Mind
A37: Cella: | B37: =Alapadatok!C5 -> Motor sor
A38: Válaszd ki melyik sor állásidejét jelenítse meg a diagram! | B38: =Alapadatok!C6 -> 2p Sztátor sor | T38: összesen | U38: =Állásidők_rögzítése!AF22 -> 4300 | W38: perc
B39: =Alapadatok!C7 -> 4p sztátor sor
B40: =Alapadatok!C8 -> DE cella
B41: =Alapadatok!C9 -> NDE cella | E41: Segéd gombok (nem kell használni őket)
B42: =Alapadatok!C10 -> T+R

Sheet Állásidők_rögzítése
B1: Éjszakás | D1: Délelőttös | F1: Délutános | AB1: Össz.Kód | AC1: Össz.Perc | AE1: Összegzett állásidők
A2: # | B2: Kod | C2: Perc | D2: Kod | E2: Perc | F2: Kod | G2: Perc | AA2: Ez kell è | AB2: =IFERROR(INDEX($J$20:$J$44,MATCH(0,COUNTIF($U$19:U19,$J$20:$J$44),0)),"") -> 100 | AC2: =SUMIF($J$20:$J$30,AB2,$K$20:$K$44) -> 30 | AE2: =IFERROR(INDEX($AB$2:$AB$61,MATCH(0,COUNTIF($AE$1:AE1,$AB$2:$AB$61),0)),"") -> 100 | AF2: =SUMIF(AB2:AC61,AE2,AC2:AC61) -> 380 | AG2: perc
A3: 1 | B3: 100 | C3: 30 | D3: 100 | E3: 200 | F3: 100 | G3: 30 | AB3: =IFERROR(INDEX($J$20:$J$44,MATCH(0,COUNTIF($U$19:U20,$J$20:$J$44),0)),"") -> 311 | AC3: =SUMIF($J$20:$J$30,AB3,$K$20:$K$44) -> 60 | AE3: =IFERROR(INDEX($AB$2:$AB$61,MATCH(0,COUNTIF($AE$1:AE2,$AB$2:$AB$61),0)),"") -> 311 | AF3: =SUMIF(AB3:AC62,AE3,AC3:AC62) -> 60 | AG3: perc
A4: 2 | D4: 5 | E4: 200 | AB4: =IFERROR(INDEX($J$20:$J$44,MATCH(0,COUNTIF($U$19:U21,$J$20:$J$44),0)),"") -> 1 | AC4: 630 | AE4: =IFERROR(INDEX($AB$2:$AB$61,MATCH(0,COUNTIF($AE$1:AE3,$AB$2:$AB$61),0)),"") -> 1 | AF4: 930 | AG4: perc
A5: 3 | D5: 300 | E5: 200 | AB5: =IFERROR(INDEX($J$20:$J$44,MATCH(0,COUNTIF($U$19:U22,$J$20:$J$44),0)),"") -> 200 | AC5: 30 | AE5: =IFERROR(INDEX($AB$2:$AB$61,MATCH(0,COUNTIF($AE$1:AE4,$AB$2:$AB$61),0)),"") -> 200 | AF5: 330 | AG5: perc
A6: 4 | AB6: =IFERROR(INDEX($J$20:$J$44,MATCH(0,COUNTIF($U$19:U23,$J$20:$J$44),0)),"") -> 205 | AC6: 400 | AE6: =IFERROR(INDEX($AB$2:$AB$61,MATCH(0,COUNTIF($AE$1:AE5,$AB$2:$AB$61),0)),"") -> 205 | AF6: 400 | AG6: perc
A7: 5 | AB7: =IFERROR(INDEX($J$20:$J$44,MATCH(0,COUNTIF($U$19:U24,$J$20:$J$44),0)),"") ->  | AC7: 0 | AE7: =IFERROR(INDEX($AB$2:$AB$61,MATCH(0,COUNTIF($AE$1:AE6,$AB$2:$AB$61),0)),"") ->  | AF7: 0 | AG7: perc
A8: 6 | AB8: =IFERROR(INDEX($J$20:$J$44,MATCH(0,COUNTIF($U$19:U25,$J$20:$J$44),0)),"") ->  | AC8: 0 | AE8: =IFERROR(INDEX($AB$2:$AB$61,MATCH(0,COUNTIF($AE$1:AE7,$AB$2:$AB$61),0)),"") -> 5 | AF8: 400 | AG8: perc
A9: 7 | AB9: =IFERROR(INDEX($J$20:$J$44,MATCH(0,COUNTIF($U$19:U26,$J$20:$J$44),0)),"") ->  | AC9: 0 | AE9: =IFERROR(INDEX($AB$2:$AB$61,MATCH(0,COUNTIF($AE$1:AE8,$AB$2:$AB$61),0)),"") -> 300 | AF9: 200 | AG9: perc
A10: 8 | AB10: =IFERROR(INDEX($J$20:$J$44,MATCH(0,COUNTIF($U$19:U27,$J$20:$J$44),0)),"") ->  | AC10: 0 | AE10: =IFERROR(INDEX($AB$2:$AB$61,MATCH(0,COUNTIF($AE$1:AE9,$AB$2:$AB$61),0)),"") -> 400 | AF10: 480 | AG10: perc
A11: 9 | AB11: =IFERROR(INDEX($J$20:$J$44,MATCH(0,COUNTIF($U$19:U28,$J$20:$J$44),0)),"") ->  | AC11: 0 | AE11: =IFERROR(INDEX($AB$2:$AB$61,MATCH(0,COUNTIF($AE$1:AE10,$AB$2:$AB$61),0)),"") -> 201 | AF11: 700 | AG11: perc
A12: 10 | D12: 400 | E12: 480 | AB12: =IFERROR(INDEX($J$20:$J$44,MATCH(0,COUNTIF($U$19:U29,$J$20:$J$44),0)),"") ->  | AC12: 0 | AE12: =IFERROR(INDEX($AB$2:$AB$61,MATCH(0,COUNTIF($AE$1:AE11,$AB$2:$AB$61),0)),"") -> 316 | AF12: =SUMIF(AB12:AC71,AE12,AC12:AC71) -> 240 | AG12: perc
A13: 1 | F13: 100 | G13: 60 | AB13: =IFERROR(INDEX($J$20:$J$44,MATCH(0,COUNTIF($U$19:U30,$J$20:$J$44),0)),"") ->  | AC13: 0 | AE13: =IFERROR(INDEX($AB$2:$AB$61,MATCH(0,COUNTIF($AE$1:AE12,$AB$2:$AB$61),0)),"") -> 315 | AF13: 150 | AG13: perc
A14: 2 | F14: 315 | G14: 150 | J14: TÖMB FÜGGVÉNY! | L14: Ez marad segéd számítás az oszlopos képletekhez! | U14: TÖMB FÜGGVÉNY! | AB14: =IFERROR(INDEX($J$20:$J$44,MATCH(0,COUNTIF($U$19:U31,$J$20:$J$44),0)),"") ->  | AC14: 0 | AE14: =IFERROR(INDEX($AB$2:$AB$61,MATCH(0,COUNTIF($AE$1:AE13,$AB$2:$AB$61),0)),"") -> 310 | AF14: 30 | AG14: perc
A15: 3 | J15: Kigyűjtött állasidők | AB15: =IFERROR(INDEX($J$20:$J$44,MATCH(0,COUNTIF($U$19:U32,$J$20:$J$44),0)),"") ->  | AC15: 0 | AE15: =IFERROR(INDEX($AB$2:$AB$61,MATCH(0,COUNTIF($AE$1:AE14,$AB$2:$AB$61),0)),"") ->  | AF15: 0 | AG15: perc
A16: 4 | U16: elméletbe ezek nem kellenek. Az oszlopos megoldás kell a grafikonnak! | AB16: =IFERROR(INDEX($J$20:$J$44,MATCH(0,COUNTIF($U$19:U33,$J$20:$J$44),0)),"") ->  | AC16: 0 | AE16: =IFERROR(INDEX($AB$2:$AB$61,MATCH(0,COUNTIF($AE$1:AE15,$AB$2:$AB$61),0)),"") ->  | AF16: 0 | AG16: perc
A17: 5 | AB17: =IFERROR(INDEX($J$20:$J$44,MATCH(0,COUNTIF($U$19:U34,$J$20:$J$44),0)),"") ->  | AC17: 0 | AE17: =IFERROR(INDEX($AB$2:$AB$61,MATCH(0,COUNTIF($AE$1:AE16,$AB$2:$AB$61),0)),"") ->  | AF17: 0 | AG17: perc
A18: 6 | J18: Éjszakás | M18: Délelőttös | P18: Délutános | U18: Összegzett állásidők | AB18: =IFERROR(INDEX($J$20:$J$44,MATCH(0,COUNTIF($U$19:U35,$J$20:$J$44),0)),"") ->  | AC18: 0 | AE18: =IFERROR(INDEX($AB$2:$AB$61,MATCH(0,COUNTIF($AE$1:AE17,$AB$2:$AB$61),0)),"") ->  | AF18: 0 | AG18: perc
A19: 7 | J19: Kód | K19: Perc | M19: Kód | N19: Perc | P19: Kód | Q19: Perc | U19: Rendezve B oszlopra | W19: Rendezve D oszlopra | Y19: Rendezve F oszlopra | AB19: =IFERROR(INDEX($J$20:$J$44,MATCH(0,COUNTIF($U$19:U36,$J$20:$J$44),0)),"") ->  | AC19: 0 | AE19: =IFERROR(INDEX($AB$2:$AB$61,MATCH(0,COUNTIF($AE$1:AE18,$AB$2:$AB$61),0)),"") ->  | AF19: 0 | AG19: perc
A20: 8 | J20: =INDIRECT("B"&SMALL(IF(LEN($B$3:$B$1700)=0,"",ROW($3:$1700)),ROW(B1))) -> 100 | K20: =INDIRECT("C"&SMALL(IF(LEN($C$3:$C$1700)=0,"",ROW($3:$1700)),ROW(C1))) -> 30 | M20: =INDIRECT("D"&SMALL(IF(LEN($D$3:$D$1700)=0,"",ROW($3:$1700)),ROW(D1))) -> 100 | N20: =INDIRECT("e"&SMALL(IF(LEN($E$3:$E$1700)=0,"",ROW($3:$1700)),ROW(E1))) -> 200 | P20: =INDIRECT("f"&SMALL(IF(LEN($F$3:$F$1700)=0,"",ROW($3:$1700)),ROW(F1))) -> 100 | Q20: =INDIRECT("g"&SMALL(IF(LEN($G$3:$G$1700)=0,"",ROW($3:$1700)),ROW(G1))) -> 30 | U20: =IFERROR(INDEX($J$20:$J$44,MATCH(0,COUNTIF($U$19:U19,$J$20:$J$44),0)),"") -> 100 | V20: =SUMIF($J$20:$J$30,U20,$K$20:$K$44) -> 30 | W20: =IFERROR(INDEX($M$20:$M$44,MATCH(0,COUNTIF($W$19:W19,$M$20:$M$44),0)),"") -> 100 | X20: =SUMIF($M$20:$M$37,W20,$N$20:$N$44) -> 200 | Y20: =IFERROR(INDEX($P$20:$P$44,MATCH(0,COUNTIF($Y$19:Y19,$P$20:$P$44),0)),"") -> 100 | Z20: =SUMIF($P$20:$P$37,Y20,$Q$20:$Q$44) -> 150 | AB20: =IFERROR(INDEX($J$20:$J$44,MATCH(0,COUNTIF($U$19:U37,$J$20:$J$44),0)),"") ->  | AC20: 0 | AE20: =IFERROR(INDEX($AB$2:$AB$61,MATCH(0,COUNTIF($AE$1:AE19,$AB$2:$AB$61),0)),"") ->  | AF20: 0 | AG20: perc
A21: 9 | J21: =INDIRECT("B"&SMALL(IF(LEN($B$3:$B$1700)=0,"",ROW($3:$1700)),ROW(B2))) -> 311 | K21: =INDIRECT("C"&SMALL(IF(LEN($C$3:$C$1700)=0,"",ROW($3:$1700)),ROW(C2))) -> 60 | L21: =SUMIF(J21:K30,J21,K21:K30) -> 60 | M21: =INDIRECT("D"&SMALL(IF(LEN($D$3:$D$1700)=0,"",ROW($3:$1700)),ROW(D2))) -> 5 | N21: =INDIRECT("e"&SMALL(IF(LEN($E$3:$E$1700)=0,"",ROW($3:$1700)),ROW(E2))) -> 200 | P21: =INDIRECT("f"&SMALL(IF(LEN($F$3:$F$1700)=0,"",ROW($3:$1700)),ROW(F2))) -> 100 | Q21: =INDIRECT("g"&SMALL(IF(LEN($G$3:$G$1700)=0,"",ROW($3:$1700)),ROW(G2))) -> 60 | U21: =IFERROR(INDEX($J$20:$J$44,MATCH(0,COUNTIF($U$19:U20,$J$20:$J$44),0)),"") -> 311 | V21: =SUMIF($J$20:$J$30,U21,$K$20:$K$44) -> 60 | W21: =IFERROR(INDEX($M$20:$M$44,MATCH(0,COUNTIF($W$19:W20,$M$20:$M$44),0)),"") -> 5 | X21: =SUMIF($M$20:$M$37,W21,$N$20:$N$44) -> 200 | Y21: =IFERROR(INDEX($P$20:$P$44,MATCH(0,COUNTIF($Y$19:Y20,$P$20:$P$44),0)),"") -> 315 | Z21: =SUMIF($P$20:$P$37,Y21,$Q$20:$Q$44) -> 150 | AB21: =IFERROR(INDEX($J$20:$J$44,MATCH(0,COUNTIF($U$19:U38,$J$20:$J$44),0)),"") ->  | AC21: 0 | AE21: =IFERROR(INDEX($AB$2:$AB$61,MATCH(0,COUNTIF($AE$1:AE20,$AB$2:$AB$61),0)),"") ->  | AF21: 0 | AG21: perc
A22: 10 | J22: =INDIRECT("B"&SMALL(IF(LEN($B$3:$B$1700)=0,"",ROW($3:$1700)),ROW(B3))) -> 1 | K22: =INDIRECT("C"&SMALL(IF(LEN($C$3:$C$1700)=0,"",ROW($3:$1700)),ROW(C3))) -> 150 | M22: =INDIRECT("D"&SMALL(IF(LEN($D$3:$D$1700)=0,"",ROW($3:$1700)),ROW(D3))) -> 300 | N22: =INDIRECT("e"&SMALL(IF(LEN($E$3:$E$1700)=0,"",ROW($3:$1700)),ROW(E3))) -> 200 | P22: =INDIRECT("f"&SMALL(IF(LEN($F$3:$F$1700)=0,"",ROW($3:$1700)),ROW(F3))) -> 315 | Q22: =INDIRECT("g"&SMALL(IF(LEN($G$3:$G$1700)=0,"",ROW($3:$1700)),ROW(G3))) -> 150 | U22: =IFERROR(INDEX($J$20:$J$44,MATCH(0,COUNTIF($U$19:U21,$J$20:$J$44),0)),"") -> 1 | V22: 630 | W22: =IFERROR(INDEX($M$20:$M$44,MATCH(0,COUNTIF($W$19:W21,$M$20:$M$44),0)),"") -> 300 | X22: 200 | Y22: =IFERROR(INDEX($P$20:$P$44,MATCH(0,COUNTIF($Y$19:Y21,$P$20:$P$44),0)),"") -> 201 | Z22: 550 | AB22: =IFERROR(INDEX($M$20:$M$44,MATCH(0,COUNTIF($W$19:W19,$M$20:$M$44),0)),"") -> 100 | AC22: =SUMIF($M$20:$M$37,AB22,$N$20:$N$44) -> 200 | AF22: =SUM(AF2:AF21) -> 4300
A23: 1 | J23: =INDIRECT("B"&SMALL(IF(LEN($B$3:$B$1700)=0,"",ROW($3:$1700)),ROW(B4))) -> 200 | K23: =INDIRECT("C"&SMALL(IF(LEN($C$3:$C$1700)=0,"",ROW($3:$1700)),ROW(C4))) -> 30 | M23: =INDIRECT("D"&SMALL(IF(LEN($D$3:$D$1700)=0,"",ROW($3:$1700)),ROW(D4))) -> 400 | N23: =INDIRECT("e"&SMALL(IF(LEN($E$3:$E$1700)=0,"",ROW($3:$1700)),ROW(E4))) -> 480 | P23: =INDIRECT("f"&SMALL(IF(LEN($F$3:$F$1700)=0,"",ROW($3:$1700)),ROW(F4))) -> 201 | Q23: =INDIRECT("g"&SMALL(IF(LEN($G$3:$G$1700)=0,"",ROW($3:$1700)),ROW(G4))) -> 400 | U23: =IFERROR(INDEX($J$20:$J$44,MATCH(0,COUNTIF($U$19:U22,$J$20:$J$44),0)),"") -> 200 | V23: 30 | W23: =IFERROR(INDEX($M$20:$M$44,MATCH(0,COUNTIF($W$19:W22,$M$20:$M$44),0)),"") -> 400 | X23: 480 | Y23: =IFERROR(INDEX($P$20:$P$44,MATCH(0,COUNTIF($Y$19:Y22,$P$20:$P$44),0)),"") -> 316 | Z23: 150 | AB23: =IFERROR(INDEX($M$20:$M$44,MATCH(0,COUNTIF($W$19:W20,$M$20:$M$44),0)),"") -> 5 | AC23: =SUMIF($M$20:$M$37,AB23,$N$20:$N$44) -> 200
A24: 2 | J24: =INDIRECT("B"&SMALL(IF(LEN($B$3:$B$1700)=0,"",ROW($3:$1700)),ROW(B5))) -> 205 | K24: =INDIRECT("C"&SMALL(IF(LEN($C$3:$C$1700)=0,"",ROW($3:$1700)),ROW(C5))) -> 400 | M24: =INDIRECT("D"&SMALL(IF(LEN($D$3:$D$1700)=0,"",ROW($3:$1700)),ROW(D5))) -> 201 | N24: =INDIRECT("e"&SMALL(IF(LEN($E$3:$E$1700)=0,"",ROW($3:$1700)),ROW(E5))) -> 150 | P24: =INDIRECT("f"&SMALL(IF(LEN($F$3:$F$1700)=0,"",ROW($3:$1700)),ROW(F5))) -> 316 | Q24: =INDIRECT("g"&SMALL(IF(LEN($G$3:$G$1700)=0,"",ROW($3:$1700)),ROW(G5))) -> 150 | U24: =IFERROR(INDEX($J$20:$J$44,MATCH(0,COUNTIF($U$19:U23,$J$20:$J$44),0)),"") -> 205 | V24: 400 | W24: =IFERROR(INDEX($M$20:$M$44,MATCH(0,COUNTIF($W$19:W23,$M$20:$M$44),0)),"") -> 201 | X24: 150 | Y24: =IFERROR(INDEX($P$20:$P$44,MATCH(0,COUNTIF($Y$19:Y23,$P$20:$P$44),0)),"") -> 310 | Z24: 30 | AB24: =IFERROR(INDEX($M$20:$M$44,MATCH(0,COUNTIF($W$19:W21,$M$20:$M$44),0)),"") -> 300 | AC24: 200
A25: 3 | J25: =INDIRECT("B"&SMALL(IF(LEN($B$3:$B$1700)=0,"",ROW($3:$1700)),ROW(B6))) -> 1 | K25: =INDIRECT("C"&SMALL(IF(LEN($C$3:$C$1700)=0,"",ROW($3:$1700)),ROW(C6))) -> 480 | M25: =INDIRECT("D"&SMALL(IF(LEN($D$3:$D$1700)=0,"",ROW($3:$1700)),ROW(D6))) -> 316 | N25: =INDIRECT("e"&SMALL(IF(LEN($E$3:$E$1700)=0,"",ROW($3:$1700)),ROW(E6))) -> 90 | P25: =INDIRECT("f"&SMALL(IF(LEN($F$3:$F$1700)=0,"",ROW($3:$1700)),ROW(F6))) -> 310 | Q25: =INDIRECT("g"&SMALL(IF(LEN($G$3:$G$1700)=0,"",ROW($3:$1700)),ROW(G6))) -> 30 | U25: =IFERROR(INDEX($J$20:$J$44,MATCH(0,COUNTIF($U$19:U24,$J$20:$J$44),0)),"") ->  | V25: 0 | W25: =IFERROR(INDEX($M$20:$M$44,MATCH(0,COUNTIF($W$19:W24,$M$20:$M$44),0)),"") -> 316 | X25: 90 | Y25: =IFERROR(INDEX($P$20:$P$44,MATCH(0,COUNTIF($Y$19:Y24,$P$20:$P$44),0)),"") -> 200 | Z25: 100 | AB25: =IFERROR(INDEX($M$20:$M$44,MATCH(0,COUNTIF($W$19:W22,$M$20:$M$44),0)),"") -> 400 | AC25: 480
A26: 4 | J26: =INDIRECT("B"&SMALL(IF(LEN($B$3:$B$1700)=0,"",ROW($3:$1700)),ROW(B7))) ->  | K26: =INDIRECT("C"&SMALL(IF(LEN($C$3:$C$1700)=0,"",ROW($3:$1700)),ROW(C7))) ->  | M26: =INDIRECT("D"&SMALL(IF(LEN($D$3:$D$1700)=0,"",ROW($3:$1700)),ROW(D7))) -> 200 | N26: =INDIRECT("e"&SMALL(IF(LEN($E$3:$E$1700)=0,"",ROW($3:$1700)),ROW(E7))) -> 200 | P26: =INDIRECT("f"&SMALL(IF(LEN($F$3:$F$1700)=0,"",ROW($3:$1700)),ROW(F7))) -> 200 | Q26: =INDIRECT("g"&SMALL(IF(LEN($G$3:$G$1700)=0,"",ROW($3:$1700)),ROW(G7))) -> 100 | U26: =IFERROR(INDEX($J$20:$J$44,MATCH(0,COUNTIF($U$19:U25,$J$20:$J$44),0)),"") ->  | V26: 0 | W26: =IFERROR(INDEX($M$20:$M$44,MATCH(0,COUNTIF($W$19:W25,$M$20:$M$44),0)),"") -> 200 | X26: 200 | Y26: =IFERROR(INDEX($P$20:$P$44,MATCH(0,COUNTIF($Y$19:Y25,$P$20:$P$44),0)),"") -> 5 | Z26: 200 | AB26: =IFERROR(INDEX($M$20:$M$44,MATCH(0,COUNTIF($W$19:W23,$M$20:$M$44),0)),"") -> 201 | AC26: 150
A27: 5 | J27: =INDIRECT("B"&SMALL(IF(LEN($B$3:$B$1700)=0,"",ROW($3:$1700)),ROW(B8))) ->  | K27: =INDIRECT("C"&SMALL(IF(LEN($C$3:$C$1700)=0,"",ROW($3:$1700)),ROW(C8))) ->  | M27: =INDIRECT("D"&SMALL(IF(LEN($D$3:$D$1700)=0,"",ROW($3:$1700)),ROW(D8))) -> 1 | N27: =INDIRECT("e"&SMALL(IF(LEN($E$3:$E$1700)=0,"",ROW($3:$1700)),ROW(E8))) -> 100 | P27: =INDIRECT("f"&SMALL(IF(LEN($F$3:$F$1700)=0,"",ROW($3:$1700)),ROW(F8))) -> 5 | Q27: =INDIRECT("g"&SMALL(IF(LEN($G$3:$G$1700)=0,"",ROW($3:$1700)),ROW(G8))) -> 200 | U27: =IFERROR(INDEX($J$20:$J$44,MATCH(0,COUNTIF($U$19:U26,$J$20:$J$44),0)),"") ->  | V27: 0 | W27: =IFERROR(INDEX($M$20:$M$44,MATCH(0,COUNTIF($W$19:W26,$M$20:$M$44),0)),"") -> 1 | X27: 100 | Y27: =IFERROR(INDEX($P$20:$P$44,MATCH(0,COUNTIF($Y$19:Y26,$P$20:$P$44),0)),"") -> 1 | Z27: 200 | AB27: =IFERROR(INDEX($M$20:$M$44,MATCH(0,COUNTIF($W$19:W24,$M$20:$M$44),0)),"") -> 316 | AC27: 90
A28: 6 | J28: =INDIRECT("B"&SMALL(IF(LEN($B$3:$B$1700)=0,"",ROW($3:$1700)),ROW(B9))) ->  | K28: =INDIRECT("C"&SMALL(IF(LEN($C$3:$C$1700)=0,"",ROW($3:$1700)),ROW(C9))) ->  | M28: =INDIRECT("D"&SMALL(IF(LEN($D$3:$D$1700)=0,"",ROW($3:$1700)),ROW(D9))) ->  | N28: =INDIRECT("e"&SMALL(IF(LEN($E$3:$E$1700)=0,"",ROW($3:$1700)),ROW(E9))) ->  | P28: =INDIRECT("f"&SMALL(IF(LEN($F$3:$F$1700)=0,"",ROW($3:$1700)),ROW(F9))) -> 100 | Q28: =INDIRECT("g"&SMALL(IF(LEN($G$3:$G$1700)=0,"",ROW($3:$1700)),ROW(G9))) -> 60 | U28: =IFERROR(INDEX($J$20:$J$44,MATCH(0,COUNTIF($U$19:U27,$J$20:$J$44),0)),"") ->  | V28: 0 | W28: =IFERROR(INDEX($M$20:$M$44,MATCH(0,COUNTIF($W$19:W27,$M$20:$M$44),0)),"") ->  | X28: 0 | Y28: =IFERROR(INDEX($P$20:$P$44,MATCH(0,COUNTIF($Y$19:Y27,$P$20:$P$44),0)),"") ->  | Z28: 0 | AB28: =IFERROR(INDEX($M$20:$M$44,MATCH(0,COUNTIF($W$19:W25,$M$20:$M$44),0)),"") -> 200 | AC28: 200
A29: 7 | J29: =INDIRECT("B"&SMALL(IF(LEN($B$3:$B$1700)=0,"",ROW($3:$1700)),ROW(B10))) ->  | K29: =INDIRECT("C"&SMALL(IF(LEN($C$3:$C$1700)=0,"",ROW($3:$1700)),ROW(C10))) ->  | M29: =INDIRECT("D"&SMALL(IF(LEN($D$3:$D$1700)=0,"",ROW($3:$1700)),ROW(D10))) ->  | N29: =INDIRECT("e"&SMALL(IF(LEN($E$3:$E$1700)=0,"",ROW($3:$1700)),ROW(E10))) ->  | P29: =INDIRECT("f"&SMALL(IF(LEN($F$3:$F$1700)=0,"",ROW($3:$1700)),ROW(F10))) -> 1 | Q29: =INDIRECT("g"&SMALL(IF(LEN($G$3:$G$1700)=0,"",ROW($3:$1700)),ROW(G10))) -> 200 | U29: =IFERROR(INDEX($J$20:$J$44,MATCH(0,COUNTIF($U$19:U28,$J$20:$J$44),0)),"") ->  | V29: 0 | W29: =IFERROR(INDEX($M$20:$M$44,MATCH(0,COUNTIF($W$19:W28,$M$20:$M$44),0)),"") ->  | X29: 0 | Y29: =IFERROR(INDEX($P$20:$P$44,MATCH(0,COUNTIF($Y$19:Y28,$P$20:$P$44),0)),"") ->  | Z29: 0 | AB29: =IFERROR(INDEX($M$20:$M$44,MATCH(0,COUNTIF($W$19:W26,$M$20:$M$44),0)),"") -> 1 | AC29: 100
A30: 8 | J30: =INDIRECT("B"&SMALL(IF(LEN($B$3:$B$1700)=0,"",ROW($3:$1700)),ROW(B11))) ->  | K30: =INDIRECT("C"&SMALL(IF(LEN($C$3:$C$1700)=0,"",ROW($3:$1700)),ROW(C11))) ->  | M30: =INDIRECT("D"&SMALL(IF(LEN($D$3:$D$1700)=0,"",ROW($3:$1700)),ROW(D11))) ->  | N30: =INDIRECT("e"&SMALL(IF(LEN($E$3:$E$1700)=0,"",ROW($3:$1700)),ROW(E11))) ->  | P30: =INDIRECT("f"&SMALL(IF(LEN($F$3:$F$1700)=0,"",ROW($3:$1700)),ROW(F11))) -> 201 | Q30: =INDIRECT("g"&SMALL(IF(LEN($G$3:$G$1700)=0,"",ROW($3:$1700)),ROW(G11))) -> 150 | U30: =IFERROR(INDEX($J$20:$J$44,MATCH(0,COUNTIF($U$19:U29,$J$20:$J$44),0)),"") ->  | V30: 0 | W30: =IFERROR(INDEX($M$20:$M$44,MATCH(0,COUNTIF($W$19:W29,$M$20:$M$44),0)),"") ->  | X30: 0 | Y30: =IFERROR(INDEX($P$20:$P$44,MATCH(0,COUNTIF($Y$19:Y29,$P$20:$P$44),0)),"") ->  | Z30: 0 | AB30: =IFERROR(INDEX($M$20:$M$44,MATCH(0,COUNTIF($W$19:W27,$M$20:$M$44),0)),"") ->  | AC30: 0
A31: 9 | J31: =INDIRECT("B"&SMALL(IF(LEN($B$3:$B$1700)=0,"",ROW($3:$1700)),ROW(B12))) ->  | K31: =INDIRECT("C"&SMALL(IF(LEN($C$3:$C$1700)=0,"",ROW($3:$1700)),ROW(C12))) ->  | M31: =INDIRECT("D"&SMALL(IF(LEN($D$3:$D$1700)=0,"",ROW($3:$1700)),ROW(D12))) ->  | N31: =INDIRECT("e"&SMALL(IF(LEN($E$3:$E$1700)=0,"",ROW($3:$1700)),ROW(E12))) ->  | P31: =INDIRECT("f"&SMALL(IF(LEN($F$3:$F$1700)=0,"",ROW($3:$1700)),ROW(F12))) ->  | Q31: =INDIRECT("g"&SMALL(IF(LEN($G$3:$G$1700)=0,"",ROW($3:$1700)),ROW(G12))) ->  | U31: =IFERROR(INDEX($J$20:$J$44,MATCH(0,COUNTIF($U$19:U30,$J$20:$J$44),0)),"") ->  | V31: 0 | W31: =IFERROR(INDEX($M$20:$M$44,MATCH(0,COUNTIF($W$19:W30,$M$20:$M$44),0)),"") ->  | X31: 0 | Y31: =IFERROR(INDEX($P$20:$P$44,MATCH(0,COUNTIF($Y$19:Y30,$P$20:$P$44),0)),"") ->  | Z31: 0 | AB31: =IFERROR(INDEX($M$20:$M$44,MATCH(0,COUNTIF($W$19:W28,$M$20:$M$44),0)),"") ->  | AC31: 0
A32: 10 | J32: =INDIRECT("B"&SMALL(IF(LEN($B$3:$B$1700)=0,"",ROW($3:$1700)),ROW(B13))) ->  | K32: =INDIRECT("C"&SMALL(IF(LEN($C$3:$C$1700)=0,"",ROW($3:$1700)),ROW(C13))) ->  | M32: =INDIRECT("D"&SMALL(IF(LEN($D$3:$D$1700)=0,"",ROW($3:$1700)),ROW(D13))) ->  | N32: =INDIRECT("e"&SMALL(IF(LEN($E$3:$E$1700)=0,"",ROW($3:$1700)),ROW(E13))) ->  | P32: =INDIRECT("f"&SMALL(IF(LEN($F$3:$F$1700)=0,"",ROW($3:$1700)),ROW(F13))) ->  | Q32: =INDIRECT("g"&SMALL(IF(LEN($G$3:$G$1700)=0,"",ROW($3:$1700)),ROW(G13))) ->  | U32: =IFERROR(INDEX($J$20:$J$44,MATCH(0,COUNTIF($U$19:U31,$J$20:$J$44),0)),"") ->  | V32: 0 | W32: =IFERROR(INDEX($M$20:$M$44,MATCH(0,COUNTIF($W$19:W31,$M$20:$M$44),0)),"") ->  | X32: 0 | Y32: =IFERROR(INDEX($P$20:$P$44,MATCH(0,COUNTIF($Y$19:Y31,$P$20:$P$44),0)),"") ->  | Z32: 0 | AB32: =IFERROR(INDEX($M$20:$M$44,MATCH(0,COUNTIF($W$19:W29,$M$20:$M$44),0)),"") ->  | AC32: 0
A33: 1 | B33: 311 | C33: 60 | D33: 201 | E33: 150 | F33: 201 | G33: 400 | J33: =INDIRECT("B"&SMALL(IF(LEN($B$3:$B$1700)=0,"",ROW($3:$1700)),ROW(B14))) ->  | K33: =INDIRECT("C"&SMALL(IF(LEN($C$3:$C$1700)=0,"",ROW($3:$1700)),ROW(C14))) ->  | M33: =INDIRECT("D"&SMALL(IF(LEN($D$3:$D$1700)=0,"",ROW($3:$1700)),ROW(D14))) ->  | N33: =INDIRECT("e"&SMALL(IF(LEN($E$3:$E$1700)=0,"",ROW($3:$1700)),ROW(E14))) ->  | P33: =INDIRECT("f"&SMALL(IF(LEN($F$3:$F$1700)=0,"",ROW($3:$1700)),ROW(F14))) ->  | Q33: =INDIRECT("g"&SMALL(IF(LEN($G$3:$G$1700)=0,"",ROW($3:$1700)),ROW(G14))) ->  | U33: =IFERROR(INDEX($J$20:$J$44,MATCH(0,COUNTIF($U$19:U32,$J$20:$J$44),0)),"") ->  | V33: 0 | W33: =IFERROR(INDEX($M$20:$M$44,MATCH(0,COUNTIF($W$19:W32,$M$20:$M$44),0)),"") ->  | X33: 0 | Y33: =IFERROR(INDEX($P$20:$P$44,MATCH(0,COUNTIF($Y$19:Y32,$P$20:$P$44),0)),"") ->  | Z33: 0 | AB33: =IFERROR(INDEX($M$20:$M$44,MATCH(0,COUNTIF($W$19:W30,$M$20:$M$44),0)),"") ->  | AC33: 0
A34: 2 | J34: =INDIRECT("B"&SMALL(IF(LEN($B$3:$B$1700)=0,"",ROW($3:$1700)),ROW(B15))) ->  | K34: =INDIRECT("C"&SMALL(IF(LEN($C$3:$C$1700)=0,"",ROW($3:$1700)),ROW(C15))) ->  | M34: =INDIRECT("D"&SMALL(IF(LEN($D$3:$D$1700)=0,"",ROW($3:$1700)),ROW(D15))) ->  | N34: =INDIRECT("e"&SMALL(IF(LEN($E$3:$E$1700)=0,"",ROW($3:$1700)),ROW(E15))) ->  | P34: =INDIRECT("f"&SMALL(IF(LEN($F$3:$F$1700)=0,"",ROW($3:$1700)),ROW(F15))) ->  | Q34: =INDIRECT("g"&SMALL(IF(LEN($G$3:$G$1700)=0,"",ROW($3:$1700)),ROW(G15))) ->  | U34: =IFERROR(INDEX($J$20:$J$44,MATCH(0,COUNTIF($U$19:U33,$J$20:$J$44),0)),"") ->  | V34: 0 | W34: =IFERROR(INDEX($M$20:$M$44,MATCH(0,COUNTIF($W$19:W33,$M$20:$M$44),0)),"") ->  | X34: 0 | Y34: =IFERROR(INDEX($P$20:$P$44,MATCH(0,COUNTIF($Y$19:Y33,$P$20:$P$44),0)),"") ->  | Z34: 0 | AB34: =IFERROR(INDEX($M$20:$M$44,MATCH(0,COUNTIF($W$19:W31,$M$20:$M$44),0)),"") ->  | AC34: 0
A35: 3 | J35: =INDIRECT("B"&SMALL(IF(LEN($B$3:$B$1700)=0,"",ROW($3:$1700)),ROW(B16))) ->  | K35: =INDIRECT("C"&SMALL(IF(LEN($C$3:$C$1700)=0,"",ROW($3:$1700)),ROW(C16))) ->  | M35: =INDIRECT("D"&SMALL(IF(LEN($D$3:$D$1700)=0,"",ROW($3:$1700)),ROW(D16))) ->  | N35: =INDIRECT("e"&SMALL(IF(LEN($E$3:$E$1700)=0,"",ROW($3:$1700)),ROW(E16))) ->  | P35: =INDIRECT("f"&SMALL(IF(LEN($F$3:$F$1700)=0,"",ROW($3:$1700)),ROW(F16))) ->  | Q35: =INDIRECT("g"&SMALL(IF(LEN($G$3:$G$1700)=0,"",ROW($3:$1700)),ROW(G16))) ->  | U35: =IFERROR(INDEX($J$20:$J$44,MATCH(0,COUNTIF($U$19:U34,$J$20:$J$44),0)),"") ->  | V35: 0 | W35: =IFERROR(INDEX($M$20:$M$44,MATCH(0,COUNTIF($W$19:W34,$M$20:$M$44),0)),"") ->  | X35: 0 | Y35: =IFERROR(INDEX($P$20:$P$44,MATCH(0,COUNTIF($Y$19:Y34,$P$20:$P$44),0)),"") ->  | Z35: 0 | AB35: =IFERROR(INDEX($M$20:$M$44,MATCH(0,COUNTIF($W$19:W32,$M$20:$M$44),0)),"") ->  | AC35: 0
A36: 4 | J36: =INDIRECT("B"&SMALL(IF(LEN($B$3:$B$1700)=0,"",ROW($3:$1700)),ROW(B17))) ->  | K36: =INDIRECT("C"&SMALL(IF(LEN($C$3:$C$1700)=0,"",ROW($3:$1700)),ROW(C17))) ->  | M36: =INDIRECT("D"&SMALL(IF(LEN($D$3:$D$1700)=0,"",ROW($3:$1700)),ROW(D17))) ->  | N36: =INDIRECT("e"&SMALL(IF(LEN($E$3:$E$1700)=0,"",ROW($3:$1700)),ROW(E17))) ->  | P36: =INDIRECT("f"&SMALL(IF(LEN($F$3:$F$1700)=0,"",ROW($3:$1700)),ROW(F17))) ->  | Q36: =INDIRECT("g"&SMALL(IF(LEN($G$3:$G$1700)=0,"",ROW($3:$1700)),ROW(G17))) ->  | U36: =IFERROR(INDEX($J$20:$J$44,MATCH(0,COUNTIF($U$19:U35,$J$20:$J$44),0)),"") ->  | V36: 0 | W36: =IFERROR(INDEX($M$20:$M$44,MATCH(0,COUNTIF($W$19:W35,$M$20:$M$44),0)),"") ->  | X36: 0 | Y36: =IFERROR(INDEX($P$20:$P$44,MATCH(0,COUNTIF($Y$19:Y35,$P$20:$P$44),0)),"") ->  | Z36: 0 | AB36: =IFERROR(INDEX($M$20:$M$44,MATCH(0,COUNTIF($W$19:W33,$M$20:$M$44),0)),"") ->  | AC36: 0
A37: 5 | J37: =INDIRECT("B"&SMALL(IF(LEN($B$3:$B$1700)=0,"",ROW($3:$1700)),ROW(B18))) ->  | K37: =INDIRECT("C"&SMALL(IF(LEN($C$3:$C$1700)=0,"",ROW($3:$1700)),ROW(C18))) ->  | M37: =INDIRECT("D"&SMALL(IF(LEN($D$3:$D$1700)=0,"",ROW($3:$1700)),ROW(D18))) ->  | N37: =INDIRECT("e"&SMALL(IF(LEN($E$3:$E$1700)=0,"",ROW($3:$1700)),ROW(E18))) ->  | P37: =INDIRECT("f"&SMALL(IF(LEN($F$3:$F$1700)=0,"",ROW($3:$1700)),ROW(F18))) ->  | Q37: =INDIRECT("g"&SMALL(IF(LEN($G$3:$G$1700)=0,"",ROW($3:$1700)),ROW(G18))) ->  | U37: =IFERROR(INDEX($J$20:$J$44,MATCH(0,COUNTIF($U$19:U36,$J$20:$J$44),0)),"") ->  | V37: 0 | W37: =IFERROR(INDEX($M$20:$M$44,MATCH(0,COUNTIF($W$19:W36,$M$20:$M$44),0)),"") ->  | X37: 0 | Y37: =IFERROR(INDEX($P$20:$P$44,MATCH(0,COUNTIF($Y$19:Y36,$P$20:$P$44),0)),"") ->  | Z37: 0 | AB37: =IFERROR(INDEX($M$20:$M$44,MATCH(0,COUNTIF($W$19:W34,$M$20:$M$44),0)),"") ->  | AC37: 0
A38: 6 | J38: =INDIRECT("B"&SMALL(IF(LEN($B$3:$B$1700)=0,"",ROW($3:$1700)),ROW(B19))) ->  | K38: =INDIRECT("C"&SMALL(IF(LEN($C$3:$C$1700)=0,"",ROW($3:$1700)),ROW(C19))) ->  | M38: =INDIRECT("D"&SMALL(IF(LEN($D$3:$D$1700)=0,"",ROW($3:$1700)),ROW(D19))) ->  | N38: =INDIRECT("e"&SMALL(IF(LEN($E$3:$E$1700)=0,"",ROW($3:$1700)),ROW(E19))) ->  | P38: =INDIRECT("f"&SMALL(IF(LEN($F$3:$F$1700)=0,"",ROW($3:$1700)),ROW(F19))) ->  | Q38: =INDIRECT("g"&SMALL(IF(LEN($G$3:$G$1700)=0,"",ROW($3:$1700)),ROW(G19))) ->  | U38: =IFERROR(INDEX($J$20:$J$44,MATCH(0,COUNTIF($U$19:U37,$J$20:$J$44),0)),"") ->  | V38: 0 | W38: =IFERROR(INDEX($M$20:$M$44,MATCH(0,COUNTIF($W$19:W37,$M$20:$M$44),0)),"") ->  | X38: 0 | Y38: =IFERROR(INDEX($P$20:$P$44,MATCH(0,COUNTIF($Y$19:Y37,$P$20:$P$44),0)),"") ->  | Z38: 0 | AB38: =IFERROR(INDEX($M$20:$M$44,MATCH(0,COUNTIF($W$19:W35,$M$20:$M$44),0)),"") ->  | AC38: 0
A39: 7 | J39: =INDIRECT("B"&SMALL(IF(LEN($B$3:$B$1700)=0,"",ROW($3:$1700)),ROW(B20))) ->  | K39: =INDIRECT("C"&SMALL(IF(LEN($C$3:$C$1700)=0,"",ROW($3:$1700)),ROW(C20))) ->  | M39: =INDIRECT("D"&SMALL(IF(LEN($D$3:$D$1700)=0,"",ROW($3:$1700)),ROW(D20))) ->  | N39: =INDIRECT("e"&SMALL(IF(LEN($E$3:$E$1700)=0,"",ROW($3:$1700)),ROW(E20))) ->  | P39: =INDIRECT("f"&SMALL(IF(LEN($F$3:$F$1700)=0,"",ROW($3:$1700)),ROW(F20))) ->  | Q39: =INDIRECT("g"&SMALL(IF(LEN($G$3:$G$1700)=0,"",ROW($3:$1700)),ROW(G20))) ->  | U39: =IFERROR(INDEX($J$20:$J$44,MATCH(0,COUNTIF($U$19:U38,$J$20:$J$44),0)),"") ->  | V39: 0 | W39: =IFERROR(INDEX($M$20:$M$44,MATCH(0,COUNTIF($W$19:W38,$M$20:$M$44),0)),"") ->  | X39: 0 | Y39: =IFERROR(INDEX($P$20:$P$44,MATCH(0,COUNTIF($Y$19:Y38,$P$20:$P$44),0)),"") ->  | Z39: 0 | AB39: =IFERROR(INDEX($M$20:$M$44,MATCH(0,COUNTIF($W$19:W36,$M$20:$M$44),0)),"") ->  | AC39: 0
A40: 8 | J40: =INDIRECT("B"&SMALL(IF(LEN($B$3:$B$1700)=0,"",ROW($3:$1700)),ROW(B21))) ->  | K40: =INDIRECT("C"&SMALL(IF(LEN($C$3:$C$1700)=0,"",ROW($3:$1700)),ROW(C21))) ->  | M40: =INDIRECT("D"&SMALL(IF(LEN($D$3:$D$1700)=0,"",ROW($3:$1700)),ROW(D21))) ->  | N40: =INDIRECT("e"&SMALL(IF(LEN($E$3:$E$1700)=0,"",ROW($3:$1700)),ROW(E21))) ->  | P40: =INDIRECT("f"&SMALL(IF(LEN($F$3:$F$1700)=0,"",ROW($3:$1700)),ROW(F21))) ->  | Q40: =INDIRECT("g"&SMALL(IF(LEN($G$3:$G$1700)=0,"",ROW($3:$1700)),ROW(G21))) ->  | AB40: =IFERROR(INDEX($M$20:$M$44,MATCH(0,COUNTIF($W$19:W37,$M$20:$M$44),0)),"") ->  | AC40: 0
A41: 9 | J41: =INDIRECT("B"&SMALL(IF(LEN($B$3:$B$1700)=0,"",ROW($3:$1700)),ROW(B22))) ->  | K41: =INDIRECT("C"&SMALL(IF(LEN($C$3:$C$1700)=0,"",ROW($3:$1700)),ROW(C22))) ->  | M41: =INDIRECT("D"&SMALL(IF(LEN($D$3:$D$1700)=0,"",ROW($3:$1700)),ROW(D22))) ->  | N41: =INDIRECT("e"&SMALL(IF(LEN($E$3:$E$1700)=0,"",ROW($3:$1700)),ROW(E22))) ->  | P41: =INDIRECT("f"&SMALL(IF(LEN($F$3:$F$1700)=0,"",ROW($3:$1700)),ROW(F22))) ->  | Q41: =INDIRECT("g"&SMALL(IF(LEN($G$3:$G$1700)=0,"",ROW($3:$1700)),ROW(G22))) ->  | AB41: =IFERROR(INDEX($M$20:$M$44,MATCH(0,COUNTIF($W$19:W38,$M$20:$M$44),0)),"") ->  | AC41: 0
A42: 10 | J42: =INDIRECT("B"&SMALL(IF(LEN($B$3:$B$1700)=0,"",ROW($3:$1700)),ROW(B23))) ->  | K42: =INDIRECT("C"&SMALL(IF(LEN($C$3:$C$1700)=0,"",ROW($3:$1700)),ROW(C23))) ->  | M42: =INDIRECT("D"&SMALL(IF(LEN($D$3:$D$1700)=0,"",ROW($3:$1700)),ROW(D23))) ->  | N42: =INDIRECT("e"&SMALL(IF(LEN($E$3:$E$1700)=0,"",ROW($3:$1700)),ROW(E23))) ->  | P42: =INDIRECT("f"&SMALL(IF(LEN($F$3:$F$1700)=0,"",ROW($3:$1700)),ROW(F23))) ->  | Q42: =INDIRECT("g"&SMALL(IF(LEN($G$3:$G$1700)=0,"",ROW($3:$1700)),ROW(G23))) ->  | AB42: =IFERROR(INDEX($P$20:$P$44,MATCH(0,COUNTIF($Y$19:Y19,$P$20:$P$44),0)),"") -> 100 | AC42: =SUMIF($P$20:$P$37,AB42,$Q$20:$Q$44) -> 150
A43: 1 | J43: =INDIRECT("B"&SMALL(IF(LEN($B$3:$B$1700)=0,"",ROW($3:$1700)),ROW(B24))) ->  | K43: =INDIRECT("C"&SMALL(IF(LEN($C$3:$C$1700)=0,"",ROW($3:$1700)),ROW(C24))) ->  | M43: =INDIRECT("D"&SMALL(IF(LEN($D$3:$D$1700)=0,"",ROW($3:$1700)),ROW(D24))) ->  | N43: =INDIRECT("e"&SMALL(IF(LEN($E$3:$E$1700)=0,"",ROW($3:$1700)),ROW(E24))) ->  | P43: =INDIRECT("f"&SMALL(IF(LEN($F$3:$F$1700)=0,"",ROW($3:$1700)),ROW(F24))) ->  | Q43: =INDIRECT("g"&SMALL(IF(LEN($G$3:$G$1700)=0,"",ROW($3:$1700)),ROW(G24))) ->  | AB43: =IFERROR(INDEX($P$20:$P$44,MATCH(0,COUNTIF($Y$19:Y20,$P$20:$P$44),0)),"") -> 315 | AC43: =SUMIF($P$20:$P$37,AB43,$Q$20:$Q$44) -> 150
A44: 2 | J44: =INDIRECT("B"&SMALL(IF(LEN($B$3:$B$1700)=0,"",ROW($3:$1700)),ROW(B25))) ->  | K44: =INDIRECT("C"&SMALL(IF(LEN($C$3:$C$1700)=0,"",ROW($3:$1700)),ROW(C25))) ->  | M44: =INDIRECT("D"&SMALL(IF(LEN($D$3:$D$1700)=0,"",ROW($3:$1700)),ROW(D25))) ->  | N44: =INDIRECT("e"&SMALL(IF(LEN($E$3:$E$1700)=0,"",ROW($3:$1700)),ROW(E25))) ->  | P44: =INDIRECT("f"&SMALL(IF(LEN($F$3:$F$1700)=0,"",ROW($3:$1700)),ROW(F25))) ->  | Q44: =INDIRECT("g"&SMALL(IF(LEN($G$3:$G$1700)=0,"",ROW($3:$1700)),ROW(G25))) ->  | AB44: =IFERROR(INDEX($P$20:$P$44,MATCH(0,COUNTIF($Y$19:Y21,$P$20:$P$44),0)),"") -> 201 | AC44: 550
A45: 3 | AB45: =IFERROR(INDEX($P$20:$P$44,MATCH(0,COUNTIF($Y$19:Y22,$P$20:$P$44),0)),"") -> 316 | AC45: 150
A46: 4 | AB46: =IFERROR(INDEX($P$20:$P$44,MATCH(0,COUNTIF($Y$19:Y23,$P$20:$P$44),0)),"") -> 310 | AC46: 30
A47: 5 | AB47: =IFERROR(INDEX($P$20:$P$44,MATCH(0,COUNTIF($Y$19:Y24,$P$20:$P$44),0)),"") -> 200 | AC47: 100
A48: 6 | AB48: =IFERROR(INDEX($P$20:$P$44,MATCH(0,COUNTIF($Y$19:Y25,$P$20:$P$44),0)),"") -> 5 | AC48: 200
A49: 7 | AB49: =IFERROR(INDEX($P$20:$P$44,MATCH(0,COUNTIF($Y$19:Y26,$P$20:$P$44),0)),"") -> 1 | AC49: 200
A50: 8 | AB50: =IFERROR(INDEX($P$20:$P$44,MATCH(0,COUNTIF($Y$19:Y27,$P$20:$P$44),0)),"") ->  | AC50: 0
A51: 9 | AB51: =IFERROR(INDEX($P$20:$P$44,MATCH(0,COUNTIF($Y$19:Y28,$P$20:$P$44),0)),"") ->  | AC51: 0
A52: 10 | AB52: =IFERROR(INDEX($P$20:$P$44,MATCH(0,COUNTIF($Y$19:Y29,$P$20:$P$44),0)),"") ->  | AC52: 0
A53: 1 | B53: 1 | C53: 150 | D53: 316 | E53: 90 | F53: 316 | G53: 150 | AB53: =IFERROR(INDEX($P$20:$P$44,MATCH(0,COUNTIF($Y$19:Y30,$P$20:$P$44),0)),"") ->  | AC53: 0
A54: 2 | F54: 310 | G54: 30 | AB54: =IFERROR(INDEX($P$20:$P$44,MATCH(0,COUNTIF($Y$19:Y31,$P$20:$P$44),0)),"") ->  | AC54: 0
A55: 3 | AB55: =IFERROR(INDEX($P$20:$P$44,MATCH(0,COUNTIF($Y$19:Y32,$P$20:$P$44),0)),"") ->  | AC55: 0
A56: 4 | AB56: =IFERROR(INDEX($P$20:$P$44,MATCH(0,COUNTIF($Y$19:Y33,$P$20:$P$44),0)),"") ->  | AC56: 0
A57: 5 | AB57: =IFERROR(INDEX($P$20:$P$44,MATCH(0,COUNTIF($Y$19:Y34,$P$20:$P$44),0)),"") ->  | AC57: 0
A58: 6 | AB58: =IFERROR(INDEX($P$20:$P$44,MATCH(0,COUNTIF($Y$19:Y35,$P$20:$P$44),0)),"") ->  | AC58: 0
A59: 7 | AB59: =IFERROR(INDEX($P$20:$P$44,MATCH(0,COUNTIF($Y$19:Y36,$P$20:$P$44),0)),"") ->  | AC59: 0
A60: 8 | AB60: =IFERROR(INDEX($P$20:$P$44,MATCH(0,COUNTIF($Y$19:Y37,$P$20:$P$44),0)),"") ->  | AC60: 0
A61: 9 | AB61: =IFERROR(INDEX($P$20:$P$44,MATCH(0,COUNTIF($Y$19:Y38,$P$20:$P$44),0)),"") ->  | AC61: 0
A62: 10
A63: 1 | B63: 200 | C63: 30 | D63: 200 | E63: 200 | F63: 200 | G63: 100
A64: 2
A65: 3
A66: 4
A67: 5
A68: 6
A69: 7
A70: 8
A71: 9
A72: 10 | B72: 205 | C72: 400 | D72: 1 | E72: 100 | F72: 5 | G72: 200
A73: 1 | F73: 100 | G73: 60
A74: 2 | F74: 1 | G74: 200
A75: 3
A76: 4
A77: 5
A78: 6
A79: 7
A80: 8
A81: 9
A82: 10
A83: 1
A84: 2
A85: 3
A86: 4
A87: 5
A88: 6
A89: 7
A90: 8
A91: 9
A92: 10
A93: 1 | F93: 201 | G93: 150
A94: 2
A95: 3
A96: 4
A97: 5
A98: 6
A99: 7
A100: 8
A101: 9
A102: 10
A103: 1 | B103: 1 | C103: 480
A104: 2
A105: 3
A106: 4
A107: 5
A108: 6
A109: 7
A110: 8
A111: 9
A112: 10
A113: 1
A114: 2
A115: 3
A116: 4
A117: 5
A118: 6
A119: 7
A120: 8
A121: 9
A122: 10
A123: 1
A124: 2
A125: 3
A126: 4
A127: 5
A128: 6
A129: 7
A130: 8
A131: 9
A132: 10
A133: 1
A134: 2
A135: 3
A136: 4
A137: 5
A138: 6
A139: 7
A140: 8
A141: 9
A142: 10
A143: 1
A144: 2
A145: 3
A146: 4
A147: 5
A148: 6
A149: 7
A150: 8
A151: 9
A152: 10
A153: 1
A154: 2
A155: 3
A156: 4
A157: 5
A158: 6
A159: 7
A160: 8
A161: 9
A162: 10
A163: 1
A164: 2
A165: 3
A166: 4
A167: 5
A168: 6
A169: 7
A170: 8
A171: 9
A172: 10
A173: 1
A174: 2
A175: 3
A176: 4
A177: 5
A178: 6
A179: 7
A180: 8
A181: 9
A182: 10
A183: 1
A184: 2
A185: 3
A186: 4
A187: 5
A188: 6
A189: 7
A190: 8
A191: 9
A192: 10
A193: 1
A194: 2
A195: 3
A196: 4
A197: 5
A198: 6
A199: 7
A200: 8
... 43 more rows

Sheet wk_45_1
J2: =Alapadatok!C2 -> MG 160/180 | R2: Dátum: | T2: 2018-11-05 | X2: Töltsd ki a kereten belüli fehér mezőket!
B3: Éjszaka1 | G3: Műszak | J3: Délelőtt | O3: Műszak | R3: Délután | W3: Műszak | Z3: Napi összesítő | AQ3: Levél küldéséhez
AQ4: kattins az ikonra!
C5: =B74 -> Motor sor | G5: =B104 -> 2p Sztátor sor | K5: =J74 -> Motor sor | O5: =J104 -> 2p Sztátor sor | S5: =R74 -> Motor sor | W5: =R104 -> 2p Sztátor sor | AA5: =C5 -> Motor sor | AI5: =O5 -> 2p Sztátor sor
C6: Gyártott db | D6: =E75 -> 46 | E6: db | G6: Gyártott db | H6: =E105 -> 50 | I6: db | K6: Gyártott db | L6: =M75 -> 52 | M6: db | O6: Gyártott db | P6: =M105 -> 50 | Q6: db | S6: Gyártott db | T6: =U75 -> 50 | U6: db | W6: Gyártott db | X6: =U105 -> 37 | Y6: db | AB6: Aktuális | AC6: Elvárt | AE6: Éj | AF6: =IF(D8=0,0,D6/D8) -> 6.571428571 | AG6: db/fő | AJ6: Aktuális | AK6: Elvárt | AM6: Éj | AN6: =IF(H8=0,0,H6/H8) -> 6.25 | AO6: db/fő
C7: Elvárt db | D7: =E77 -> 52 | E7: db | G7: Elvárt db | H7: =E107 -> 50 | I7: db | K7: Elvárt db | L7: =M77 -> 54 | M7: db | O7: Elvárt db | P7: =M107 -> 52 | Q7: db | S7: Elvárt db | T7: =U77 -> 54 | U7: db | W7: Elvárt db | X7: =U107 -> 45 | Y7: db | AA7: Darabszám | AB7: =SUM(D6,L6,T6) -> 148 | AC7: =SUM(D7,L7,T7) -> 160 | AD7: db | AE7: De | AF7: =IF(L8=0,0,L6/L8) -> 7.428571429 | AG7: db/fő | AI7: Darabszám | AJ7: =SUM(H6,P6,X6) -> 137 | AK7: =SUM(H7,P7,X7) -> 147 | AL7: db | AM7: De | AN7: =IF(P8=0,0,P6/P8) -> 8.333333333 | AO7: db/fő
C8: Akt. létszám | D8: =E79 -> 7 | E8: fő | G8: Akt. létszám | H8: =E109 -> 8 | I8: fő | K8: Akt. létszám | L8: =M79 -> 7 | M8: fő | O8: Akt. létszám | P8: =M109 -> 6 | Q8: fő | S8: Akt. létszám | T8: =U79 -> 0 | U8: fő | W8: Akt. létszám | X8: =U109 -> 0 | Y8: fő | AA8: Létszám | AB8: =SUM(D8,L8,T8) -> 14 | AC8: =SUM(D9,L9,T9) -> 23 | AD8: fő | AE8: Du | AF8: =IF(T8=0,0,T6/T8) -> 0 | AG8: db/fő | AI8: Létszám | AJ8: =SUM(H8,P8,X8) -> 14 | AK8: =SUM(H9,P9,X9) -> 17 | AL8: fő | AM8: Du | AN8: =IF(X8=0,0,X6/X8) -> 0 | AO8: db/fő
C9: MPS létszám | D9: =E78 -> 7 | E9: fő | G9: MPS létszám | H9: =E108 -> 6 | I9: fő | K9: MPS létszám | L9: =M78 -> 8 | M9: fő | O9: MPS létszám | P9: =M108 -> 6 | Q9: fő | S9: MPS létszám | T9: =U78 -> 8 | U9: fő | W9: MPS létszám | X9: =U108 -> 5 | Y9: fő | AA9: Össz állásidő | AB9: =SUM(D10,L10,T10) -> 1140 | AD9: perc | AE9: Napi | AF9: =IF(AB8=0,0,AB7/AB8) -> 10.57142857 | AG9: db/fő | AI9: Össz állásidő | AJ9: =SUM(H10,P10,X10) -> 210 | AL9: perc | AM9: Napi | AN9: =IF(AJ8=0,0,AJ7/AJ8) -> 9.785714286 | AO9: db/fő
C10: Össz állásidő | D10: =SUM(E93:E102) -> 30 | E10: perc | G10: Össz állásidő | H10: =SUM(E123:E132) -> 0 | I10: perc | K10: Össz állásidő | L10: =SUM(M93:M102) -> 1080 | M10: perc | O10: Össz állásidő | P10: =SUM(M123:M132) -> 0 | Q10: perc | S10: Össz állásidő | T10: =SUM(U93:U102) -> 30 | U10: perc | W10: Össz állásidő | X10: =SUM(U123:U132) -> 210 | Y10: perc | AA10: Backlog sor/db | AB10: =E88+M88+U88 -> 0 | AC10: =E90+M90+U90 -> 0 | AD10: db | AE10: Elvárt | AF10: =IF(AC8=0,0,AC7/AC8) -> 6.956521739 | AG10: db/fő | AI10: Backlog sor/db | AJ10: =E118+M118+U118 -> 0 | AK10: =E120+M120+U120 -> 0 | AL10: db | AM10: Elvárt | AN10: =IF(AK8=0,0,AK7/AK8) -> 8.647058824 | AO10: db/fő
C11: =B134 -> 4p sztátor sor | G11: =B164 -> DE cella | K11: =J134 -> 4p sztátor sor | O11: =J164 -> DE cella | S11: =R134 -> 4p sztátor sor | W11: =R164 -> DE cella | AA11: =C11 -> 4p sztátor sor | AI11: =O11 -> DE cella
C12: Gyártott db | D12: =E135 -> 0 | E12: db | G12: Gyártott db | H12: =E165 -> 42 | I12: db | K12: Gyártott db | L12: =M135 -> 17 | M12: db | O12: Gyártott db | P12: =M165 -> 35 | Q12: db | S12: Gyártott db | T12: =U135 -> 0 | U12: db | W12: Gyártott db | X12: =U165 -> 6 | Y12: db | AB12: Aktuális | AC12: Elvárt | AE12: Éj | AF12: =IF(D14=0,0,D12/D14) -> 0 | AG12: db/fő | AJ12: Aktuális | AK12: Elvárt | AM12: Éj | AN12: =IF(H14=0,0,H12/H14) -> 21 | AO12: db/fő
C13: Elvárt db | D13: =E137 -> 0 | E13: db | G13: Elvárt db | H13: =E167 -> 52 | I13: db | K13: Elvárt db | L13: =M137 -> 20 | M13: db | O13: Elvárt db | P13: =M167 -> 52 | Q13: db | S13: Elvárt db | T13: =U137 -> 0 | U13: db | W13: Elvárt db | X13: =U167 -> 52 | Y13: db | AA13: Darabszám | AB13: =SUM(D12,L12,T12) -> 17 | AC13: =SUM(D13,L13,T13) -> 20 | AD13: db | AE13: De | AF13: =IF(L14=0,0,L12/L14) -> 5.666666667 | AG13: db/fő | AI13: Darabszám | AJ13: =SUM(H12,P12,X12) -> 83 | AK13: =SUM(H13,P13,X13) -> 156 | AL13: db | AM13: De | AN13: =IF(P14=0,0,P12/P14) -> 35 | AO13: db/fő
C14: Akt. létszám | D14: =E139 -> 0 | E14: fő | G14: Akt. létszám | H14: =E169 -> 2 | I14: fő | K14: Akt. létszám | L14: =M139 -> 3 | M14: fő | O14: Akt. létszám | P14: =M169 -> 1 | Q14: fő | S14: Akt. létszám | T14: =U139 -> 0 | U14: fő | W14: Akt. létszám | X14: =U169 -> 0 | Y14: fő | AA14: Létszám | AB14: =SUM(D14,L14,T14) -> 3 | AC14: =SUM(D15,L15,T15) -> 4 | AD14: fő | AE14: Du | AF14: =IF(T14=0,0,T12/T14) -> 0 | AG14: db/fő | AI14: Létszám | AJ14: =SUM(H14,P14,X14) -> 3 | AK14: =SUM(H15,P15,X15) -> 6 | AL14: fő | AM14: Du | AN14: =IF(X14=0,0,X12/X14) -> 0 | AO14: db/fő
C15: MPS létszám | D15: =E138 -> 0 | E15: fő | G15: MPS létszám | H15: =E168 -> 2 | I15: fő | K15: MPS létszám | L15: =M138 -> 4 | M15: fő | O15: MPS létszám | P15: =M168 -> 2 | Q15: fő | S15: MPS létszám | T15: =U138 -> 0 | U15: fő | W15: MPS létszám | X15: =U168 -> 2 | Y15: fő | AA15: Össz állásidő | AB15: =SUM(D16,L16,T16) -> 0 | AD15: perc | AE15: Napi | AF15: =IF(AB14=0,0,AB13/AB14) -> 5.666666667 | AG15: db/fő | AI15: Össz állásidő | AJ15: =SUM(H16,P16,X16) -> 610 | AL15: perc | AM15: Napi | AN15: =IF(AJ14=0,0,AJ13/AJ14) -> 27.66666667 | AO15: db/fő
C16: Össz állásidő | D16: =SUM(E153:E162) -> 0 | E16: perc | G16: Össz állásidő | H16: =SUM(E183:E192) -> 60 | I16: perc | K16: Össz állásidő | L16: =SUM(M153:M162) -> 0 | M16: perc | O16: Össz állásidő | P16: =SUM(M183:M192) -> 150 | Q16: perc | S16: Össz állásidő | T16: =SUM(U153:U162) -> 0 | U16: perc | W16: Össz állásidő | X16: =SUM(U183:U192) -> 400 | Y16: perc | AA16: Backlog sor/db | AB16: =SUM(E148,M148,U148) -> 0 | AC16: =SUM(E150,M150,U150) -> 0 | AD16: db | AE16: Elvárt | AF16: =IF(AC14=0,0,AC13/AC14) -> 5 | AG16: db/fő | AI16: Backlog sor/db | AJ16: =SUM(E178,M178,U178) -> 0 | AK16: =SUM(E180,M180,U180) -> 0 | AL16: db | AM16: Elvárt | AN16: =IF(AK14=0,0,AK13/AK14) -> 26 | AO16: db/fő
C17: =B194 -> NDE cella | G17: =B224 -> T+R | K17: =J194 -> NDE cella | O17: =J224 -> T+R | S17: =R194 -> NDE cella | W17: =R224 -> T+R | AA17: =C17 -> NDE cella | AI17: =O17 -> T+R
C18: Gyártott db | D18: =E195 -> 0 | E18: db | G18: Gyártott db | H18: =E225 -> 36 | I18: db | K18: Gyártott db | L18: =M195 -> 95 | M18: db | O18: Gyártott db | P18: =M225 -> 45 | Q18: db | S18: Gyártott db | T18: =U195 -> 95 | U18: db | W18: Gyártott db | X18: =U225 -> 32 | Y18: db | AB18: Aktuális | AC18: Elvárt | AE18: Éj | AF18: =IF(D20=0,0,D18/D20) -> 0 | AG18: db/fő | AJ18: Aktuális | AK18: Elvárt | AM18: Éj | AN18: =IF(H20=0,0,H18/H20) -> 18 | AO18: db/fő
C19: Elvárt db | D19: =E197 -> 95 | E19: db | G19: Elvárt db | H19: =E227 -> 54 | I19: db | K19: Elvárt db | L19: =M197 -> 95 | M19: db | O19: Elvárt db | P19: =M227 -> 54 | Q19: db | S19: Elvárt db | T19: =U197 -> 95 | U19: db | W19: Elvárt db | X19: =U227 -> 54 | Y19: db | AA19: Darabszám | AB19: =SUM(D18,L18,T18) -> 190 | AC19: =SUM(D19,L19,T19) -> 285 | AD19: db | AE19: De | AF19: =IF(L20=0,0,L18/L20) -> 95 | AG19: db/fő | AI19: Darabszám | AJ19: =SUM(H18,P18,X18) -> 113 | AK19: =SUM(H19,P19,X19) -> 162 | AL19: db | AM19: De | AN19: =IF(P20=0,0,P18/P20) -> 11.25 | AO19: db/fő
C20: Akt. létszám | D20: =E199 -> 0 | E20: fő | G20: Akt. létszám | H20: =E229 -> 2 | I20: fő | K20: Akt. létszám | L20: =M199 -> 1 | M20: fő | O20: Akt. létszám | P20: =M229 -> 4 | Q20: fő | S20: Akt. létszám | T20: =U199 -> 0 | U20: fő | W20: Akt. létszám | X20: =U229 -> 0 | Y20: fő | AA20: Létszám | AB20: =SUM(D20,L20,T20) -> 1 | AC20: =SUM(D21,L21,T21) -> 3 | AD20: fő | AE20: Du | AF20: =IF(T20=0,0,T18/T20) -> 0 | AG20: db/fő | AI20: Létszám | AJ20: =SUM(H20,P20,X20) -> 6 | AK20: =SUM(H21,P21,X21) -> 9 | AL20: fő | AM20: Du | AN20: =IF(X20=0,0,X18/X20) -> 0 | AO20: db/fő
C21: MPS létszám | D21: =E198 -> 1 | E21: fő | G21: MPS létszám | H21: =E228 -> 3 | I21: fő | K21: MPS létszám | L21: =M198 -> 1 | M21: fő | O21: MPS létszám | P21: =M228 -> 3 | Q21: fő | S21: MPS létszám | T21: =U198 -> 1 | U21: fő | W21: MPS létszám | X21: =U228 -> 3 | Y21: fő | AA21: Össz állásidő | AB21: =SUM(D22,L22,T22) -> 0 | AD21: perc | AE21: Napi | AF21: =IF(AB20=0,0,AB19/AB20) -> 190 | AG21: db/fő | AI21: Össz állásidő | AJ21: =SUM(H22,P22,X22) -> 420 | AL21: perc | AM21: Napi | AN21: =IF(AJ20=0,0,AJ19/AJ20) -> 18.83333333 | AO21: db/fő
C22: Össz állásidő | D22: =SUM(E213:E222) -> 0 | E22: perc | G22: Össz állásidő | H22: =SUM(E243:E252) -> 150 | I22: perc | K22: Össz állásidő | L22: =SUM(M213:M222) -> 0 | M22: perc | O22: Össz állásidő | P22: =SUM(M243:M252) -> 90 | Q22: perc | S22: Össz állásidő | T22: =SUM(U213:U222) -> 0 | U22: perc | W22: Össz állásidő | X22: =SUM(U243:U252) -> 180 | Y22: perc | AA22: Backlog sor/db | AB22: =SUM(E208,M208,U208) -> 0 | AC22: =SUM(E210,M210,U210) -> 0 | AD22: db | AE22: Elvárt | AF22: =IF(AC20=0,0,AC19/AC20) -> 95 | AG22: db/fő | AI22: Backlog sor/db | AJ22: =SUM(E238,M238,U238) -> 0 | AK22: =SUM(E240,M240,U240) -> 0 | AL22: db | AM22: Elvárt | AN22: =IF(AK20=0,0,AK19/AK20) -> 18 | AO22: db/fő
C23: =B254 -> Cella7 | G23: =B284 -> Cella8 | K23: =J254 -> Cella7 | O23: =J284 -> Cella8 | S23: =R254 -> Cella7 | W23: =R284 -> Cella8 | AA23: =C23 -> Cella7 | AI23: =O23 -> Cella8
C24: Gyártott db | D24: =E255 -> 0 | E24: db | G24: Gyártott db | H24: =E285 -> 0 | I24: db | K24: Gyártott db | L24: =M255 -> 0 | M24: db | O24: Gyártott db | P24: =M285 -> 0 | Q24: db | S24: Gyártott db | T24: =U255 -> 0 | U24: db | W24: Gyártott db | X24: =U285 -> 0 | Y24: db | AB24: Aktuális | AC24: Elvárt | AE24: Éj | AF24: =IF(D26=0,0,D24/D26) -> 0 | AG24: db/fő | AJ24: Aktuális | AK24: Elvárt | AM24: Éj | AN24: =IF(H26=0,0,H24/H26) -> 0 | AO24: db/fő
C25: Elvárt db | D25: =E257 -> 0 | E25: db | G25: Elvárt db | H25: =E287 -> 0 | I25: db | K25: Elvárt db | L25: =M257 -> 0 | M25: db | O25: Elvárt db | P25: =M287 -> 0 | Q25: db | S25: Elvárt db | T25: =U257 -> 0 | U25: db | W25: Elvárt db | X25: =U287 -> 0 | Y25: db | AA25: Darabszám | AB25: =SUM(D24,L24,T24) -> 0 | AC25: =SUM(D25,L25,T25) -> 0 | AD25: db | AE25: De | AF25: =IF(L26=0,0,L24/L26) -> 0 | AG25: db/fő | AI25: Darabszám | AJ25: =SUM(H24,P24,X24) -> 0 | AK25: =SUM(H25,P25,X25) -> 0 | AL25: db | AM25: De | AN25: =IF(P26=0,0,P24/P26) -> 0 | AO25: db/fő
C26: Akt. létszám | D26: =E259 -> 0 | E26: fő | G26: Akt. létszám | H26: =E289 -> 0 | I26: fő | K26: Akt. létszám | L26: =M259 -> 0 | M26: fő | O26: Akt. létszám | P26: =M289 -> 0 | Q26: fő | S26: Akt. létszám | T26: =U259 -> 0 | U26: fő | W26: Akt. létszám | X26: =U289 -> 0 | Y26: fő | AA26: Létszám | AB26: =SUM(D26,L26,T26) -> 0 | AC26: =SUM(D27,L27,T27) -> 0 | AD26: fő | AE26: Du | AF26: =IF(T26=0,0,T24/T26) -> 0 | AG26: db/fő | AI26: Létszám | AJ26: =SUM(H26,P26,X26) -> 0 | AK26: =SUM(H27,P27,X27) -> 0 | AL26: fő | AM26: Du | AN26: =IF(X26=0,0,X24/X26) -> 0 | AO26: db/fő
C27: MPS létszám | D27: =E258 -> 0 | E27: fő | G27: MPS létszám | H27: =E288 -> 0 | I27: fő | K27: MPS létszám | L27: =M258 -> 0 | M27: fő | O27: MPS létszám | P27: =M288 -> 0 | Q27: fő | S27: MPS létszám | T27: =U258 -> 0 | U27: fő | W27: MPS létszám | X27: =U288 -> 0 | Y27: fő | AA27: Össz állásidő | AB27: =SUM(D28,L28,T28) -> 0 | AD27: perc | AE27: Napi | AF27: =IF(AB26=0,0,AB25/AB26) -> 0 | AG27: db/fő | AI27: Össz állásidő | AJ27: =SUM(H28,P28,X28) -> 0 | AL27: perc | AM27: Napi | AN27: =IF(AJ26=0,0,AJ25/AJ26) -> 0 | AO27: db/fő
C28: Össz állásidő | D28: =SUM(E273:E282) -> 0 | E28: perc | G28: Össz állásidő | H28: =SUM(E303:E312) -> 0 | I28: perc | K28: Össz állásidő | L28: =SUM(M273:M282) -> 0 | M28: perc | O28: Össz állásidő | P28: =SUM(M303:M312) -> 0 | Q28: perc | S28: Össz állásidő | T28: =SUM(U273:U282) -> 0 | U28: perc | W28: Össz állásidő | X28: =SUM(U303:U312) -> 0 | Y28: perc | AA28: Backlog sor/db | AB28: =SUM(E160,M160,U160) -> 0 | AC28: =SUM(E162,M162,U162) -> 0 | AD28: db | AE28: Elvárt | AF28: =IF(AC26=0,0,AC25/AC26) -> 0 | AG28: db/fő | AI28: Backlog sor/db | AJ28: =SUM(E160,M160,U160) -> 0 | AK28: =SUM(E162,M162,U162) -> 0 | AL28: db | AM28: Elvárt | AN28: =IF(AK26=0,0,AK25/AK26) -> 0 | AO28: db/fő
C29: =B314 -> Cella9 | G29: =B344 -> Cella10 | K29: =J314 -> Cella9 | O29: =J344 -> Cella10 | S29: =R314 -> Cella9 | W29: =R344 -> Cella10 | AA29: =C29 -> Cella9 | AI29: =G29 -> Cella10
C30: Gyártott db | D30: =E315 -> 0 | E30: db | G30: Gyártott db | H30: =E345 -> 0 | I30: db | K30: Gyártott db | L30: =M315 -> 0 | M30: db | O30: Gyártott db | P30: =M345 -> 0 | Q30: db | S30: Gyártott db | T30: =U315 -> 0 | U30: db | W30: Gyártott db | X30: =U345 -> 0 | Y30: db | AB30: Aktuális | AC30: Elvárt | AE30: Éj | AF30: =IF(D32=0,0,D30/D32) -> 0 | AG30: db/fő | AJ30: Aktuális | AK30: Elvárt | AM30: Éj | AN30: =IF(D32=0,0,D30/D32) -> 0 | AO30: db/fő
C31: Elvárt db | D31: =E317 -> 0 | E31: db | G31: Elvárt db | H31: =E347 -> 0 | I31: db | K31: Elvárt db | L31: =M317 -> 0 | M31: db | O31: Elvárt db | P31: =M347 -> 0 | Q31: db | S31: Elvárt db | T31: =U317 -> 0 | U31: db | W31: Elvárt db | X31: =U347 -> 0 | Y31: db | AA31: Darabszám | AB31: =SUM(D30,L30,T30) -> 0 | AC31: =SUM(D31,L31,T31) -> 0 | AD31: db | AE31: De | AF31: =IF(L32=0,0,L30/L32) -> 0 | AG31: db/fő | AI31: Darabszám | AJ31: =SUM(H30,P30,X30) -> 0 | AK31: =SUM(H31,P31,X31) -> 0 | AL31: db | AM31: De | AN31: =IF(L32=0,0,L30/L32) -> 0 | AO31: db/fő
C32: Akt. létszám | D32: =E319 -> 0 | E32: fő | G32: Akt. létszám | H32: =E349 -> 0 | I32: fő | K32: Akt. létszám | L32: =M319 -> 0 | M32: fő | O32: Akt. létszám | P32: =M349 -> 0 | Q32: fő | S32: Akt. létszám | T32: =U319 -> 0 | U32: fő | W32: Akt. létszám | X32: =U349 -> 0 | Y32: fő | AA32: Létszám | AB32: =SUM(D32,L32,T32) -> 0 | AC32: =SUM(D33,L33,T33) -> 0 | AD32: fő | AE32: Du | AF32: =IF(T32=0,0,T30/T32) -> 0 | AG32: db/fő | AI32: Létszám | AJ32: =SUM(H32,P32,X32) -> 0 | AK32: =SUM(H33,P33,X33) -> 0 | AL32: fő | AM32: Du | AN32: =IF(T32=0,0,T30/T32) -> 0 | AO32: db/fő
C33: MPS létszám | D33: =E318 -> 0 | E33: fő | G33: MPS létszám | H33: =E348 -> 0 | I33: fő | K33: MPS létszám | L33: =M318 -> 0 | M33: fő | O33: MPS létszám | P33: =M348 -> 0 | Q33: fő | S33: MPS létszám | T33: =U318 -> 0 | U33: fő | W33: MPS létszám | X33: =U348 -> 0 | Y33: fő | AA33: Össz állásidő | AB33: =SUM(D34,L34,T34) -> 0 | AD33: perc | AE33: Napi | AF33: =IF(AB32=0,0,AB31/AB32) -> 0 | AG33: db/fő | AI33: Össz állásidő | AJ33: =SUM(H34,P34,X34) -> 0 | AL33: perc | AM33: Napi | AN33: =IF(AJ32=0,0,AJ31/AJ32) -> 0 | AO33: db/fő
C34: Össz állásidő | D34: =SUM(E333:E342) -> 0 | E34: perc | G34: Össz állásidő | H34: =SUM(E363:E372) -> 0 | I34: perc | K34: Össz állásidő | L34: =SUM(M333:M342) -> 0 | M34: perc | O34: Össz állásidő | P34: =SUM(M363:M372) -> 0 | Q34: perc | S34: Össz állásidő | T34: =SUM(U333:U342) -> 0 | U34: perc | W34: Össz állásidő | X34: =SUM(U363:U372) -> 0 | Y34: perc | AA34: Backlog sor/db | AB34: =SUM(E166,M166,U166) -> 0 | AC34: =SUM(E168,M168,U168) -> 6 | AD34: db | AE34: Elvárt | AF34: =IF(AC32=0,0,AC31/AC32) -> 0 | AG34: db/fő | AI34: Backlog sor/db | AJ34: =SUM(E172,M172,U172) -> 0 | AK34: =SUM(E174,M174,U174) -> 0 | AL34: db | AM34: Elvárt | AN34: =IF(AK32=0,0,AK31/AK32) -> 0 | AO34: db/fő
C35: =B374 -> Cella11 | G35: =B404 -> Cella12 | K35: =J374 -> Cella11 | O35: =J404 -> Cella12 | S35: =R374 -> Cella11 | W35: =R404 -> Cella12 | AA35: =C35 -> Cella11 | AI35: =G35 -> Cella12
C36: Gyártott db | D36: =E375 -> 0 | E36: db | G36: Gyártott db | H36: =E405 -> 0 | I36: db | K36: Gyártott db | L36: =M375 -> 0 | M36: db | O36: Gyártott db | P36: =M405 -> 0 | Q36: db | S36: Gyártott db | T36: =U375 -> 0 | U36: db | W36: Gyártott db | X36: =U405 -> 0 | Y36: db | AB36: Aktuális | AC36: Elvárt | AE36: Éj | AF36: =IF(D38=0,0,D36/D38) -> 0 | AG36: db/fő | AJ36: Aktuális | AK36: Elvárt | AM36: Éj | AN36: =IF(H38=0,0,H36/H38) -> 0 | AO36: db/fő
C37: Elvárt db | D37: =E377 -> 0 | E37: db | G37: Elvárt db | H37: =E407 -> 0 | I37: db | K37: Elvárt db | L37: =M377 -> 0 | M37: db | O37: Elvárt db | P37: =M407 -> 0 | Q37: db | S37: Elvárt db | T37: =U377 -> 0 | U37: db | W37: Elvárt db | X37: =U407 -> 0 | Y37: db | AA37: Darabszám | AB37: =SUM(D36,L36,T36) -> 0 | AC37: =SUM(D37,L37,T37) -> 0 | AD37: db | AE37: De | AF37: =IF(L38=0,0,L36/L38) -> 0 | AG37: db/fő | AI37: Darabszám | AJ37: =SUM(H36,LX36,X36) -> 0 | AK37: =SUM(H37,P37,X37) -> 0 | AL37: db | AM37: De | AN37: =IF(P38=0,0,P36/P38) -> 0 | AO37: db/fő
C38: Akt. létszám | D38: =E379 -> 0 | E38: fő | G38: Akt. létszám | H38: =E409 -> 0 | I38: fő | K38: Akt. létszám | L38: =M379 -> 0 | M38: fő | O38: Akt. létszám | P38: =M409 -> 0 | Q38: fő | S38: Akt. létszám | T38: =U379 -> 0 | U38: fő | W38: Akt. létszám | X38: =U409 -> 0 | Y38: fő | AA38: Létszám | AB38: =SUM(D38,L38,T38) -> 0 | AC38: =SUM(D39,L39,T39) -> 0 | AD38: fő | AE38: Du | AF38: =IF(T38=0,0,T36/T38) -> 0 | AG38: db/fő | AI38: Létszám | AJ38: =SUM(H38,P38,X38) -> 0 | AK38: =SUM(H39,P39,X39) -> 0 | AL38: fő | AM38: Du | AN38: =IF(X38=0,0,X37/X38) -> 0 | AO38: db/fő
C39: MPS létszám | D39: =E378 -> 0 | E39: fő | G39: MPS létszám | H39: =E408 -> 0 | I39: fő | K39: MPS létszám | L39: =M378 -> 0 | M39: fő | O39: MPS létszám | P39: =M408 -> 0 | Q39: fő | S39: MPS létszám | T39: =U378 -> 0 | U39: fő | W39: MPS létszám | X39: =U408 -> 0 | Y39: fő | AA39: Össz állásidő | AB39: =SUM(D40,L40,T40) -> 0 | AD39: perc | AE39: Napi | AF39: =IF(AB38=0,0,AB37/AB38) -> 0 | AG39: db/fő | AI39: Össz állásidő | AJ39: =SUM(H40,P40,X40) -> 0 | AL39: perc | AM39: Napi | AN39: =IF(AJ38=0,0,AJ37/AJ38) -> 0 | AO39: db/fő
C40: Össz állásidő | D40: =SUM(E393:E402) -> 0 | E40: perc | G40: Össz állásidő | H40: =SUM(E423:E432) -> 0 | I40: perc | K40: Össz állásidő | L40: =SUM(M393:M402) -> 0 | M40: perc | O40: Össz állásidő | P40: =SUM(M423:M432) -> 0 | Q40: perc | S40: Össz állásidő | T40: =SUM(U393:U402) -> 0 | U40: perc | W40: Össz állásidő | X40: =SUM(U423:U432) -> 0 | Y40: perc | AA40: Backlog sor/db | AB40: =SUM(E172,M172,U172) -> 0 | AC40: =SUM(E174,M174,U174) -> 0 | AD40: db | AE40: Elvárt | AF40: =IF(AC38=0,0,AC37/AC38) -> 0 | AG40: db/fő | AI40: Backlog sor/db | AJ40: =SUM(E178,M178,U178) -> 0 | AK40: =SUM(E180,M180,U180) -> 0 | AL40: db | AM40: Elvárt | AN40: =IF(AK38=0,0,AK37/AK38) -> 0 | AO40: db/fő
C41: =B434 -> Cella13 | G41: =B464 -> Cella14 | K41: =J434 -> Cella13 | O41: =J464 -> Cella14 | S41: =R434 -> Cella13 | W41: =R464 -> Cella14 | AA41: =C41 -> Cella13 | AI41: =G41 -> Cella14
C42: Gyártott db | D42: =E435 -> 0 | E42: db | G42: Gyártott db | H42: =E465 -> 0 | I42: db | K42: Gyártott db | L42: =M435 -> 0 | M42: db | O42: Gyártott db | P42: =M465 -> 0 | Q42: db | S42: Gyártott db | T42: =U435 -> 0 | U42: db | W42: Gyártott db | X42: =U465 -> 0 | Y42: db | AB42: Aktuális | AC42: Elvárt | AE42: Éj | AF42: =IF(D44=0,0,D42/D44) -> 0 | AG42: db/fő | AJ42: Aktuális | AK42: Elvárt | AM42: Éj | AN42: =IF(H44=0,0,H42/H44) -> 0 | AO42: db/fő
C43: Elvárt db | D43: =E437 -> 0 | E43: db | G43: Elvárt db | H43: =E467 -> 0 | I43: db | K43: Elvárt db | L43: =M437 -> 0 | M43: db | O43: Elvárt db | P43: =M467 -> 0 | Q43: db | S43: Elvárt db | T43: =U437 -> 0 | U43: db | W43: Elvárt db | X43: =U467 -> 0 | Y43: db | AA43: Darabszám | AB43: =SUM(D42,L42,T42) -> 0 | AC43: =SUM(D43,L43,T43) -> 0 | AD43: db | AE43: De | AF43: =IF(L44=0,0,L42/L44) -> 0 | AG43: db/fő | AI43: Darabszám | AJ43: =SUM(H42,P42,X42) -> 0 | AK43: =SUM(H43,P43,X43) -> 0 | AL43: db | AM43: De | AN43: =IF(P44=0,0,P42/P44) -> 0 | AO43: db/fő
C44: Akt. létszám | D44: =E439 -> 0 | E44: fő | G44: Akt. létszám | H44: =E469 -> 0 | I44: fő | K44: Akt. létszám | L44: =M439 -> 0 | M44: fő | O44: Akt. létszám | P44: =M469 -> 0 | Q44: fő | S44: Akt. létszám | T44: =U439 -> 0 | U44: fő | W44: Akt. létszám | X44: =U469 -> 0 | Y44: fő | AA44: Létszám | AB44: =SUM(D44,L44,T44) -> 0 | AC44: =SUM(D45,L45,T45) -> 0 | AD44: fő | AE44: Du | AF44: =IF(T44=0,0,T42/T44) -> 0 | AG44: db/fő | AI44: Létszám | AJ44: =SUM(D56,L56,T56) -> 0 | AK44: =SUM(D57,L57,T57) -> 0 | AL44: fő | AM44: Du | AN44: =IF(X44=0,0,X42/X44) -> 0 | AO44: db/fő
C45: MPS létszám | D45: =E438 -> 0 | E45: fő | G45: MPS létszám | H45: =E468 -> 0 | I45: fő | K45: MPS létszám | L45: =M438 -> 0 | M45: fő | O45: MPS létszám | P45: =M468 -> 0 | Q45: fő | S45: MPS létszám | T45: =U438 -> 0 | U45: fő | W45: MPS létszám | X45: =U468 -> 0 | Y45: fő | AA45: Össz állásidő | AB45: =SUM(D46,L46,T46) -> 0 | AD45: perc | AE45: Napi | AF45: =IF(AB44=0,0,AB43/AB44) -> 0 | AG45: db/fő | AI45: Össz állásidő | AJ45: =SUM(D58,L58,T58) -> 0 | AL45: perc | AM45: Napi | AN45: =IF(AJ44=0,0,AJ43/AJ44) -> 0 | AO45: db/fő
C46: Össz állásidő | D46: =SUM(E453:E462) -> 0 | E46: perc | G46: Össz állásidő | H46: =SUM(E483:E492) -> 0 | I46: perc | K46: Össz állásidő | L46: =SUM(M453:M462) -> 0 | M46: perc | O46: Össz állásidő | P46: =SUM(M483:M492) -> 0 | Q46: perc | S46: Össz állásidő | T46: =SUM(U453:U462) -> 0 | U46: perc | W46: Össz állásidő | X46: =SUM(U483:U492) -> 0 | Y46: perc | AA46: Backlog sor/db | AB46: =SUM(E178,M178,U178) -> 0 | AC46: =SUM(E180,M180,U180) -> 0 | AD46: db | AE46: Elvárt | AF46: =IF(AC44=0,0,AC43/AC44) -> 0 | AG46: db/fő | AI46: Backlog sor/db | AJ46: =SUM(E190,M190,U190) -> 0 | AK46: =SUM(E192,M192,U192) -> 0 | AL46: db | AM46: Elvárt | AN46: =IF(AK44=0,0,AK43/AK44) -> 0 | AO46: db/fő
C47: =B494 -> Cella15 | K47: =J494 -> Cella15 | S47: =R494 -> Cella15 | AA47: =C47 -> Cella15
C48: Gyártott db | D48: =E495 -> 0 | E48: db | K48: Gyártott db | L48: =M495 -> 0 | M48: db | S48: Gyártott db | T48: =U495 -> 0 | U48: db | AB48: Aktuális | AC48: Elvárt | AE48: Éj | AF48: =IF(D50=0,0,D48/D50) -> 0 | AG48: db/fő
C49: Elvárt db | D49: =E497 -> 0 | E49: db | K49: Elvárt db | L49: =M497 -> 0 | M49: db | S49: Elvárt db | T49: =U497 -> 0 | U49: db | AA49: Darabszám | AB49: =SUM(D48,L48,T48) -> 0 | AC49: =SUM(D49,L49,T49) -> 0 | AD49: db | AE49: De | AF49: =IF(L50=0,0,L48/L50) -> 0 | AG49: db/fő
C50: Akt. létszám | D50: =E499 -> 0 | E50: fő | K50: Akt. létszám | L50: =M499 -> 0 | M50: fő | S50: Akt. létszám | T50: =U499 -> 0 | U50: fő | AA50: Létszám | AB50: =SUM(D50,L50,T50) -> 0 | AC50: =SUM(D51,L51,T51) -> 0 | AD50: fő | AE50: Du | AF50: =IF(T50=0,0,T48/T50) -> 0 | AG50: db/fő
C51: MPS létszám | D51: =E498 -> 0 | E51: fő | K51: MPS létszám | L51: =M498 -> 0 | M51: fő | S51: MPS létszám | T51: =U498 -> 0 | U51: fő | AA51: Össz állásidő | AB51: =SUM(D52,L52,T52) -> 0 | AD51: perc | AE51: Napi | AF51: =IF(AB50=0,0,AB49/AB50) -> 0 | AG51: db/fő
C52: Össz állásidő | D52: =SUM(E513:E522) -> 0 | E52: perc | K52: Össz állásidő | L52: =SUM(M513:M522) -> 0 | M52: perc | S52: Össz állásidő | T52: =SUM(U513:U522) -> 0 | U52: perc | AA52: Backlog sor/db | AB52: =SUM(E194,M194,U194) -> 0 | AC52: =SUM(E196,M196,U196) -> 0 | AD52: db | AE52: Elvárt | AF52: =IF(AC50=0,0,AC49/AC50) -> 0 | AG52: db/fő
B54: Megjegyzés/egyéb fontos információ: | I54: Megoldva? | J54: Megjegyzés/egyéb fontos információ: | Q54: Megoldva? | R54: Megjegyzés/egyéb fontos információ: | Y54: Megoldva?
B55: Biztonság | D55: 512-es pajzs hiány! Megrendelő nélküli gyártás | J55: Biztonság | R55: Biztonság
D56: 49db maradt még a 430-as pajzsból.
B57: Minőség | J57: Minőség | R57: Minőség
B59: Termelés | D59: Besütő: 50 db E-tower: 54 db | J59: Termelés | L59: Besütő:10db, E- tower29:db, | R59: Termelés | T59: BESÜTŐ: 58db , E-TOWER: 50db .
D60: BWS: 48 db lakkozó:44db fornax.14db | L60: BWS:50db Alliance:57db Fornax:db | T60: BWS:43db Alliance:54db +15db 112/132-es sztátor lakkozása
B61: Dolgozók | D61: Szabi: 1 Beteg. 1 | J61: Dolgozók | L61: Szabi:5fő Beteg:3fő | R61: Dolgozók | T61: 1fő segitség a motorsoron , 1fő segitség a sztátorsoron
T62: Szabi:2fő Beteg:2fő
B63: Támogatók | D63: megrendelő:9 HM 7db | J63: Támogatók | L63: megrendelő : 6db HM: 10db | R63: Támogatók | T63: megrendelő:9db HM:19db
L64: 1fő szervizes a motorsoron segít
B65: 5S | D65: EME kft ékszig:1600db | J65: 5S | R65: 5S
B67: Karbantartás | D67: E-tower nem akart elindulni 60 percet áltunk vele 6908308 | I67: ok | J67: Karbantartás | R67: Karbantartás | T67: varrógép javítás mlsz:6909061
D68: DE cella robothiba | I68: ok
D69: lakkozó jobb oldali szívattyú pronbléma 6908326 30 perc | I69: ok
D71: Szt. backlog:
D72: Motor backlog:34/208
B74: =Alapadatok!C5 -> Motor sor | J74: =B74 -> Motor sor | R74: =B74 -> Motor sor
D75: Gyártott: | E75: 46 | F75: db | L75: Gyártott: | M75: 52 | N75: db | T75: Gyártott: | U75: 50 | V75: db
D77: Elvárt darabszám: | E77: 52 | F77: db | H77: Elvárt db/op: | I77: 7.43 | L77: Elvárt darabszám: | M77: 54 | N77: db | P77: Elvárt db/op: | Q77: 6.75 | T77: Elvárt darabszám: | U77: 54 | V77: db | X77: Elvárt db/op: | Y77: 6.75
D78: Szükséges létszám: | E78: 7 | F78: fő | L78: Szükséges létszám: | M78: 8 | N78: fő | T78: Szükséges létszám: | U78: 8 | V78: fő
D79: Aktuális létszám: | E79: 7 | F79: fő | H79: Aktuális db/op: | I79: 6.571428571 | L79: Aktuális létszám: | M79: 7 | N79: fő | P79: Aktuális db/op: | Q79: 7.428571429 | T79: Aktuális létszám: | U79: 0 | V79: fő | X79: Aktuális db/op: | Y79: 0
D81: Operátor | E81: 6 | F81: fő | L81: Operátor | M81: 5 | N81: fő | T81: Operátor | U81: 8 | V81: fő
D82: Koordinátor | E82: 1 | F82: fő | L82: Koordinátor | M82: 1 | N82: fő | T82: Koordinátor | V82: fő
D83: Beállító | F83: fő | L83: Beállító | N83: fő | T83: Beállító | V83: fő
D84: QA, Service | F84: fő | L84: QA, Service | N84: fő | T84: QA, Service | V84: fő
D85: Anyagszállító | F85: fő | L85: Anyagszállító | N85: fő | T85: Anyagszállító | V85: fő
D86: Egyéb | F86: fő | L86: Egyéb | M86: 1 | N86: fő | T86: Egyéb | V86: fő
D88: Backlog: | F88: sorok száma | L88: Backlog: | N88: sorok száma | T88: Backlog: | V88: sorok száma
D90: Backlog: | F90: összes darab | L90: Backlog: | N90: összes darab | T90: Backlog: | V90: összes darab
D92: Kód: | E92: Időtartam | F92: Állásidő megnevezése | L92: Kód: | M92: Időtartam | N92: Állásidő megnevezése | T92: Kód: | U92: Időtartam | V92: Állásidő megnevezése
D93: 100 | E93: 30 | F93: =VLOOKUP(D93,állásidő_kódok!$B:$D,3,0) -> E-II. - Betanulás-betanítás | L93: 100 | M93: 200 | N93: =VLOOKUP(L93,állásidő_kódok!$B:$D,3,0) -> E-II. - Betanulás-betanítás | T93: 100 | U93: 30 | V93: =VLOOKUP(T93,állásidő_kódok!$B:$D,3,0) -> E-II. - Betanulás-betanítás
F94: =VLOOKUP(D94,állásidő_kódok!$B:$D,3,0) ->  | L94: 5 | M94: 200 | N94: =VLOOKUP(L94,állásidő_kódok!$B:$D,3,0) -> E-I. - 5%-os emberi erőforrás hiány | V94: =VLOOKUP(T94,állásidő_kódok!$B:$D,3,0) -> 
F95: =VLOOKUP(D95,állásidő_kódok!$B:$D,3,0) ->  | L95: 300 | M95: 200 | N95: =VLOOKUP(L95,állásidő_kódok!$B:$D,3,0) -> G - Gyártósor meghibásodása | V95: =VLOOKUP(T95,állásidő_kódok!$B:$D,3,0) -> 
F96: =VLOOKUP(D96,állásidő_kódok!$B:$D,3,0) ->  | N96: =VLOOKUP(L96,állásidő_kódok!$B:$D,3,0) ->  | V96: =VLOOKUP(T96,állásidő_kódok!$B:$D,3,0) -> 
F97: =VLOOKUP(D97,állásidő_kódok!$B:$D,3,0) ->  | N97: =VLOOKUP(L97,állásidő_kódok!$B:$D,3,0) ->  | V97: =VLOOKUP(T97,állásidő_kódok!$B:$D,3,0) -> 
F98: =VLOOKUP(D98,állásidő_kódok!$B:$D,3,0) ->  | N98: =VLOOKUP(L98,állásidő_kódok!$B:$D,3,0) ->  | V98: =VLOOKUP(T98,állásidő_kódok!$B:$D,3,0) -> 
F99: =VLOOKUP(D99,állásidő_kódok!$B:$D,3,0) ->  | N99: =VLOOKUP(L99,állásidő_kódok!$B:$D,3,0) ->  | V99: =VLOOKUP(T99,állásidő_kódok!$B:$D,3,0) -> 
F100: =VLOOKUP(D100,állásidő_kódok!$B:$D,3,0) ->  | N100: =VLOOKUP(L100,állásidő_kódok!$B:$D,3,0) ->  | V100: =VLOOKUP(T100,állásidő_kódok!$B:$D,3,0) -> 
F101: =VLOOKUP(D101,állásidő_kódok!$B:$D,3,0) ->  | N101: =VLOOKUP(L101,állásidő_kódok!$B:$D,3,0) ->  | V101: =VLOOKUP(T101,állásidő_kódok!$B:$D,3,0) -> 
F102: =VLOOKUP(D102,állásidő_kódok!$B:$D,3,0) ->  | L102: 400 | M102: 480 | N102: =VLOOKUP(L102,állásidő_kódok!$B:$D,3,0) -> J - Szivattyú keveset emel | V102: =VLOOKUP(T102,állásidő_kódok!$B:$D,3,0) -> 
E103: Állásidők nélküli teljesítés: | F103: =((SUM(E93:E102)/445))+E75/E77 -> 0.952031115 | M103: Állásidők nélküli teljesítés: | N103: =((SUM(M93:M102)/445))+M75/M77 -> 3.389929255 | U103: Állásidők nélküli teljesítés: | V103: =((SUM(U93:U102)/445))+U75/U77 -> 0.9933416563
B104: =Alapadatok!C6 -> 2p Sztátor sor | J104: =B104 -> 2p Sztátor sor | R104: =B104 -> 2p Sztátor sor
D105: Gyártott: | E105: 50 | F105: db | L105: Gyártott: | M105: 50 | N105: db | T105: Gyártott: | U105: 37 | V105: db
D107: Elvárt darabszám: | E107: 50 | F107: db | H107: Elvárt db/op: | I107: 8.33 | L107: Elvárt darabszám: | M107: 52 | N107: db | P107: Elvárt db/op: | Q107: 8.67 | T107: Elvárt darabszám: | U107: 45 | V107: db | X107: Elvárt db/op: | Y107: 9
D108: Szükséges létszám: | E108: 6 | F108: fő | L108: Szükséges létszám: | M108: 6 | N108: fő | T108: Szükséges létszám: | U108: 5 | V108: fő
D109: Aktuális létszám: | E109: 8 | F109: fő | H109: Aktuális db/op: | I109: 6.25 | L109: Aktuális létszám: | M109: 6 | N109: fő | P109: Aktuális db/op: | Q109: 8.333333333 | T109: Aktuális létszám: | U109: 0 | V109: fő | X109: Aktuális db/op: | Y109: 0
D111: Operátor | E111: 6 | F111: fő | L111: Operátor | M111: 5 | N111: fő | T111: Operátor | U111: 6 | V111: fő
D112: Koordinátor | E112: 1 | F112: fő | L112: Koordinátor | M112: 1 | N112: fő | T112: Koordinátor | U112: 1 | V112: fő
D113: Beállító | E113: 1 | F113: fő | L113: Beállító | N113: fő | T113: Beállító | U113: 1 | V113: fő
D114: QA, Service | F114: fő | L114: QA, Service | N114: fő | T114: QA, Service | V114: fő
D115: Anyagszállító | F115: fő | L115: Anyagszállító | N115: fő | T115: Anyagszállító | V115: fő
D116: Egyéb | F116: fő | L116: Egyéb | N116: fő | T116: Egyéb | V116: fő
D118: Backlog: | F118: sorok száma | L118: Backlog: | N118: sorok száma | T118: Backlog: | V118: sorok száma
D120: Backlog: | F120: összes darab | L120: Backlog: | N120: összes darab | T120: Backlog: | V120: összes darab
D122: Kód: | E122: Időtartam | F122: Állásidő megnevezése | L122: Kód: | M122: Időtartam | N122: Állásidő megnevezése | T122: Kód: | U122: Időtartam | V122: Állásidő megnevezése
F123: =VLOOKUP(D123,állásidő_kódok!$B:$D,3,0) ->  | N123: =VLOOKUP(L123,állásidő_kódok!$B:$D,3,0) ->  | T123: 100 | U123: 60 | V123: =VLOOKUP(T123,állásidő_kódok!$B:$D,3,0) -> E-II. - Betanulás-betanítás
F124: =VLOOKUP(D124,állásidő_kódok!$B:$D,3,0) ->  | N124: =VLOOKUP(L124,állásidő_kódok!$B:$D,3,0) ->  | T124: 315 | U124: 150 | V124: =VLOOKUP(T124,állásidő_kódok!$B:$D,3,0) -> G - Karbantartói javítás
F125: =VLOOKUP(D125,állásidő_kódok!$B:$D,3,0) ->  | N125: =VLOOKUP(L125,állásidő_kódok!$B:$D,3,0) ->  | V125: =VLOOKUP(T125,állásidő_kódok!$B:$D,3,0) -> 
F126: =VLOOKUP(D126,állásidő_kódok!$B:$D,3,0) ->  | N126: =VLOOKUP(L126,állásidő_kódok!$B:$D,3,0) ->  | V126: =VLOOKUP(T126,állásidő_kódok!$B:$D,3,0) -> 
F127: =VLOOKUP(D127,állásidő_kódok!$B:$D,3,0) ->  | N127: =VLOOKUP(L127,állásidő_kódok!$B:$D,3,0) ->  | V127: =VLOOKUP(T127,állásidő_kódok!$B:$D,3,0) -> 
F128: =VLOOKUP(D128,állásidő_kódok!$B:$D,3,0) ->  | N128: =VLOOKUP(L128,állásidő_kódok!$B:$D,3,0) ->  | V128: =VLOOKUP(T128,állásidő_kódok!$B:$D,3,0) -> 
F129: =VLOOKUP(D129,állásidő_kódok!$B:$D,3,0) ->  | N129: =VLOOKUP(L129,állásidő_kódok!$B:$D,3,0) ->  | V129: =VLOOKUP(T129,állásidő_kódok!$B:$D,3,0) -> 
F130: =VLOOKUP(D130,állásidő_kódok!$B:$D,3,0) ->  | N130: =VLOOKUP(L130,állásidő_kódok!$B:$D,3,0) ->  | V130: =VLOOKUP(T130,állásidő_kódok!$B:$D,3,0) -> 
F131: =VLOOKUP(D131,állásidő_kódok!$B:$D,3,0) ->  | N131: =VLOOKUP(L131,állásidő_kódok!$B:$D,3,0) ->  | V131: =VLOOKUP(T131,állásidő_kódok!$B:$D,3,0) -> 
F132: =VLOOKUP(D132,állásidő_kódok!$B:$D,3,0) ->  | N132: =VLOOKUP(L132,állásidő_kódok!$B:$D,3,0) ->  | V132: =VLOOKUP(T132,állásidő_kódok!$B:$D,3,0) -> 
E133: Állásidők nélküli teljesítés: | F133: =((SUM(E123:E132)/445))+E105/E107 -> 1 | M133: Állásidők nélküli teljesítés: | N133: =((SUM(M123:M132)/445))+M105/M107 -> 0.9615384615 | U133: Állásidők nélküli teljesítés: | V133: =((SUM(U123:U132)/445))+U105/U107 -> 1.294132335
B134: =Alapadatok!C7 -> 4p sztátor sor | J134: =B134 -> 4p sztátor sor | R134: =B134 -> 4p sztátor sor
D135: Gyártott: | F135: db | L135: Gyártott: | M135: 17 | N135: db | T135: Gyártott: | V135: db
D137: Elvárt darabszám: | E137: 0 | F137: db | H137: Elvárt db/op: | I137: 0 | L137: Elvárt darabszám: | M137: 20 | N137: db | P137: Elvárt db/op: | Q137: 5 | T137: Elvárt darabszám: | U137: 0 | V137: db | X137: Elvárt db/op: | Y137: 0
D138: Szükséges létszám: | E138: 0 | F138: fő | L138: Szükséges létszám: | M138: 4 | N138: fő | T138: Szükséges létszám: | U138: 0 | V138: fő
D139: Aktuális létszám: | E139: 0 | F139: fő | H139: Aktuális db/op: | I139: 0 | L139: Aktuális létszám: | M139: 3 | N139: fő | P139: Aktuális db/op: | Q139: 5.666666667 | T139: Aktuális létszám: | U139: 0 | V139: fő | X139: Aktuális db/op: | Y139: 0
D141: Operátor | F141: fő | L141: Operátor | M141: 3 | N141: fő | T141: Operátor | V141: fő
D142: Koordinátor | F142: fő | L142: Koordinátor | N142: fő | T142: Koordinátor | V142: fő
D143: Beállító | F143: fő | L143: Beállító | N143: fő | T143: Beállító | V143: fő
D144: QA, Service | F144: fő | L144: QA, Service | N144: fő | T144: QA, Service | V144: fő
D145: Anyagszállító | F145: fő | L145: Anyagszállító | N145: fő | T145: Anyagszállító | V145: fő
D146: Egyéb | F146: fő | L146: Egyéb | N146: fő | T146: Egyéb | V146: fő
D148: Backlog: | F148: sorok száma | L148: Backlog: | N148: sorok száma | T148: Backlog: | V148: sorok száma
D150: Backlog: | F150: összes darab | L150: Backlog: | N150: összes darab | T150: Backlog: | V150: összes darab
D152: Kód: | E152: Időtartam | F152: Állásidő megnevezése | L152: Kód: | M152: Időtartam | N152: Állásidő megnevezése | T152: Kód: | U152: Időtartam | V152: Állásidő megnevezése
F153: =VLOOKUP(D153,állásidő_kódok!$B:$D,3,0) ->  | N153: =VLOOKUP(L153,állásidő_kódok!$B:$D,3,0) ->  | V153: =VLOOKUP(T153,állásidő_kódok!$B:$D,3,0) -> 
F154: =VLOOKUP(D154,állásidő_kódok!$B:$D,3,0) ->  | N154: =VLOOKUP(L154,állásidő_kódok!$B:$D,3,0) ->  | V154: =VLOOKUP(T154,állásidő_kódok!$B:$D,3,0) -> 
F155: =VLOOKUP(D155,állásidő_kódok!$B:$D,3,0) ->  | N155: =VLOOKUP(L155,állásidő_kódok!$B:$D,3,0) ->  | V155: =VLOOKUP(T155,állásidő_kódok!$B:$D,3,0) -> 
F156: =VLOOKUP(D156,állásidő_kódok!$B:$D,3,0) ->  | N156: =VLOOKUP(L156,állásidő_kódok!$B:$D,3,0) ->  | V156: =VLOOKUP(T156,állásidő_kódok!$B:$D,3,0) -> 
F157: =VLOOKUP(D157,állásidő_kódok!$B:$D,3,0) ->  | N157: =VLOOKUP(L157,állásidő_kódok!$B:$D,3,0) ->  | V157: =VLOOKUP(T157,állásidő_kódok!$B:$D,3,0) -> 
F158: =VLOOKUP(D158,állásidő_kódok!$B:$D,3,0) ->  | N158: =VLOOKUP(L158,állásidő_kódok!$B:$D,3,0) ->  | V158: =VLOOKUP(T158,állásidő_kódok!$B:$D,3,0) -> 
F159: =VLOOKUP(D159,állásidő_kódok!$B:$D,3,0) ->  | N159: =VLOOKUP(L159,állásidő_kódok!$B:$D,3,0) ->  | V159: =VLOOKUP(T159,állásidő_kódok!$B:$D,3,0) -> 
F160: =VLOOKUP(D160,állásidő_kódok!$B:$D,3,0) ->  | N160: =VLOOKUP(L160,állásidő_kódok!$B:$D,3,0) ->  | V160: =VLOOKUP(T160,állásidő_kódok!$B:$D,3,0) -> 
F161: =VLOOKUP(D161,állásidő_kódok!$B:$D,3,0) ->  | N161: =VLOOKUP(L161,állásidő_kódok!$B:$D,3,0) ->  | V161: =VLOOKUP(T161,állásidő_kódok!$B:$D,3,0) -> 
F162: =VLOOKUP(D162,állásidő_kódok!$B:$D,3,0) ->  | N162: =VLOOKUP(L162,állásidő_kódok!$B:$D,3,0) ->  | V162: =VLOOKUP(T162,állásidő_kódok!$B:$D,3,0) -> 
E163: Állásidők nélküli teljesítés: | F163: =((SUM(E153:E162)/445))+E135/E137 ->  | M163: Állásidők nélküli teljesítés: | N163: =((SUM(M153:M162)/445))+M135/M137 -> 0.85 | U163: Állásidők nélküli teljesítés: | V163: =((SUM(U153:U162)/445))+U135/U137 -> 
B164: =Alapadatok!C8 -> DE cella | J164: =B164 -> DE cella | R164: =B164 -> DE cella
D165: Gyártott: | E165: 42 | F165: db | L165: Gyártott: | M165: 35 | N165: db | T165: Gyártott: | U165: 6 | V165: db
D167: Elvárt darabszám: | E167: 52 | F167: db | H167: Elvárt db/op: | I167: 26 | L167: Elvárt darabszám: | M167: 52 | N167: db | P167: Elvárt db/op: | Q167: 26 | T167: Elvárt darabszám: | U167: 52 | V167: db | X167: Elvárt db/op: | Y167: 26
D168: Szükséges létszám: | E168: 2 | F168: fő | L168: Szükséges létszám: | M168: 2 | N168: fő | T168: Szükséges létszám: | U168: 2 | V168: fő
D169: Aktuális létszám: | E169: 2 | F169: fő | H169: Aktuális db/op: | I169: 21 | L169: Aktuális létszám: | M169: 1 | N169: fő | P169: Aktuális db/op: | Q169: 35 | T169: Aktuális létszám: | U169: 0 | V169: fő | X169: Aktuális db/op: | Y169: 0
D171: Operátor | E171: 2 | F171: fő | L171: Operátor | M171: 1 | N171: fő | T171: Operátor | U171: 1 | V171: fő
D172: Koordinátor | F172: fő | L172: Koordinátor | N172: fő | T172: Koordinátor | V172: fő
D173: Beállító | F173: fő | L173: Beállító | N173: fő | T173: Beállító | V173: fő
D174: QA, Service | F174: fő | L174: QA, Service | N174: fő | T174: QA, Service | V174: fő
D175: Anyagszállító | F175: fő | L175: Anyagszállító | N175: fő | T175: Anyagszállító | V175: fő
D176: Egyéb | F176: fő | L176: Egyéb | N176: fő | T176: Egyéb | V176: fő
D178: Backlog: | F178: sorok száma | L178: Backlog: | N178: sorok száma | T178: Backlog: | V178: sorok száma
D180: Backlog: | F180: összes darab | L180: Backlog: | N180: összes darab | T180: Backlog: | V180: összes darab
D182: Kód: | E182: Időtartam | F182: Állásidő megnevezése | L182: Kód: | M182: Időtartam | N182: Állásidő megnevezése | T182: Kód: | U182: Időtartam | V182: Állásidő megnevezése
D183: 311 | E183: 60 | F183: =VLOOKUP(D183,állásidő_kódok!$B:$D,3,0) -> G - DE cella robothiba | L183: 201 | M183: 150 | N183: =VLOOKUP(L183,állásidő_kódok!$B:$D,3,0) -> AE-Alapanyaghiány (GW) | T183: 201 | U183: 400 | V183: =VLOOKUP(T183,állásidő_kódok!$B:$D,3,0) -> AE-Alapanyaghiány (GW)
F184: =VLOOKUP(D184,állásidő_kódok!$B:$D,3,0) ->  | N184: =VLOOKUP(L184,állásidő_kódok!$B:$D,3,0) ->  | V184: =VLOOKUP(T184,állásidő_kódok!$B:$D,3,0) -> 
F185: =VLOOKUP(D185,állásidő_kódok!$B:$D,3,0) ->  | N185: =VLOOKUP(L185,állásidő_kódok!$B:$D,3,0) ->  | V185: =VLOOKUP(T185,állásidő_kódok!$B:$D,3,0) -> 
F186: =VLOOKUP(D186,állásidő_kódok!$B:$D,3,0) ->  | N186: =VLOOKUP(L186,állásidő_kódok!$B:$D,3,0) ->  | V186: =VLOOKUP(T186,állásidő_kódok!$B:$D,3,0) -> 
F187: =VLOOKUP(D187,állásidő_kódok!$B:$D,3,0) ->  | N187: =VLOOKUP(L187,állásidő_kódok!$B:$D,3,0) ->  | V187: =VLOOKUP(T187,állásidő_kódok!$B:$D,3,0) -> 
F188: =VLOOKUP(D188,állásidő_kódok!$B:$D,3,0) ->  | N188: =VLOOKUP(L188,állásidő_kódok!$B:$D,3,0) ->  | V188: =VLOOKUP(T188,állásidő_kódok!$B:$D,3,0) -> 
F189: =VLOOKUP(D189,állásidő_kódok!$B:$D,3,0) ->  | N189: =VLOOKUP(L189,állásidő_kódok!$B:$D,3,0) ->  | V189: =VLOOKUP(T189,állásidő_kódok!$B:$D,3,0) -> 
F190: =VLOOKUP(D190,állásidő_kódok!$B:$D,3,0) ->  | N190: =VLOOKUP(L190,állásidő_kódok!$B:$D,3,0) ->  | V190: =VLOOKUP(T190,állásidő_kódok!$B:$D,3,0) -> 
F191: =VLOOKUP(D191,állásidő_kódok!$B:$D,3,0) ->  | N191: =VLOOKUP(L191,állásidő_kódok!$B:$D,3,0) ->  | V191: =VLOOKUP(T191,állásidő_kódok!$B:$D,3,0) -> 
F192: =VLOOKUP(D192,állásidő_kódok!$B:$D,3,0) ->  | N192: =VLOOKUP(L192,állásidő_kódok!$B:$D,3,0) ->  | V192: =VLOOKUP(T192,állásidő_kódok!$B:$D,3,0) -> 
E193: Állásidők nélküli teljesítés: | F193: =((SUM(E183:E192)/445))+E165/E167 -> 0.9425237684 | M193: Állásidők nélküli teljesítés: | N193: =((SUM(M183:M192)/445))+M165/M167 -> 1.010155575 | U193: Állásidők nélküli teljesítés: | V193: =((SUM(U183:U192)/445))+U165/U167 -> 1.01426102
B194: =Alapadatok!C9 -> NDE cella | J194: =B194 -> NDE cella | R194: =B194 -> NDE cella
D195: Gyártott: | E195: 0 | F195: db | L195: Gyártott: | M195: 95 | N195: db | T195: Gyártott: | U195: 95 | V195: db
D197: Elvárt darabszám: | E197: 95 | F197: db | H197: Elvárt db/op: | I197: 95 | L197: Elvárt darabszám: | M197: 95 | N197: db | P197: Elvárt db/op: | Q197: 95 | T197: Elvárt darabszám: | U197: 95 | V197: db | X197: Elvárt db/op: | Y197: 95
D198: Szükséges létszám: | E198: 1 | F198: fő | L198: Szükséges létszám: | M198: 1 | N198: fő | T198: Szükséges létszám: | U198: 1 | V198: fő
D199: Aktuális létszám: | E199: 0 | F199: fő | H199: Aktuális db/op: | I199: 0 | L199: Aktuális létszám: | M199: 1 | N199: fő | P199: Aktuális db/op: | Q199: 95 | T199: Aktuális létszám: | U199: 0 | V199: fő | X199: Aktuális db/op: | Y199: 0
D201: Operátor | E201: 0 | F201: fő | L201: Operátor | M201: 1 | N201: fő | T201: Operátor | U201: 1 | V201: fő
D202: Koordinátor | F202: fő | L202: Koordinátor | N202: fő | T202: Koordinátor | V202: fő
D203: Beállító | F203: fő | L203: Beállító | N203: fő | T203: Beállító | V203: fő
D204: QA, Service | F204: fő | L204: QA, Service | N204: fő | T204: QA, Service | V204: fő
D205: Anyagszállító | F205: fő | L205: Anyagszállító | N205: fő | T205: Anyagszállító | V205: fő
D206: Egyéb | F206: fő | L206: Egyéb | N206: fő | T206: Egyéb | V206: fő
D208: Backlog: | F208: sorok száma | L208: Backlog: | N208: sorok száma | T208: Backlog: | V208: sorok száma
D210: Backlog: | F210: összes darab | L210: Backlog: | N210: összes darab | T210: Backlog: | V210: összes darab
D212: Kód: | E212: Időtartam | F212: Állásidő megnevezése | L212: Kód: | M212: Időtartam | N212: Állásidő megnevezése | T212: Kód: | U212: Időtartam | V212: Állásidő megnevezése
F213: =VLOOKUP(D213,állásidő_kódok!$B:$D,3,0) ->  | N213: =VLOOKUP(L213,állásidő_kódok!$B:$D,3,0) ->  | V213: =VLOOKUP(T213,állásidő_kódok!$B:$D,3,0) -> 
F214: =VLOOKUP(D214,állásidő_kódok!$B:$D,3,0) ->  | N214: =VLOOKUP(L214,állásidő_kódok!$B:$D,3,0) ->  | V214: =VLOOKUP(T214,állásidő_kódok!$B:$D,3,0) -> 
F215: =VLOOKUP(D215,állásidő_kódok!$B:$D,3,0) ->  | N215: =VLOOKUP(L215,állásidő_kódok!$B:$D,3,0) ->  | V215: =VLOOKUP(T215,állásidő_kódok!$B:$D,3,0) -> 
F216: =VLOOKUP(D216,állásidő_kódok!$B:$D,3,0) ->  | N216: =VLOOKUP(L216,állásidő_kódok!$B:$D,3,0) ->  | V216: =VLOOKUP(T216,állásidő_kódok!$B:$D,3,0) -> 
F217: =VLOOKUP(D217,állásidő_kódok!$B:$D,3,0) ->  | N217: =VLOOKUP(L217,állásidő_kódok!$B:$D,3,0) ->  | V217: =VLOOKUP(T217,állásidő_kódok!$B:$D,3,0) -> 
F218: =VLOOKUP(D218,állásidő_kódok!$B:$D,3,0) ->  | N218: =VLOOKUP(L218,állásidő_kódok!$B:$D,3,0) ->  | V218: =VLOOKUP(T218,állásidő_kódok!$B:$D,3,0) -> 
F219: =VLOOKUP(D219,állásidő_kódok!$B:$D,3,0) ->  | N219: =VLOOKUP(L219,állásidő_kódok!$B:$D,3,0) ->  | V219: =VLOOKUP(T219,állásidő_kódok!$B:$D,3,0) -> 
F220: =VLOOKUP(D220,állásidő_kódok!$B:$D,3,0) ->  | N220: =VLOOKUP(L220,állásidő_kódok!$B:$D,3,0) ->  | V220: =VLOOKUP(T220,állásidő_kódok!$B:$D,3,0) -> 
F221: =VLOOKUP(D221,állásidő_kódok!$B:$D,3,0) ->  | N221: =VLOOKUP(L221,állásidő_kódok!$B:$D,3,0) ->  | V221: =VLOOKUP(T221,állásidő_kódok!$B:$D,3,0) -> 
F222: =VLOOKUP(D222,állásidő_kódok!$B:$D,3,0) ->  | N222: =VLOOKUP(L222,állásidő_kódok!$B:$D,3,0) ->  | V222: =VLOOKUP(T222,állásidő_kódok!$B:$D,3,0) -> 
E223: Állásidők nélküli teljesítés: | F223: =((SUM(E213:E222)/445))+E195/E197 -> 0 | M223: Állásidők nélküli teljesítés: | N223: =((SUM(M213:M222)/445))+M195/M197 -> 1 | U223: Állásidők nélküli teljesítés: | V223: =((SUM(U213:U222)/445))+U195/U197 -> 1
B224: =Alapadatok!C10 -> T+R | J224: =B224 -> T+R | R224: =B224 -> T+R
D225: Gyártott: | E225: 36 | F225: db | L225: Gyártott: | M225: 45 | N225: db | T225: Gyártott: | U225: 32 | V225: db
D227: Elvárt darabszám: | E227: 54 | F227: db | H227: Elvárt db/op: | I227: 18 | L227: Elvárt darabszám: | M227: 54 | N227: db | P227: Elvárt db/op: | Q227: 18 | T227: Elvárt darabszám: | U227: 54 | V227: db | X227: Elvárt db/op: | Y227: 18
D228: Szükséges létszám: | E228: 3 | F228: fő | L228: Szükséges létszám: | M228: 3 | N228: fő | T228: Szükséges létszám: | U228: 3 | V228: fő
D229: Aktuális létszám: | E229: 2 | F229: fő | H229: Aktuális db/op: | I229: 18 | L229: Aktuális létszám: | M229: 4 | N229: fő | P229: Aktuális db/op: | Q229: 11.25 | T229: Aktuális létszám: | U229: 0 | V229: fő | X229: Aktuális db/op: | Y229: 0
D231: Operátor | E231: 2 | F231: fő | L231: Operátor | M231: 3 | N231: fő | T231: Operátor | U231: 3 | V231: fő
D232: Koordinátor | F232: fő | L232: Koordinátor | M232: 1 | N232: fő | T232: Koordinátor | V232: fő
D233: Beállító | F233: fő | L233: Beállító | N233: fő | T233: Beállító | V233: fő
... 242 more rows

Sheet wk_45_2
J2: =Alapadatok!C2 -> MG 160/180 | R2: Dátum: | T2: 2018-11-06 | X2: Töltsd ki a kereten belüli fehér mezőket!
B3: Éjszaka | G3: Műszak | J3: Délelőtt | O3: Műszak | R3: Délután | W3: Műszak | Z3: Napi összesítő | AQ3: Levél küldéséhez
AQ4: kattins az ikonra!
C5: =B74 -> Motor sor | G5: =B104 -> 2p Sztátor sor | K5: =J74 -> Motor sor | O5: =J104 -> 2p Sztátor sor | S5: =R74 -> Motor sor | W5: =R104 -> 2p Sztátor sor | AA5: =C5 -> Motor sor | AI5: =O5 -> 2p Sztátor sor
C6: Gyártott db | D6: =E75 -> 52 | E6: db | G6: Gyártott db | H6: =E105 -> 42 | I6: db | K6: Gyártott db | L6: =M75 -> 56 | M6: db | O6: Gyártott db | P6: =M105 -> 52 | Q6: db | S6: Gyártott db | T6: =U75 -> 54 | U6: db | W6: Gyártott db | X6: =U105 -> 33 | Y6: db | AB6: Aktuális | AC6: Elvárt | AE6: Éj | AF6: =IF(D8=0,0,D6/D8) -> 6.5 | AG6: db/fő | AJ6: Aktuális | AK6: Elvárt | AM6: Éj | AN6: =IF(H8=0,0,H6/H8) -> 6 | AO6: db/fő
C7: Elvárt db | D7: =E77 -> 52 | E7: db | G7: Elvárt db | H7: =E107 -> 50 | I7: db | K7: Elvárt db | L7: =M77 -> 54 | M7: db | O7: Elvárt db | P7: =M107 -> 52 | Q7: db | S7: Elvárt db | T7: =U77 -> 54 | U7: db | W7: Elvárt db | X7: =U107 -> 45 | Y7: db | AA7: Darabszám | AB7: =SUM(D6,L6,T6) -> 162 | AC7: =SUM(D7,L7,T7) -> 160 | AD7: db | AE7: De | AF7: =IF(L8=0,0,L6/L8) -> 0 | AG7: db/fő | AI7: Darabszám | AJ7: =SUM(H6,P6,X6) -> 127 | AK7: =SUM(H7,P7,X7) -> 147 | AL7: db | AM7: De | AN7: =IF(P8=0,0,P6/P8) -> 0 | AO7: db/fő
C8: Akt. létszám | D8: =E79 -> 8 | E8: fő | G8: Akt. létszám | H8: =E109 -> 7 | I8: fő | K8: Akt. létszám | L8: =M79 -> 0 | M8: fő | O8: Akt. létszám | P8: =M109 -> 0 | Q8: fő | S8: Akt. létszám | T8: =U79 -> 0 | U8: fő | W8: Akt. létszám | X8: =U109 -> 0 | Y8: fő | AA8: Létszám | AB8: =SUM(D8,L8,T8) -> 8 | AC8: =SUM(D9,L9,T9) -> 23 | AD8: fő | AE8: Du | AF8: =IF(T8=0,0,T6/T8) -> 0 | AG8: db/fő | AI8: Létszám | AJ8: =SUM(H8,P8,X8) -> 7 | AK8: =SUM(H9,P9,X9) -> 17 | AL8: fő | AM8: Du | AN8: =IF(X8=0,0,X6/X8) -> 0 | AO8: db/fő
C9: MPS létszám | D9: =E78 -> 7 | E9: fő | G9: MPS létszám | H9: =E108 -> 6 | I9: fő | K9: MPS létszám | L9: =M78 -> 8 | M9: fő | O9: MPS létszám | P9: =M108 -> 6 | Q9: fő | S9: MPS létszám | T9: =U78 -> 8 | U9: fő | W9: MPS létszám | X9: =U108 -> 5 | Y9: fő | AA9: Össz állásidő | AB9: =SUM(D10,L10,T10) -> 1030 | AD9: perc | AE9: Napi | AF9: =IF(AB8=0,0,AB7/AB8) -> 20.25 | AG9: db/fő | AI9: Össz állásidő | AJ9: =SUM(H10,P10,X10) -> 260 | AL9: perc | AM9: Napi | AN9: =IF(AJ8=0,0,AJ7/AJ8) -> 18.14285714 | AO9: db/fő
C10: Össz állásidő | D10: =SUM(E93:E102) -> 430 | E10: perc | G10: Össz állásidő | H10: =SUM(E123:E132) -> 0 | I10: perc | K10: Össz állásidő | L10: =SUM(M93:M102) -> 300 | M10: perc | O10: Össz állásidő | P10: =SUM(M123:M132) -> 0 | Q10: perc | S10: Össz állásidő | T10: =SUM(U93:U102) -> 300 | U10: perc | W10: Össz állásidő | X10: =SUM(U123:U132) -> 260 | Y10: perc | AA10: Backlog sor/db | AB10: =E88+M88+U88 -> 0 | AC10: =E90+M90+U90 -> 0 | AD10: db | AE10: Elvárt | AF10: =IF(AC8=0,0,AC7/AC8) -> 6.956521739 | AG10: db/fő | AI10: Backlog sor/db | AJ10: =E118+M118+U118 -> 0 | AK10: =E120+M120+U120 -> 0 | AL10: db | AM10: Elvárt | AN10: =IF(AK8=0,0,AK7/AK8) -> 8.647058824 | AO10: db/fő
C11: =B134 -> 4p sztátor sor | G11: =B164 -> DE cella | K11: =J134 -> 4p sztátor sor | O11: =J164 -> DE cella | S11: =R134 -> 4p sztátor sor | W11: =R164 -> DE cella | AA11: =C11 -> 4p sztátor sor | AI11: =O11 -> DE cella
C12: Gyártott db | D12: =E135 -> 0 | E12: db | G12: Gyártott db | H12: =E165 -> 54 | I12: db | K12: Gyártott db | L12: =M135 -> 20 | M12: db | O12: Gyártott db | P12: =M165 -> 57 | Q12: db | S12: Gyártott db | T12: =U135 -> 0 | U12: db | W12: Gyártott db | X12: =U165 -> 33 | Y12: db | AB12: Aktuális | AC12: Elvárt | AE12: Éj | AF12: =IF(D14=0,0,D12/D14) -> 0 | AG12: db/fő | AJ12: Aktuális | AK12: Elvárt | AM12: Éj | AN12: =IF(H14=0,0,H12/H14) -> 27 | AO12: db/fő
C13: Elvárt db | D13: =E137 -> 0 | E13: db | G13: Elvárt db | H13: =E167 -> 52 | I13: db | K13: Elvárt db | L13: =M137 -> 20 | M13: db | O13: Elvárt db | P13: =M167 -> 52 | Q13: db | S13: Elvárt db | T13: =U137 -> 0 | U13: db | W13: Elvárt db | X13: =U167 -> 52 | Y13: db | AA13: Darabszám | AB13: =SUM(D12,L12,T12) -> 20 | AC13: =SUM(D13,L13,T13) -> 20 | AD13: db | AE13: De | AF13: =IF(L14=0,0,L12/L14) -> 0 | AG13: db/fő | AI13: Darabszám | AJ13: =SUM(H12,P12,X12) -> 144 | AK13: =SUM(H13,P13,X13) -> 156 | AL13: db | AM13: De | AN13: =IF(P14=0,0,P12/P14) -> 0 | AO13: db/fő
C14: Akt. létszám | D14: =E139 -> 0 | E14: fő | G14: Akt. létszám | H14: =E169 -> 2 | I14: fő | K14: Akt. létszám | L14: =M139 -> 0 | M14: fő | O14: Akt. létszám | P14: =M169 -> 0 | Q14: fő | S14: Akt. létszám | T14: =U139 -> 0 | U14: fő | W14: Akt. létszám | X14: =U169 -> 0 | Y14: fő | AA14: Létszám | AB14: =SUM(D14,L14,T14) -> 0 | AC14: =SUM(D15,L15,T15) -> 4 | AD14: fő | AE14: Du | AF14: =IF(T14=0,0,T12/T14) -> 0 | AG14: db/fő | AI14: Létszám | AJ14: =SUM(H14,P14,X14) -> 2 | AK14: =SUM(H15,P15,X15) -> 6 | AL14: fő | AM14: Du | AN14: =IF(X14=0,0,X12/X14) -> 0 | AO14: db/fő
C15: MPS létszám | D15: =E138 -> 0 | E15: fő | G15: MPS létszám | H15: =E168 -> 2 | I15: fő | K15: MPS létszám | L15: =M138 -> 4 | M15: fő | O15: MPS létszám | P15: =M168 -> 2 | Q15: fő | S15: MPS létszám | T15: =U138 -> 0 | U15: fő | W15: MPS létszám | X15: =U168 -> 2 | Y15: fő | AA15: Össz állásidő | AB15: =SUM(D16,L16,T16) -> 0 | AD15: perc | AE15: Napi | AF15: =IF(AB14=0,0,AB13/AB14) -> 0 | AG15: db/fő | AI15: Össz állásidő | AJ15: =SUM(H16,P16,X16) -> 150 | AL15: perc | AM15: Napi | AN15: =IF(AJ14=0,0,AJ13/AJ14) -> 72 | AO15: db/fő
C16: Össz állásidő | D16: =SUM(E153:E162) -> 0 | E16: perc | G16: Össz állásidő | H16: =SUM(E183:E192) -> 0 | I16: perc | K16: Össz állásidő | L16: =SUM(M153:M162) -> 0 | M16: perc | O16: Össz állásidő | P16: =SUM(M183:M192) -> 0 | Q16: perc | S16: Össz állásidő | T16: =SUM(U153:U162) -> 0 | U16: perc | W16: Össz állásidő | X16: =SUM(U183:U192) -> 150 | Y16: perc | AA16: Backlog sor/db | AB16: =SUM(E148,M148,U148) -> 0 | AC16: =SUM(E150,M150,U150) -> 0 | AD16: db | AE16: Elvárt | AF16: =IF(AC14=0,0,AC13/AC14) -> 5 | AG16: db/fő | AI16: Backlog sor/db | AJ16: =SUM(E178,M178,U178) -> 0 | AK16: =SUM(E180,M180,U180) -> 0 | AL16: db | AM16: Elvárt | AN16: =IF(AK14=0,0,AK13/AK14) -> 26 | AO16: db/fő
C17: =B194 -> NDE cella | G17: =B224 -> T+R | K17: =J194 -> NDE cella | O17: =J224 -> T+R | S17: =R194 -> NDE cella | W17: =R224 -> T+R | AA17: =C17 -> NDE cella | AI17: =O17 -> T+R
C18: Gyártott db | D18: =E195 -> 0 | E18: db | G18: Gyártott db | H18: =E225 -> 54 | I18: db | K18: Gyártott db | L18: =M195 -> 95 | M18: db | O18: Gyártott db | P18: =M225 -> 54 | Q18: db | S18: Gyártott db | T18: =U195 -> 95 | U18: db | W18: Gyártott db | X18: =U225 -> 57 | Y18: db | AB18: Aktuális | AC18: Elvárt | AE18: Éj | AF18: =IF(D20=0,0,D18/D20) -> 0 | AG18: db/fő | AJ18: Aktuális | AK18: Elvárt | AM18: Éj | AN18: =IF(H20=0,0,H18/H20) -> 18 | AO18: db/fő
C19: Elvárt db | D19: =E197 -> 95 | E19: db | G19: Elvárt db | H19: =E227 -> 54 | I19: db | K19: Elvárt db | L19: =M197 -> 95 | M19: db | O19: Elvárt db | P19: =M227 -> 54 | Q19: db | S19: Elvárt db | T19: =U197 -> 95 | U19: db | W19: Elvárt db | X19: =U227 -> 54 | Y19: db | AA19: Darabszám | AB19: =SUM(D18,L18,T18) -> 190 | AC19: =SUM(D19,L19,T19) -> 285 | AD19: db | AE19: De | AF19: =IF(L20=0,0,L18/L20) -> 0 | AG19: db/fő | AI19: Darabszám | AJ19: =SUM(H18,P18,X18) -> 165 | AK19: =SUM(H19,P19,X19) -> 162 | AL19: db | AM19: De | AN19: =IF(P20=0,0,P18/P20) -> 0 | AO19: db/fő
C20: Akt. létszám | D20: =E199 -> 0 | E20: fő | G20: Akt. létszám | H20: =E229 -> 3 | I20: fő | K20: Akt. létszám | L20: =M199 -> 0 | M20: fő | O20: Akt. létszám | P20: =M229 -> 0 | Q20: fő | S20: Akt. létszám | T20: =U199 -> 0 | U20: fő | W20: Akt. létszám | X20: =U229 -> 0 | Y20: fő | AA20: Létszám | AB20: =SUM(D20,L20,T20) -> 0 | AC20: =SUM(D21,L21,T21) -> 3 | AD20: fő | AE20: Du | AF20: =IF(T20=0,0,T18/T20) -> 0 | AG20: db/fő | AI20: Létszám | AJ20: =SUM(H20,P20,X20) -> 3 | AK20: =SUM(H21,P21,X21) -> 9 | AL20: fő | AM20: Du | AN20: =IF(X20=0,0,X18/X20) -> 0 | AO20: db/fő
C21: MPS létszám | D21: =E198 -> 1 | E21: fő | G21: MPS létszám | H21: =E228 -> 3 | I21: fő | K21: MPS létszám | L21: =M198 -> 1 | M21: fő | O21: MPS létszám | P21: =M228 -> 3 | Q21: fő | S21: MPS létszám | T21: =U198 -> 1 | U21: fő | W21: MPS létszám | X21: =U228 -> 3 | Y21: fő | AA21: Össz állásidő | AB21: =SUM(D22,L22,T22) -> 480 | AD21: perc | AE21: Napi | AF21: =IF(AB20=0,0,AB19/AB20) -> 0 | AG21: db/fő | AI21: Össz állásidő | AJ21: =SUM(H22,P22,X22) -> 0 | AL21: perc | AM21: Napi | AN21: =IF(AJ20=0,0,AJ19/AJ20) -> 55 | AO21: db/fő
C22: Össz állásidő | D22: =SUM(E213:E222) -> 480 | E22: perc | G22: Össz állásidő | H22: =SUM(E243:E252) -> 0 | I22: perc | K22: Össz állásidő | L22: =SUM(M213:M222) -> 0 | M22: perc | O22: Össz állásidő | P22: =SUM(M243:M252) -> 0 | Q22: perc | S22: Össz állásidő | T22: =SUM(U213:U222) -> 0 | U22: perc | W22: Össz állásidő | X22: =SUM(U243:U252) -> 0 | Y22: perc | AA22: Backlog sor/db | AB22: =SUM(E208,M208,U208) -> 0 | AC22: =SUM(E210,M210,U210) -> 0 | AD22: db | AE22: Elvárt | AF22: =IF(AC20=0,0,AC19/AC20) -> 95 | AG22: db/fő | AI22: Backlog sor/db | AJ22: =SUM(E238,M238,U238) -> 0 | AK22: =SUM(E240,M240,U240) -> 0 | AL22: db | AM22: Elvárt | AN22: =IF(AK20=0,0,AK19/AK20) -> 18 | AO22: db/fő
C23: =B254 -> Cella7 | G23: =B284 -> Cella8 | K23: =J254 -> Cella7 | O23: =J284 -> Cella8 | S23: =R254 -> Cella7 | W23: =R284 -> Cella8 | AA23: =C23 -> Cella7 | AI23: =O23 -> Cella8
C24: Gyártott db | D24: =E255 -> 0 | E24: db | G24: Gyártott db | H24: =E285 -> 0 | I24: db | K24: Gyártott db | L24: =M255 -> 0 | M24: db | O24: Gyártott db | P24: =M285 -> 0 | Q24: db | S24: Gyártott db | T24: =U255 -> 0 | U24: db | W24: Gyártott db | X24: =U285 -> 0 | Y24: db | AB24: Aktuális | AC24: Elvárt | AE24: Éj | AF24: =IF(D26=0,0,D24/D26) -> 0 | AG24: db/fő | AJ24: Aktuális | AK24: Elvárt | AM24: Éj | AN24: =IF(H26=0,0,H24/H26) -> 0 | AO24: db/fő
C25: Elvárt db | D25: =E257 -> 0 | E25: db | G25: Elvárt db | H25: =E287 -> 0 | I25: db | K25: Elvárt db | L25: =M257 -> 0 | M25: db | O25: Elvárt db | P25: =M287 -> 0 | Q25: db | S25: Elvárt db | T25: =U257 -> 0 | U25: db | W25: Elvárt db | X25: =U287 -> 0 | Y25: db | AA25: Darabszám | AB25: =SUM(D24,L24,T24) -> 0 | AC25: =SUM(D25,L25,T25) -> 0 | AD25: db | AE25: De | AF25: =IF(L26=0,0,L24/L26) -> 0 | AG25: db/fő | AI25: Darabszám | AJ25: =SUM(H24,P24,X24) -> 0 | AK25: =SUM(H25,P25,X25) -> 0 | AL25: db | AM25: De | AN25: =IF(P26=0,0,P24/P26) -> 0 | AO25: db/fő
C26: Akt. létszám | D26: =E259 -> 0 | E26: fő | G26: Akt. létszám | H26: =E289 -> 0 | I26: fő | K26: Akt. létszám | L26: =M259 -> 0 | M26: fő | O26: Akt. létszám | P26: =M289 -> 0 | Q26: fő | S26: Akt. létszám | T26: =U259 -> 0 | U26: fő | W26: Akt. létszám | X26: =U289 -> 0 | Y26: fő | AA26: Létszám | AB26: =SUM(D26,L26,T26) -> 0 | AC26: =SUM(D27,L27,T27) -> 0 | AD26: fő | AE26: Du | AF26: =IF(T26=0,0,T24/T26) -> 0 | AG26: db/fő | AI26: Létszám | AJ26: =SUM(H26,P26,X26) -> 0 | AK26: =SUM(H27,P27,X27) -> 0 | AL26: fő | AM26: Du | AN26: =IF(X26=0,0,X24/X26) -> 0 | AO26: db/fő
C27: MPS létszám | D27: =E258 -> 0 | E27: fő | G27: MPS létszám | H27: =E288 -> 0 | I27: fő | K27: MPS létszám | L27: =M258 -> 0 | M27: fő | O27: MPS létszám | P27: =M288 -> 0 | Q27: fő | S27: MPS létszám | T27: =U258 -> 0 | U27: fő | W27: MPS létszám | X27: =U288 -> 0 | Y27: fő | AA27: Össz állásidő | AB27: =SUM(D28,L28,T28) -> 0 | AD27: perc | AE27: Napi | AF27: =IF(AB26=0,0,AB25/AB26) -> 0 | AG27: db/fő | AI27: Össz állásidő | AJ27: =SUM(H28,P28,X28) -> 0 | AL27: perc | AM27: Napi | AN27: =IF(AJ26=0,0,AJ25/AJ26) -> 0 | AO27: db/fő
C28: Össz állásidő | D28: =SUM(E273:E282) -> 0 | E28: perc | G28: Össz állásidő | H28: =SUM(E303:E312) -> 0 | I28: perc | K28: Össz állásidő | L28: =SUM(M273:M282) -> 0 | M28: perc | O28: Össz állásidő | P28: =SUM(M303:M312) -> 0 | Q28: perc | S28: Össz állásidő | T28: =SUM(U273:U282) -> 0 | U28: perc | W28: Össz állásidő | X28: =SUM(U303:U312) -> 0 | Y28: perc | AA28: Backlog sor/db | AB28: =SUM(E160,M160,U160) -> 0 | AC28: =SUM(E162,M162,U162) -> 0 | AD28: db | AE28: Elvárt | AF28: =IF(AC26=0,0,AC25/AC26) -> 0 | AG28: db/fő | AI28: Backlog sor/db | AJ28: =SUM(E160,M160,U160) -> 0 | AK28: =SUM(E162,M162,U162) -> 0 | AL28: db | AM28: Elvárt | AN28: =IF(AK26=0,0,AK25/AK26) -> 0 | AO28: db/fő
C29: =B314 -> Cella9 | G29: =B344 -> Cella10 | K29: =J314 -> Cella9 | O29: =J344 -> Cella10 | S29: =R314 -> Cella9 | W29: =R344 -> Cella10 | AA29: =C29 -> Cella9 | AI29: =G29 -> Cella10
C30: Gyártott db | D30: =E315 -> 0 | E30: db | G30: Gyártott db | H30: =E345 -> 0 | I30: db | K30: Gyártott db | L30: =M315 -> 0 | M30: db | O30: Gyártott db | P30: =M345 -> 0 | Q30: db | S30: Gyártott db | T30: =U315 -> 0 | U30: db | W30: Gyártott db | X30: =U345 -> 0 | Y30: db | AB30: Aktuális | AC30: Elvárt | AE30: Éj | AF30: =IF(D32=0,0,D30/D32) -> 0 | AG30: db/fő | AJ30: Aktuális | AK30: Elvárt | AM30: Éj | AN30: =IF(D32=0,0,D30/D32) -> 0 | AO30: db/fő
C31: Elvárt db | D31: =E317 -> 0 | E31: db | G31: Elvárt db | H31: =E347 -> 0 | I31: db | K31: Elvárt db | L31: =M317 -> 0 | M31: db | O31: Elvárt db | P31: =M347 -> 0 | Q31: db | S31: Elvárt db | T31: =U317 -> 0 | U31: db | W31: Elvárt db | X31: =U347 -> 0 | Y31: db | AA31: Darabszám | AB31: =SUM(D30,L30,T30) -> 0 | AC31: =SUM(D31,L31,T31) -> 0 | AD31: db | AE31: De | AF31: =IF(L32=0,0,L30/L32) -> 0 | AG31: db/fő | AI31: Darabszám | AJ31: =SUM(H30,P30,X30) -> 0 | AK31: =SUM(H31,P31,X31) -> 0 | AL31: db | AM31: De | AN31: =IF(L32=0,0,L30/L32) -> 0 | AO31: db/fő
C32: Akt. létszám | D32: =E319 -> 0 | E32: fő | G32: Akt. létszám | H32: =E349 -> 0 | I32: fő | K32: Akt. létszám | L32: =M319 -> 0 | M32: fő | O32: Akt. létszám | P32: =M349 -> 0 | Q32: fő | S32: Akt. létszám | T32: =U319 -> 0 | U32: fő | W32: Akt. létszám | X32: =U349 -> 0 | Y32: fő | AA32: Létszám | AB32: =SUM(D32,L32,T32) -> 0 | AC32: =SUM(D33,L33,T33) -> 0 | AD32: fő | AE32: Du | AF32: =IF(T32=0,0,T30/T32) -> 0 | AG32: db/fő | AI32: Létszám | AJ32: =SUM(H32,P32,X32) -> 0 | AK32: =SUM(H33,P33,X33) -> 0 | AL32: fő | AM32: Du | AN32: =IF(T32=0,0,T30/T32) -> 0 | AO32: db/fő
C33: MPS létszám | D33: =E318 -> 0 | E33: fő | G33: MPS létszám | H33: =E348 -> 0 | I33: fő | K33: MPS létszám | L33: =M318 -> 0 | M33: fő | O33: MPS létszám | P33: =M348 -> 0 | Q33: fő | S33: MPS létszám | T33: =U318 -> 0 | U33: fő | W33: MPS létszám | X33: =U348 -> 0 | Y33: fő | AA33: Össz állásidő | AB33: =SUM(D34,L34,T34) -> 0 | AD33: perc | AE33: Napi | AF33: =IF(AB32=0,0,AB31/AB32) -> 0 | AG33: db/fő | AI33: Össz állásidő | AJ33: =SUM(H34,P34,X34) -> 0 | AL33: perc | AM33: Napi | AN33: =IF(AJ32=0,0,AJ31/AJ32) -> 0 | AO33: db/fő
C34: Össz állásidő | D34: =SUM(E333:E342) -> 0 | E34: perc | G34: Össz állásidő | H34: =SUM(E363:E372) -> 0 | I34: perc | K34: Össz állásidő | L34: =SUM(M333:M342) -> 0 | M34: perc | O34: Össz állásidő | P34: =SUM(M363:M372) -> 0 | Q34: perc | S34: Össz állásidő | T34: =SUM(U333:U342) -> 0 | U34: perc | W34: Össz állásidő | X34: =SUM(U363:U372) -> 0 | Y34: perc | AA34: Backlog sor/db | AB34: =SUM(E166,M166,U166) -> 0 | AC34: =SUM(E168,M168,U168) -> 6 | AD34: db | AE34: Elvárt | AF34: =IF(AC32=0,0,AC31/AC32) -> 0 | AG34: db/fő | AI34: Backlog sor/db | AJ34: =SUM(E172,M172,U172) -> 0 | AK34: =SUM(E174,M174,U174) -> 0 | AL34: db | AM34: Elvárt | AN34: =IF(AK32=0,0,AK31/AK32) -> 0 | AO34: db/fő
C35: =B374 -> Cella11 | G35: =B404 -> Cella12 | K35: =J374 -> Cella11 | O35: =J404 -> Cella12 | S35: =R374 -> Cella11 | W35: =R404 -> Cella12 | AA35: =C35 -> Cella11 | AI35: =G35 -> Cella12
C36: Gyártott db | D36: =E375 -> 0 | E36: db | G36: Gyártott db | H36: =E405 -> 0 | I36: db | K36: Gyártott db | L36: =M375 -> 0 | M36: db | O36: Gyártott db | P36: =M405 -> 0 | Q36: db | S36: Gyártott db | T36: =U375 -> 0 | U36: db | W36: Gyártott db | X36: =U405 -> 0 | Y36: db | AB36: Aktuális | AC36: Elvárt | AE36: Éj | AF36: =IF(D38=0,0,D36/D38) -> 0 | AG36: db/fő | AJ36: Aktuális | AK36: Elvárt | AM36: Éj | AN36: =IF(H38=0,0,H36/H38) -> 0 | AO36: db/fő
C37: Elvárt db | D37: =E377 -> 0 | E37: db | G37: Elvárt db | H37: =E407 -> 0 | I37: db | K37: Elvárt db | L37: =M377 -> 0 | M37: db | O37: Elvárt db | P37: =M407 -> 0 | Q37: db | S37: Elvárt db | T37: =U377 -> 0 | U37: db | W37: Elvárt db | X37: =U407 -> 0 | Y37: db | AA37: Darabszám | AB37: =SUM(D36,L36,T36) -> 0 | AC37: =SUM(D37,L37,T37) -> 0 | AD37: db | AE37: De | AF37: =IF(L38=0,0,L36/L38) -> 0 | AG37: db/fő | AI37: Darabszám | AJ37: =SUM(H36,LX36,X36) -> 0 | AK37: =SUM(H37,P37,X37) -> 0 | AL37: db | AM37: De | AN37: =IF(P38=0,0,P36/P38) -> 0 | AO37: db/fő
C38: Akt. létszám | D38: =E379 -> 0 | E38: fő | G38: Akt. létszám | H38: =E409 -> 0 | I38: fő | K38: Akt. létszám | L38: =M379 -> 0 | M38: fő | O38: Akt. létszám | P38: =M409 -> 0 | Q38: fő | S38: Akt. létszám | T38: =U379 -> 0 | U38: fő | W38: Akt. létszám | X38: =U409 -> 0 | Y38: fő | AA38: Létszám | AB38: =SUM(D38,L38,T38) -> 0 | AC38: =SUM(D39,L39,T39) -> 0 | AD38: fő | AE38: Du | AF38: =IF(T38=0,0,T36/T38) -> 0 | AG38: db/fő | AI38: Létszám | AJ38: =SUM(H38,P38,X38) -> 0 | AK38: =SUM(H39,P39,X39) -> 0 | AL38: fő | AM38: Du | AN38: =IF(X38=0,0,X37/X38) -> 0 | AO38: db/fő
C39: MPS létszám | D39: =E378 -> 0 | E39: fő | G39: MPS létszám | H39: =E408 -> 0 | I39: fő | K39: MPS létszám | L39: =M378 -> 0 | M39: fő | O39: MPS létszám | P39: =M408 -> 0 | Q39: fő | S39: MPS létszám | T39: =U378 -> 0 | U39: fő | W39: MPS létszám | X39: =U408 -> 0 | Y39: fő | AA39: Össz állásidő | AB39: =SUM(D40,L40,T40) -> 0 | AD39: perc | AE39: Napi | AF39: =IF(AB38=0,0,AB37/AB38) -> 0 | AG39: db/fő | AI39: Össz állásidő | AJ39: =SUM(H40,P40,X40) -> 0 | AL39: perc | AM39: Napi | AN39: =IF(AJ38=0,0,AJ37/AJ38) -> 0 | AO39: db/fő
C40: Össz állásidő | D40: =SUM(E393:E402) -> 0 | E40: perc | G40: Össz állásidő | H40: =SUM(E423:E432) -> 0 | I40: perc | K40: Össz állásidő | L40: =SUM(M393:M402) -> 0 | M40: perc | O40: Össz állásidő | P40: =SUM(M423:M432) -> 0 | Q40: perc | S40: Össz állásidő | T40: =SUM(U393:U402) -> 0 | U40: perc | W40: Össz állásidő | X40: =SUM(U423:U432) -> 0 | Y40: perc | AA40: Backlog sor/db | AB40: =SUM(E172,M172,U172) -> 0 | AC40: =SUM(E174,M174,U174) -> 0 | AD40: db | AE40: Elvárt | AF40: =IF(AC38=0,0,AC37/AC38) -> 0 | AG40: db/fő | AI40: Backlog sor/db | AJ40: =SUM(E178,M178,U178) -> 0 | AK40: =SUM(E180,M180,U180) -> 0 | AL40: db | AM40: Elvárt | AN40: =IF(AK38=0,0,AK37/AK38) -> 0 | AO40: db/fő
C41: =B434 -> Cella13 | G41: =B464 -> Cella14 | K41: =J434 -> Cella13 | O41: =J464 -> Cella14 | S41: =R434 -> Cella13 | W41: =R464 -> Cella14 | AA41: =C41 -> Cella13 | AI41: =G41 -> Cella14
C42: Gyártott db | D42: =E435 -> 0 | E42: db | G42: Gyártott db | H42: =E465 -> 0 | I42: db | K42: Gyártott db | L42: =M435 -> 0 | M42: db | O42: Gyártott db | P42: =M465 -> 0 | Q42: db | S42: Gyártott db | T42: =U435 -> 0 | U42: db | W42: Gyártott db | X42: =U465 -> 0 | Y42: db | AB42: Aktuális | AC42: Elvárt | AE42: Éj | AF42: =IF(D44=0,0,D42/D44) -> 0 | AG42: db/fő | AJ42: Aktuális | AK42: Elvárt | AM42: Éj | AN42: =IF(H44=0,0,H42/H44) -> 0 | AO42: db/fő
C43: Elvárt db | D43: =E437 -> 0 | E43: db | G43: Elvárt db | H43: =E467 -> 0 | I43: db | K43: Elvárt db | L43: =M437 -> 0 | M43: db | O43: Elvárt db | P43: =M467 -> 0 | Q43: db | S43: Elvárt db | T43: =U437 -> 0 | U43: db | W43: Elvárt db | X43: =U467 -> 0 | Y43: db | AA43: Darabszám | AB43: =SUM(D42,L42,T42) -> 0 | AC43: =SUM(D43,L43,T43) -> 0 | AD43: db | AE43: De | AF43: =IF(L44=0,0,L42/L44) -> 0 | AG43: db/fő | AI43: Darabszám | AJ43: =SUM(H42,P42,X42) -> 0 | AK43: =SUM(H43,P43,X43) -> 0 | AL43: db | AM43: De | AN43: =IF(P44=0,0,P42/P44) -> 0 | AO43: db/fő
C44: Akt. létszám | D44: =E439 -> 0 | E44: fő | G44: Akt. létszám | H44: =E469 -> 0 | I44: fő | K44: Akt. létszám | L44: =M439 -> 0 | M44: fő | O44: Akt. létszám | P44: =M469 -> 0 | Q44: fő | S44: Akt. létszám | T44: =U439 -> 0 | U44: fő | W44: Akt. létszám | X44: =U469 -> 0 | Y44: fő | AA44: Létszám | AB44: =SUM(D44,L44,T44) -> 0 | AC44: =SUM(D45,L45,T45) -> 0 | AD44: fő | AE44: Du | AF44: =IF(T44=0,0,T42/T44) -> 0 | AG44: db/fő | AI44: Létszám | AJ44: =SUM(D56,L56,T56) -> 0 | AK44: =SUM(D57,L57,T57) -> 0 | AL44: fő | AM44: Du | AN44: =IF(X44=0,0,X42/X44) -> 0 | AO44: db/fő
C45: MPS létszám | D45: =E438 -> 0 | E45: fő | G45: MPS létszám | H45: =E468 -> 0 | I45: fő | K45: MPS létszám | L45: =M438 -> 0 | M45: fő | O45: MPS létszám | P45: =M468 -> 0 | Q45: fő | S45: MPS létszám | T45: =U438 -> 0 | U45: fő | W45: MPS létszám | X45: =U468 -> 0 | Y45: fő | AA45: Össz állásidő | AB45: =SUM(D46,L46,T46) -> 0 | AD45: perc | AE45: Napi | AF45: =IF(AB44=0,0,AB43/AB44) -> 0 | AG45: db/fő | AI45: Össz állásidő | AJ45: =SUM(D58,L58,T58) -> 0 | AL45: perc | AM45: Napi | AN45: =IF(AJ44=0,0,AJ43/AJ44) -> 0 | AO45: db/fő
C46: Össz állásidő | D46: =SUM(E453:E462) -> 0 | E46: perc | G46: Össz állásidő | H46: =SUM(E483:E492) -> 0 | I46: perc | K46: Össz állásidő | L46: =SUM(M453:M462) -> 0 | M46: perc | O46: Össz állásidő | P46: =SUM(M483:M492) -> 0 | Q46: perc | S46: Össz állásidő | T46: =SUM(U453:U462) -> 0 | U46: perc | W46: Össz állásidő | X46: =SUM(U483:U492) -> 0 | Y46: perc | AA46: Backlog sor/db | AB46: =SUM(E178,M178,U178) -> 0 | AC46: =SUM(E180,M180,U180) -> 0 | AD46: db | AE46: Elvárt | AF46: =IF(AC44=0,0,AC43/AC44) -> 0 | AG46: db/fő | AI46: Backlog sor/db | AJ46: =SUM(E190,M190,U190) -> 0 | AK46: =SUM(E192,M192,U192) -> 0 | AL46: db | AM46: Elvárt | AN46: =IF(AK44=0,0,AK43/AK44) -> 0 | AO46: db/fő
C47: =B494 -> Cella15 | K47: =J494 -> Cella15 | S47: =R494 -> Cella15 | AA47: =C47 -> Cella15
C48: Gyártott db | D48: =E495 -> 0 | E48: db | K48: Gyártott db | L48: =M495 -> 0 | M48: db | S48: Gyártott db | T48: =U495 -> 0 | U48: db | AB48: Aktuális | AC48: Elvárt | AE48: Éj | AF48: =IF(D50=0,0,D48/D50) -> 0 | AG48: db/fő
C49: Elvárt db | D49: =E497 -> 0 | E49: db | K49: Elvárt db | L49: =M497 -> 0 | M49: db | S49: Elvárt db | T49: =U497 -> 0 | U49: db | AA49: Darabszám | AB49: =SUM(D48,L48,T48) -> 0 | AC49: =SUM(D49,L49,T49) -> 0 | AD49: db | AE49: De | AF49: =IF(L50=0,0,L48/L50) -> 0 | AG49: db/fő
C50: Akt. létszám | D50: =E499 -> 0 | E50: fő | K50: Akt. létszám | L50: =M499 -> 0 | M50: fő | S50: Akt. létszám | T50: =U499 -> 0 | U50: fő | AA50: Létszám | AB50: =SUM(D50,L50,T50) -> 0 | AC50: =SUM(D51,L51,T51) -> 0 | AD50: fő | AE50: Du | AF50: =IF(T50=0,0,T48/T50) -> 0 | AG50: db/fő
C51: MPS létszám | D51: =E498 -> 0 | E51: fő | K51: MPS létszám | L51: =M498 -> 0 | M51: fő | S51: MPS létszám | T51: =U498 -> 0 | U51: fő | AA51: Össz állásidő | AB51: =SUM(D52,L52,T52) -> 0 | AD51: perc | AE51: Napi | AF51: =IF(AB50=0,0,AB49/AB50) -> 0 | AG51: db/fő
C52: Össz állásidő | D52: =SUM(E513:E522) -> 0 | E52: perc | K52: Össz állásidő | L52: =SUM(M513:M522) -> 0 | M52: perc | S52: Össz állásidő | T52: =SUM(U513:U522) -> 0 | U52: perc | AA52: Backlog sor/db | AB52: =SUM(E194,M194,U194) -> 0 | AC52: =SUM(E196,M196,U196) -> 0 | AD52: db | AE52: Elvárt | AF52: =IF(AC50=0,0,AC49/AC50) -> 0 | AG52: db/fő
B54: Megjegyzés/egyéb fontos információ: | I54: Megoldva? | J54: Megjegyzés/egyéb fontos információ: | Q54: Megoldva? | R54: Megjegyzés/egyéb fontos információ: | Y54: Megoldva?
B55: Biztonság | J55: Biztonság | R55: Biztonság
B57: Minőség | J57: Minőség | R57: Minőség
B59: Termelés | D59: Besütő: db E-tower: db | J59: Termelés | L59: Besütő:14db, E- tower:36db, | R59: Termelés | T59: BESÜTŐ: 64db, E-TOWER: 40db .
D60: BWS: 40db Lakkozó: 71db | L60: BWS:52db Alliance:40db Fornax:0db | T60: BWS:40db db
B61: Dolgozók | D61: Szabi: - Beteg: - | J61: Dolgozók | L61: Szabi:2fő Beteg:2fő | R61: Dolgozók
D62: 112 Qtn: 1fő | T62: 1 fő CNC- s a motorsoron. Szabi:2fő Beteg:3fő
B63: Támogatók | D63: megrendelő:16 MGE: 10db | J63: Támogatók | L63: megrendelő : 11db HM: 12db | R63: Támogatók | T63: megrendelő:10db HM:17db
B65: 5S | J65: 5S | R65: 5S
B67: Karbantartás | J67: Karbantartás | L67: T+R bal alsó tálca minden felnyitáskor | R67: Karbantartás | T67: a motorsoron lift és darú javítás PM12 mlsz:6909707
L68: letilt. PM11 elküldve.
D71: Szt. backlog:
D72: Motor backlog:
B74: =Alapadatok!C5 -> Motor sor | J74: =B74 -> Motor sor | R74: =B74 -> Motor sor
D75: Gyártott: | E75: 52 | F75: db | L75: Gyártott: | M75: 56 | N75: db | T75: Gyártott: | U75: 54 | V75: db
D77: Elvárt darabszám: | E77: 52 | F77: db | H77: Elvárt db/op: | I77: 7.43 | L77: Elvárt darabszám: | M77: 54 | N77: db | P77: Elvárt db/op: | Q77: 6.75 | T77: Elvárt darabszám: | U77: 54 | V77: db | X77: Elvárt db/op: | Y77: 6.75
D78: Szükséges létszám: | E78: 7 | F78: fő | L78: Szükséges létszám: | M78: 8 | N78: fő | T78: Szükséges létszám: | U78: 8 | V78: fő
D79: Aktuális létszám: | E79: 8 | F79: fő | H79: Aktuális db/op: | I79: 6.5 | L79: Aktuális létszám: | M79: 0 | N79: fő | P79: Aktuális db/op: | Q79: 0 | T79: Aktuális létszám: | U79: 0 | V79: fő | X79: Aktuális db/op: | Y79: 0
D81: Operátor | E81: 7 | F81: fő | L81: Operátor | M81: 6 | N81: fő | T81: Operátor | U81: 8 | V81: fő
D82: Koordinátor | E82: 1 | F82: fő | L82: Koordinátor | M82: 1 | N82: fő | T82: Koordinátor | V82: fő
D83: Beállító | F83: fő | L83: Beállító | N83: fő | T83: Beállító | V83: fő
D84: QA, Service | F84: fő | L84: QA, Service | N84: fő | T84: QA, Service | V84: fő
D85: Anyagszállító | F85: fő | L85: Anyagszállító | N85: fő | T85: Anyagszállító | V85: fő
D86: Egyéb | F86: fő | L86: Egyéb | M86: 1 | N86: fő | T86: Egyéb | V86: fő
D88: Backlog: | F88: sorok száma | L88: Backlog: | N88: sorok száma | T88: Backlog: | V88: sorok száma
D90: Backlog: | F90: összes darab | L90: Backlog: | N90: összes darab | T90: Backlog: | V90: összes darab
D92: Kód: | E92: Időtartam | F92: Állásidő megnevezése | L92: Kód: | M92: Időtartam | N92: Állásidő megnevezése | T92: Kód: | U92: Időtartam | V92: Állásidő megnevezése
D93: 200 | E93: 30 | F93: =VLOOKUP(D93,állásidő_kódok!$B:$D,3,0) -> AE - Anyaghiány Szupermarketból | L93: 200 | M93: 200 | N93: =VLOOKUP(L93,állásidő_kódok!$B:$D,3,0) -> AE - Anyaghiány Szupermarketból | T93: 200 | U93: 100 | V93: =VLOOKUP(T93,állásidő_kódok!$B:$D,3,0) -> AE - Anyaghiány Szupermarketból
F94: =VLOOKUP(D94,állásidő_kódok!$B:$D,3,0) ->  | N94: =VLOOKUP(L94,állásidő_kódok!$B:$D,3,0) ->  | V94: =VLOOKUP(T94,állásidő_kódok!$B:$D,3,0) -> 
F95: =VLOOKUP(D95,állásidő_kódok!$B:$D,3,0) ->  | N95: =VLOOKUP(L95,állásidő_kódok!$B:$D,3,0) ->  | V95: =VLOOKUP(T95,állásidő_kódok!$B:$D,3,0) -> 
F96: =VLOOKUP(D96,állásidő_kódok!$B:$D,3,0) ->  | N96: =VLOOKUP(L96,állásidő_kódok!$B:$D,3,0) ->  | V96: =VLOOKUP(T96,állásidő_kódok!$B:$D,3,0) -> 
F97: =VLOOKUP(D97,állásidő_kódok!$B:$D,3,0) ->  | N97: =VLOOKUP(L97,állásidő_kódok!$B:$D,3,0) ->  | V97: =VLOOKUP(T97,állásidő_kódok!$B:$D,3,0) -> 
F98: =VLOOKUP(D98,állásidő_kódok!$B:$D,3,0) ->  | N98: =VLOOKUP(L98,állásidő_kódok!$B:$D,3,0) ->  | V98: =VLOOKUP(T98,állásidő_kódok!$B:$D,3,0) -> 
F99: =VLOOKUP(D99,állásidő_kódok!$B:$D,3,0) ->  | N99: =VLOOKUP(L99,állásidő_kódok!$B:$D,3,0) ->  | V99: =VLOOKUP(T99,állásidő_kódok!$B:$D,3,0) -> 
F100: =VLOOKUP(D100,állásidő_kódok!$B:$D,3,0) ->  | N100: =VLOOKUP(L100,állásidő_kódok!$B:$D,3,0) ->  | V100: =VLOOKUP(T100,állásidő_kódok!$B:$D,3,0) -> 
F101: =VLOOKUP(D101,állásidő_kódok!$B:$D,3,0) ->  | N101: =VLOOKUP(L101,állásidő_kódok!$B:$D,3,0) ->  | V101: =VLOOKUP(T101,állásidő_kódok!$B:$D,3,0) -> 
D102: 205 | E102: 400 | F102: =VLOOKUP(D102,állásidő_kódok!$B:$D,3,0) -> AE - Csomagolóanyag hiány | L102: 1 | M102: 100 | N102: =VLOOKUP(L102,állásidő_kódok!$B:$D,3,0) -> E-I. - Emberi erőforrás hiány | T102: 5 | U102: 200 | V102: =VLOOKUP(T102,állásidő_kódok!$B:$D,3,0) -> E-I. - 5%-os emberi erőforrás hiány
E103: Állásidők nélküli teljesítés: | F103: =((SUM(E93:E102)/445))+E75/E77 -> 1.966292135 | M103: Állásidők nélküli teljesítés: | N103: =((SUM(M93:M102)/445))+M75/M77 -> 1.71119434 | U103: Állásidők nélküli teljesítés: | V103: =((SUM(U93:U102)/445))+U75/U77 -> 1.674157303
B104: =Alapadatok!C6 -> 2p Sztátor sor | J104: =B104 -> 2p Sztátor sor | R104: =B104 -> 2p Sztátor sor
D105: Gyártott: | E105: 42 | F105: db | L105: Gyártott: | M105: 52 | N105: db | T105: Gyártott: | U105: 33 | V105: db
D107: Elvárt darabszám: | E107: 50 | F107: db | H107: Elvárt db/op: | I107: 8.33 | L107: Elvárt darabszám: | M107: 52 | N107: db | P107: Elvárt db/op: | Q107: 8.67 | T107: Elvárt darabszám: | U107: 45 | V107: db | X107: Elvárt db/op: | Y107: 9
D108: Szükséges létszám: | E108: 6 | F108: fő | L108: Szükséges létszám: | M108: 6 | N108: fő | T108: Szükséges létszám: | U108: 5 | V108: fő
D109: Aktuális létszám: | E109: 7 | F109: fő | H109: Aktuális db/op: | I109: 6 | L109: Aktuális létszám: | M109: 0 | N109: fő | P109: Aktuális db/op: | Q109: 0 | T109: Aktuális létszám: | U109: 0 | V109: fő | X109: Aktuális db/op: | Y109: 0
D111: Operátor | E111: 5 | F111: fő | L111: Operátor | M111: 6 | N111: fő | T111: Operátor | U111: 4 | V111: fő
D112: Koordinátor | E112: 1 | F112: fő | L112: Koordinátor | M112: 1 | N112: fő | T112: Koordinátor | U112: 1 | V112: fő
D113: Beállító | E113: 1 | F113: fő | L113: Beállító | M113: 1 | N113: fő | T113: Beállító | U113: 1 | V113: fő
D114: QA, Service | F114: fő | L114: QA, Service | N114: fő | T114: QA, Service | V114: fő
D115: Anyagszállító | F115: fő | L115: Anyagszállító | N115: fő | T115: Anyagszállító | V115: fő
D116: Egyéb | F116: fő | L116: Egyéb | N116: fő | T116: Egyéb | V116: fő
D118: Backlog: | F118: sorok száma | L118: Backlog: | N118: sorok száma | T118: Backlog: | V118: sorok száma
D120: Backlog: | F120: összes darab | L120: Backlog: | N120: összes darab | T120: Backlog: | V120: összes darab
D122: Kód: | E122: Időtartam | F122: Állásidő megnevezése | L122: Kód: | M122: Időtartam | N122: Állásidő megnevezése | T122: Kód: | U122: Időtartam | V122: Állásidő megnevezése
F123: =VLOOKUP(D123,állásidő_kódok!$B:$D,3,0) ->  | N123: =VLOOKUP(L123,állásidő_kódok!$B:$D,3,0) ->  | T123: 100 | U123: 60 | V123: =VLOOKUP(T123,állásidő_kódok!$B:$D,3,0) -> E-II. - Betanulás-betanítás
F124: =VLOOKUP(D124,állásidő_kódok!$B:$D,3,0) ->  | N124: =VLOOKUP(L124,állásidő_kódok!$B:$D,3,0) ->  | T124: 1 | U124: 200 | V124: =VLOOKUP(T124,állásidő_kódok!$B:$D,3,0) -> E-I. - Emberi erőforrás hiány
F125: =VLOOKUP(D125,állásidő_kódok!$B:$D,3,0) ->  | N125: =VLOOKUP(L125,állásidő_kódok!$B:$D,3,0) ->  | V125: =VLOOKUP(T125,állásidő_kódok!$B:$D,3,0) -> 
F126: =VLOOKUP(D126,állásidő_kódok!$B:$D,3,0) ->  | N126: =VLOOKUP(L126,állásidő_kódok!$B:$D,3,0) ->  | V126: =VLOOKUP(T126,állásidő_kódok!$B:$D,3,0) -> 
F127: =VLOOKUP(D127,állásidő_kódok!$B:$D,3,0) ->  | N127: =VLOOKUP(L127,állásidő_kódok!$B:$D,3,0) ->  | V127: =VLOOKUP(T127,állásidő_kódok!$B:$D,3,0) -> 
F128: =VLOOKUP(D128,állásidő_kódok!$B:$D,3,0) ->  | N128: =VLOOKUP(L128,állásidő_kódok!$B:$D,3,0) ->  | V128: =VLOOKUP(T128,állásidő_kódok!$B:$D,3,0) -> 
F129: =VLOOKUP(D129,állásidő_kódok!$B:$D,3,0) ->  | N129: =VLOOKUP(L129,állásidő_kódok!$B:$D,3,0) ->  | V129: =VLOOKUP(T129,állásidő_kódok!$B:$D,3,0) -> 
F130: =VLOOKUP(D130,állásidő_kódok!$B:$D,3,0) ->  | N130: =VLOOKUP(L130,állásidő_kódok!$B:$D,3,0) ->  | V130: =VLOOKUP(T130,állásidő_kódok!$B:$D,3,0) -> 
F131: =VLOOKUP(D131,állásidő_kódok!$B:$D,3,0) ->  | N131: =VLOOKUP(L131,állásidő_kódok!$B:$D,3,0) ->  | V131: =VLOOKUP(T131,állásidő_kódok!$B:$D,3,0) -> 
F132: =VLOOKUP(D132,állásidő_kódok!$B:$D,3,0) ->  | N132: =VLOOKUP(L132,állásidő_kódok!$B:$D,3,0) ->  | V132: =VLOOKUP(T132,állásidő_kódok!$B:$D,3,0) -> 
E133: Állásidők nélküli teljesítés: | F133: =((SUM(E123:E132)/445))+E105/E107 -> 0.84 | M133: Állásidők nélküli teljesítés: | N133: =((SUM(M123:M132)/445))+M105/M107 -> 1 | U133: Állásidők nélküli teljesítés: | V133: =((SUM(U123:U132)/445))+U105/U107 -> 1.317602996
B134: =Alapadatok!C7 -> 4p sztátor sor | J134: =B134 -> 4p sztátor sor | R134: =B134 -> 4p sztátor sor
D135: Gyártott: | F135: db | L135: Gyártott: | M135: 20 | N135: db | T135: Gyártott: | V135: db
D137: Elvárt darabszám: | E137: 0 | F137: db | H137: Elvárt db/op: | I137: 0 | L137: Elvárt darabszám: | M137: 20 | N137: db | P137: Elvárt db/op: | Q137: 5 | T137: Elvárt darabszám: | U137: 0 | V137: db | X137: Elvárt db/op: | Y137: 0
D138: Szükséges létszám: | E138: 0 | F138: fő | L138: Szükséges létszám: | M138: 4 | N138: fő | T138: Szükséges létszám: | U138: 0 | V138: fő
D139: Aktuális létszám: | E139: 0 | F139: fő | H139: Aktuális db/op: | I139: 0 | L139: Aktuális létszám: | M139: 0 | N139: fő | P139: Aktuális db/op: | Q139: 0 | T139: Aktuális létszám: | U139: 0 | V139: fő | X139: Aktuális db/op: | Y139: 0
D141: Operátor | F141: fő | L141: Operátor | M141: 4 | N141: fő | T141: Operátor | V141: fő
D142: Koordinátor | F142: fő | L142: Koordinátor | N142: fő | T142: Koordinátor | V142: fő
D143: Beállító | F143: fő | L143: Beállító | N143: fő | T143: Beállító | V143: fő
D144: QA, Service | F144: fő | L144: QA, Service | N144: fő | T144: QA, Service | V144: fő
D145: Anyagszállító | F145: fő | L145: Anyagszállító | N145: fő | T145: Anyagszállító | V145: fő
D146: Egyéb | F146: fő | L146: Egyéb | N146: fő | T146: Egyéb | V146: fő
D148: Backlog: | F148: sorok száma | L148: Backlog: | N148: sorok száma | T148: Backlog: | V148: sorok száma
D150: Backlog: | F150: összes darab | L150: Backlog: | N150: összes darab | T150: Backlog: | V150: összes darab
D152: Kód: | E152: Időtartam | F152: Állásidő megnevezése | L152: Kód: | M152: Időtartam | N152: Állásidő megnevezése | T152: Kód: | U152: Időtartam | V152: Állásidő megnevezése
F153: =VLOOKUP(D153,állásidő_kódok!$B:$D,3,0) ->  | N153: =VLOOKUP(L153,állásidő_kódok!$B:$D,3,0) ->  | V153: =VLOOKUP(T153,állásidő_kódok!$B:$D,3,0) -> 
F154: =VLOOKUP(D154,állásidő_kódok!$B:$D,3,0) ->  | N154: =VLOOKUP(L154,állásidő_kódok!$B:$D,3,0) ->  | V154: =VLOOKUP(T154,állásidő_kódok!$B:$D,3,0) -> 
F155: =VLOOKUP(D155,állásidő_kódok!$B:$D,3,0) ->  | N155: =VLOOKUP(L155,állásidő_kódok!$B:$D,3,0) ->  | V155: =VLOOKUP(T155,állásidő_kódok!$B:$D,3,0) -> 
F156: =VLOOKUP(D156,állásidő_kódok!$B:$D,3,0) ->  | N156: =VLOOKUP(L156,állásidő_kódok!$B:$D,3,0) ->  | V156: =VLOOKUP(T156,állásidő_kódok!$B:$D,3,0) -> 
F157: =VLOOKUP(D157,állásidő_kódok!$B:$D,3,0) ->  | N157: =VLOOKUP(L157,állásidő_kódok!$B:$D,3,0) ->  | V157: =VLOOKUP(T157,állásidő_kódok!$B:$D,3,0) -> 
F158: =VLOOKUP(D158,állásidő_kódok!$B:$D,3,0) ->  | N158: =VLOOKUP(L158,állásidő_kódok!$B:$D,3,0) ->  | V158: =VLOOKUP(T158,állásidő_kódok!$B:$D,3,0) -> 
F159: =VLOOKUP(D159,állásidő_kódok!$B:$D,3,0) ->  | N159: =VLOOKUP(L159,állásidő_kódok!$B:$D,3,0) ->  | V159: =VLOOKUP(T159,állásidő_kódok!$B:$D,3,0) -> 
F160: =VLOOKUP(D160,állásidő_kódok!$B:$D,3,0) ->  | N160: =VLOOKUP(L160,állásidő_kódok!$B:$D,3,0) ->  | V160: =VLOOKUP(T160,állásidő_kódok!$B:$D,3,0) -> 
F161: =VLOOKUP(D161,állásidő_kódok!$B:$D,3,0) ->  | N161: =VLOOKUP(L161,állásidő_kódok!$B:$D,3,0) ->  | V161: =VLOOKUP(T161,állásidő_kódok!$B:$D,3,0) -> 
F162: =VLOOKUP(D162,állásidő_kódok!$B:$D,3,0) ->  | N162: =VLOOKUP(L162,állásidő_kódok!$B:$D,3,0) ->  | V162: =VLOOKUP(T162,állásidő_kódok!$B:$D,3,0) -> 
E163: Állásidők nélküli teljesítés: | F163: =((SUM(E153:E162)/445))+E135/E137 ->  | M163: Állásidők nélküli teljesítés: | N163: =((SUM(M153:M162)/445))+M135/M137 -> 1 | U163: Állásidők nélküli teljesítés: | V163: =((SUM(U153:U162)/445))+U135/U137 -> 
B164: =Alapadatok!C8 -> DE cella | J164: =B164 -> DE cella | R164: =B164 -> DE cella
D165: Gyártott: | E165: 54 | F165: db | L165: Gyártott: | M165: 57 | N165: db | T165: Gyártott: | U165: 33 | V165: db
D167: Elvárt darabszám: | E167: 52 | F167: db | H167: Elvárt db/op: | I167: 26 | L167: Elvárt darabszám: | M167: 52 | N167: db | P167: Elvárt db/op: | Q167: 26 | T167: Elvárt darabszám: | U167: 52 | V167: db | X167: Elvárt db/op: | Y167: 26
D168: Szükséges létszám: | E168: 2 | F168: fő | L168: Szükséges létszám: | M168: 2 | N168: fő | T168: Szükséges létszám: | U168: 2 | V168: fő
D169: Aktuális létszám: | E169: 2 | F169: fő | H169: Aktuális db/op: | I169: 27 | L169: Aktuális létszám: | M169: 0 | N169: fő | P169: Aktuális db/op: | Q169: 0 | T169: Aktuális létszám: | U169: 0 | V169: fő | X169: Aktuális db/op: | Y169: 0
D171: Operátor | E171: 2 | F171: fő | L171: Operátor | M171: 1 | N171: fő | T171: Operátor | U171: 1 | V171: fő
D172: Koordinátor | F172: fő | L172: Koordinátor | N172: fő | T172: Koordinátor | V172: fő
D173: Beállító | F173: fő | L173: Beállító | N173: fő | T173: Beállító | V173: fő
D174: QA, Service | F174: fő | L174: QA, Service | N174: fő | T174: QA, Service | V174: fő
D175: Anyagszállító | F175: fő | L175: Anyagszállító | N175: fő | T175: Anyagszállító | V175: fő
D176: Egyéb | F176: fő | L176: Egyéb | N176: fő | T176: Egyéb | V176: fő
D178: Backlog: | F178: sorok száma | L178: Backlog: | N178: sorok száma | T178: Backlog: | V178: sorok száma
D180: Backlog: | F180: összes darab | L180: Backlog: | N180: összes darab | T180: Backlog: | V180: összes darab
D182: Kód: | E182: Időtartam | F182: Állásidő megnevezése | L182: Kód: | M182: Időtartam | N182: Állásidő megnevezése | T182: Kód: | U182: Időtartam | V182: Állásidő megnevezése
F183: =VLOOKUP(D183,állásidő_kódok!$B:$D,3,0) ->  | N183: =VLOOKUP(L183,állásidő_kódok!$B:$D,3,0) ->  | T183: 201 | U183: 150 | V183: =VLOOKUP(T183,állásidő_kódok!$B:$D,3,0) -> AE-Alapanyaghiány (GW)
F184: =VLOOKUP(D184,állásidő_kódok!$B:$D,3,0) ->  | N184: =VLOOKUP(L184,állásidő_kódok!$B:$D,3,0) ->  | V184: =VLOOKUP(T184,állásidő_kódok!$B:$D,3,0) -> 
F185: =VLOOKUP(D185,állásidő_kódok!$B:$D,3,0) ->  | N185: =VLOOKUP(L185,állásidő_kódok!$B:$D,3,0) ->  | V185: =VLOOKUP(T185,állásidő_kódok!$B:$D,3,0) -> 
F186: =VLOOKUP(D186,állásidő_kódok!$B:$D,3,0) ->  | N186: =VLOOKUP(L186,állásidő_kódok!$B:$D,3,0) ->  | V186: =VLOOKUP(T186,állásidő_kódok!$B:$D,3,0) -> 
F187: =VLOOKUP(D187,állásidő_kódok!$B:$D,3,0) ->  | N187: =VLOOKUP(L187,állásidő_kódok!$B:$D,3,0) ->  | V187: =VLOOKUP(T187,állásidő_kódok!$B:$D,3,0) -> 
F188: =VLOOKUP(D188,állásidő_kódok!$B:$D,3,0) ->  | N188: =VLOOKUP(L188,állásidő_kódok!$B:$D,3,0) ->  | V188: =VLOOKUP(T188,állásidő_kódok!$B:$D,3,0) -> 
F189: =VLOOKUP(D189,állásidő_kódok!$B:$D,3,0) ->  | N189: =VLOOKUP(L189,állásidő_kódok!$B:$D,3,0) ->  | V189: =VLOOKUP(T189,állásidő_kódok!$B:$D,3,0) -> 
F190: =VLOOKUP(D190,állásidő_kódok!$B:$D,3,0) ->  | N190: =VLOOKUP(L190,állásidő_kódok!$B:$D,3,0) ->  | V190: =VLOOKUP(T190,állásidő_kódok!$B:$D,3,0) -> 
F191: =VLOOKUP(D191,állásidő_kódok!$B:$D,3,0) ->  | N191: =VLOOKUP(L191,állásidő_kódok!$B:$D,3,0) ->  | V191: =VLOOKUP(T191,állásidő_kódok!$B:$D,3,0) -> 
F192: =VLOOKUP(D192,állásidő_kódok!$B:$D,3,0) ->  | N192: =VLOOKUP(L192,állásidő_kódok!$B:$D,3,0) ->  | V192: =VLOOKUP(T192,állásidő_kódok!$B:$D,3,0) -> 
E193: Állásidők nélküli teljesítés: | F193: =((SUM(E183:E192)/445))+E165/E167 -> 1.038461538 | M193: Állásidők nélküli teljesítés: | N193: =((SUM(M183:M192)/445))+M165/M167 -> 1.096153846 | U193: Állásidők nélküli teljesítés: | V193: =((SUM(U183:U192)/445))+U165/U167 -> 0.9716940363
B194: =Alapadatok!C9 -> NDE cella | J194: =B194 -> NDE cella | R194: =B194 -> NDE cella
D195: Gyártott: | E195: 0 | F195: db | L195: Gyártott: | M195: 95 | N195: db | T195: Gyártott: | U195: 95 | V195: db
D197: Elvárt darabszám: | E197: 95 | F197: db | H197: Elvárt db/op: | I197: 95 | L197: Elvárt darabszám: | M197: 95 | N197: db | P197: Elvárt db/op: | Q197: 95 | T197: Elvárt darabszám: | U197: 95 | V197: db | X197: Elvárt db/op: | Y197: 95
D198: Szükséges létszám: | E198: 1 | F198: fő | L198: Szükséges létszám: | M198: 1 | N198: fő | T198: Szükséges létszám: | U198: 1 | V198: fő
D199: Aktuális létszám: | E199: 0 | F199: fő | H199: Aktuális db/op: | I199: 0 | L199: Aktuális létszám: | M199: 0 | N199: fő | P199: Aktuális db/op: | Q199: 0 | T199: Aktuális létszám: | U199: 0 | V199: fő | X199: Aktuális db/op: | Y199: 0
D201: Operátor | E201: 0 | F201: fő | L201: Operátor | N201: fő | T201: Operátor | U201: 1 | V201: fő
D202: Koordinátor | F202: fő | L202: Koordinátor | N202: fő | T202: Koordinátor | V202: fő
D203: Beállító | F203: fő | L203: Beállító | M203: 1 | N203: fő | T203: Beállító | V203: fő
D204: QA, Service | F204: fő | L204: QA, Service | N204: fő | T204: QA, Service | V204: fő
D205: Anyagszállító | F205: fő | L205: Anyagszállító | N205: fő | T205: Anyagszállító | V205: fő
D206: Egyéb | F206: fő | L206: Egyéb | N206: fő | T206: Egyéb | V206: fő
D208: Backlog: | F208: sorok száma | L208: Backlog: | N208: sorok száma | T208: Backlog: | V208: sorok száma
D210: Backlog: | F210: összes darab | L210: Backlog: | N210: összes darab | T210: Backlog: | V210: összes darab
D212: Kód: | E212: Időtartam | F212: Állásidő megnevezése | L212: Kód: | M212: Időtartam | N212: Állásidő megnevezése | T212: Kód: | U212: Időtartam | V212: Állásidő megnevezése
D213: 1 | E213: 480 | F213: =VLOOKUP(D213,állásidő_kódok!$B:$D,3,0) -> E-I. - Emberi erőforrás hiány | N213: =VLOOKUP(L213,állásidő_kódok!$B:$D,3,0) ->  | V213: =VLOOKUP(T213,állásidő_kódok!$B:$D,3,0) -> 
F214: =VLOOKUP(D214,állásidő_kódok!$B:$D,3,0) ->  | N214: =VLOOKUP(L214,állásidő_kódok!$B:$D,3,0) ->  | V214: =VLOOKUP(T214,állásidő_kódok!$B:$D,3,0) -> 
F215: =VLOOKUP(D215,állásidő_kódok!$B:$D,3,0) ->  | N215: =VLOOKUP(L215,állásidő_kódok!$B:$D,3,0) ->  | V215: =VLOOKUP(T215,állásidő_kódok!$B:$D,3,0) -> 
F216: =VLOOKUP(D216,állásidő_kódok!$B:$D,3,0) ->  | N216: =VLOOKUP(L216,állásidő_kódok!$B:$D,3,0) ->  | V216: =VLOOKUP(T216,állásidő_kódok!$B:$D,3,0) -> 
F217: =VLOOKUP(D217,állásidő_kódok!$B:$D,3,0) ->  | N217: =VLOOKUP(L217,állásidő_kódok!$B:$D,3,0) ->  | V217: =VLOOKUP(T217,állásidő_kódok!$B:$D,3,0) -> 
F218: =VLOOKUP(D218,állásidő_kódok!$B:$D,3,0) ->  | N218: =VLOOKUP(L218,állásidő_kódok!$B:$D,3,0) ->  | V218: =VLOOKUP(T218,állásidő_kódok!$B:$D,3,0) -> 
F219: =VLOOKUP(D219,állásidő_kódok!$B:$D,3,0) ->  | N219: =VLOOKUP(L219,állásidő_kódok!$B:$D,3,0) ->  | V219: =VLOOKUP(T219,állásidő_kódok!$B:$D,3,0) -> 
F220: =VLOOKUP(D220,állásidő_kódok!$B:$D,3,0) ->  | N220: =VLOOKUP(L220,állásidő_kódok!$B:$D,3,0) ->  | V220: =VLOOKUP(T220,állásidő_kódok!$B:$D,3,0) -> 
F221: =VLOOKUP(D221,állásidő_kódok!$B:$D,3,0) ->  | N221: =VLOOKUP(L221,állásidő_kódok!$B:$D,3,0) ->  | V221: =VLOOKUP(T221,állásidő_kódok!$B:$D,3,0) -> 
F222: =VLOOKUP(D222,állásidő_kódok!$B:$D,3,0) ->  | N222: =VLOOKUP(L222,állásidő_kódok!$B:$D,3,0) ->  | V222: =VLOOKUP(T222,állásidő_kódok!$B:$D,3,0) -> 
E223: Állásidők nélküli teljesítés: | F223: =((SUM(E213:E222)/445))+E195/E197 -> 1.078651685 | M223: Állásidők nélküli teljesítés: | N223: =((SUM(M213:M222)/445))+M195/M197 -> 1 | U223: Állásidők nélküli teljesítés: | V223: =((SUM(U213:U222)/445))+U195/U197 -> 1
B224: =Alapadatok!C10 -> T+R | J224: =B224 -> T+R | R224: =B224 -> T+R
D225: Gyártott: | E225: 54 | F225: db | L225: Gyártott: | M225: 54 | N225: db | T225: Gyártott: | U225: 57 | V225: db
D227: Elvárt darabszám: | E227: 54 | F227: db | H227: Elvárt db/op: | I227: 18 | L227: Elvárt darabszám: | M227: 54 | N227: db | P227: Elvárt db/op: | Q227: 18 | T227: Elvárt darabszám: | U227: 54 | V227: db | X227: Elvárt db/op: | Y227: 18
D228: Szükséges létszám: | E228: 3 | F228: fő | L228: Szükséges létszám: | M228: 3 | N228: fő | T228: Szükséges létszám: | U228: 3 | V228: fő
D229: Aktuális létszám: | E229: 3 | F229: fő | H229: Aktuális db/op: | I229: 18 | L229: Aktuális létszám: | M229: 0 | N229: fő | P229: Aktuális db/op: | Q229: 0 | T229: Aktuális létszám: | U229: 0 | V229: fő | X229: Aktuális db/op: | Y229: 0
D231: Operátor | E231: 3 | F231: fő | L231: Operátor | M231: 3 | N231: fő | T231: Operátor | U231: 3 | V231: fő
D232: Koordinátor | F232: fő | L232: Koordinátor | M232: 1 | N232: fő | T232: Koordinátor | V232: fő
D233: Beállító | F233: fő | L233: Beállító | N233: fő | T233: Beállító | V233: fő
D234: QA, Service | F234: fő | L234: QA, Service | N234: fő | T234: QA, Service | V234: fő
D235: Anyagszállító | F235: fő | L235: Anyagszállító | N235: fő | T235: Anyagszállító | V235: fő
D236: Egyéb | F236: fő | L236: Egyéb | N236: fő | T236: Egyéb | V236: fő
... 239 more rows

Sheet wk_45_3
J2: =Alapadatok!C2 -> MG 160/180 | R2: Dátum: | T2: 2018-11-07 | X2: Töltsd ki a kereten belüli fehér mezőket!
B3: Éjszaka | G3: Műszak | J3: Délelőtt | O3: Műszak | R3: Délután | W3: Műszak | Z3: Napi összesítő | AQ3: Levél küldéséhez
AQ4: kattins az ikonra!
C5: =B74 -> Motor sor | G5: =B104 -> 2p Sztátor sor | K5: =J74 -> Motor sor | O5: =J104 -> 2p Sztátor sor | S5: =R74 -> Motor sor | W5: =R104 -> 2p Sztátor sor | AA5: =C5 -> Motor sor | AI5: =O5 -> 2p Sztátor sor
C6: Gyártott db | D6: =E75 -> 52 | E6: db | G6: Gyártott db | H6: =E105 -> 45 | I6: db | K6: Gyártott db | L6: =M75 -> 55 | M6: db | O6: Gyártott db | P6: =M105 -> 52 | Q6: db | S6: Gyártott db | T6: =U75 -> 54 | U6: db | W6: Gyártott db | X6: =U105 -> 33 | Y6: db | AB6: Aktuális | AC6: Elvárt | AE6: Éj | AF6: =IF(D8=0,0,D6/D8) -> 6.5 | AG6: db/fő | AJ6: Aktuális | AK6: Elvárt | AM6: Éj | AN6: =IF(H8=0,0,H6/H8) -> 6.428571429 | AO6: db/fő
C7: Elvárt db | D7: =E77 -> 52 | E7: db | G7: Elvárt db | H7: =E107 -> 50 | I7: db | K7: Elvárt db | L7: =M77 -> 54 | M7: db | O7: Elvárt db | P7: =M107 -> 52 | Q7: db | S7: Elvárt db | T7: =U77 -> 54 | U7: db | W7: Elvárt db | X7: =U107 -> 45 | Y7: db | AA7: Darabszám | AB7: =SUM(D6,L6,T6) -> 161 | AC7: =SUM(D7,L7,T7) -> 160 | AD7: db | AE7: De | AF7: =IF(L8=0,0,L6/L8) -> 0 | AG7: db/fő | AI7: Darabszám | AJ7: =SUM(H6,P6,X6) -> 130 | AK7: =SUM(H7,P7,X7) -> 147 | AL7: db | AM7: De | AN7: =IF(P8=0,0,P6/P8) -> 0 | AO7: db/fő
C8: Akt. létszám | D8: =E79 -> 8 | E8: fő | G8: Akt. létszám | H8: =E109 -> 7 | I8: fő | K8: Akt. létszám | L8: =M79 -> 0 | M8: fő | O8: Akt. létszám | P8: =M109 -> 0 | Q8: fő | S8: Akt. létszám | T8: =U79 -> 0 | U8: fő | W8: Akt. létszám | X8: =U109 -> 0 | Y8: fő | AA8: Létszám | AB8: =SUM(D8,L8,T8) -> 8 | AC8: =SUM(D9,L9,T9) -> 23 | AD8: fő | AE8: Du | AF8: =IF(T8=0,0,T6/T8) -> 0 | AG8: db/fő | AI8: Létszám | AJ8: =SUM(H8,P8,X8) -> 7 | AK8: =SUM(H9,P9,X9) -> 17 | AL8: fő | AM8: Du | AN8: =IF(X8=0,0,X6/X8) -> 0 | AO8: db/fő
C9: MPS létszám | D9: =E78 -> 7 | E9: fő | G9: MPS létszám | H9: =E108 -> 6 | I9: fő | K9: MPS létszám | L9: =M78 -> 8 | M9: fő | O9: MPS létszám | P9: =M108 -> 6 | Q9: fő | S9: MPS létszám | T9: =U78 -> 8 | U9: fő | W9: MPS létszám | X9: =U108 -> 5 | Y9: fő | AA9: Össz állásidő | AB9: =SUM(D10,L10,T10) -> 1480 | AD9: perc | AE9: Napi | AF9: =IF(AB8=0,0,AB7/AB8) -> 20.125 | AG9: db/fő | AI9: Össz állásidő | AJ9: =SUM(H10,P10,X10) -> 60 | AL9: perc | AM9: Napi | AN9: =IF(AJ8=0,0,AJ7/AJ8) -> 18.57142857 | AO9: db/fő
C10: Össz állásidő | D10: =SUM(E93:E102) -> 880 | E10: perc | G10: Össz állásidő | H10: =SUM(E123:E132) -> 0 | I10: perc | K10: Össz állásidő | L10: =SUM(M93:M102) -> 300 | M10: perc | O10: Össz állásidő | P10: =SUM(M123:M132) -> 0 | Q10: perc | S10: Össz állásidő | T10: =SUM(U93:U102) -> 300 | U10: perc | W10: Össz állásidő | X10: =SUM(U123:U132) -> 60 | Y10: perc | AA10: Backlog sor/db | AB10: =E88+M88+U88 -> 0 | AC10: =E90+M90+U90 -> 0 | AD10: db | AE10: Elvárt | AF10: =IF(AC8=0,0,AC7/AC8) -> 6.956521739 | AG10: db/fő | AI10: Backlog sor/db | AJ10: =E118+M118+U118 -> 0 | AK10: =E120+M120+U120 -> 0 | AL10: db | AM10: Elvárt | AN10: =IF(AK8=0,0,AK7/AK8) -> 8.647058824 | AO10: db/fő
C11: =B134 -> 4p sztátor sor | G11: =B164 -> DE cella | K11: =J134 -> 4p sztátor sor | O11: =J164 -> DE cella | S11: =R134 -> 4p sztátor sor | W11: =R164 -> DE cella | AA11: =C11 -> 4p sztátor sor | AI11: =O11 -> DE cella
C12: Gyártott db | D12: =E135 -> 0 | E12: db | G12: Gyártott db | H12: =E165 -> 54 | I12: db | K12: Gyártott db | L12: =M135 -> 20 | M12: db | O12: Gyártott db | P12: =M165 -> 56 | Q12: db | S12: Gyártott db | T12: =U135 -> 0 | U12: db | W12: Gyártott db | X12: =U165 -> 52 | Y12: db | AB12: Aktuális | AC12: Elvárt | AE12: Éj | AF12: =IF(D14=0,0,D12/D14) -> 0 | AG12: db/fő | AJ12: Aktuális | AK12: Elvárt | AM12: Éj | AN12: =IF(H14=0,0,H12/H14) -> 27 | AO12: db/fő
C13: Elvárt db | D13: =E137 -> 0 | E13: db | G13: Elvárt db | H13: =E167 -> 52 | I13: db | K13: Elvárt db | L13: =M137 -> 20 | M13: db | O13: Elvárt db | P13: =M167 -> 52 | Q13: db | S13: Elvárt db | T13: =U137 -> 0 | U13: db | W13: Elvárt db | X13: =U167 -> 52 | Y13: db | AA13: Darabszám | AB13: =SUM(D12,L12,T12) -> 20 | AC13: =SUM(D13,L13,T13) -> 20 | AD13: db | AE13: De | AF13: =IF(L14=0,0,L12/L14) -> 0 | AG13: db/fő | AI13: Darabszám | AJ13: =SUM(H12,P12,X12) -> 162 | AK13: =SUM(H13,P13,X13) -> 156 | AL13: db | AM13: De | AN13: =IF(P14=0,0,P12/P14) -> 0 | AO13: db/fő
C14: Akt. létszám | D14: =E139 -> 0 | E14: fő | G14: Akt. létszám | H14: =E169 -> 2 | I14: fő | K14: Akt. létszám | L14: =M139 -> 0 | M14: fő | O14: Akt. létszám | P14: =M169 -> 0 | Q14: fő | S14: Akt. létszám | T14: =U139 -> 0 | U14: fő | W14: Akt. létszám | X14: =U169 -> 0 | Y14: fő | AA14: Létszám | AB14: =SUM(D14,L14,T14) -> 0 | AC14: =SUM(D15,L15,T15) -> 4 | AD14: fő | AE14: Du | AF14: =IF(T14=0,0,T12/T14) -> 0 | AG14: db/fő | AI14: Létszám | AJ14: =SUM(H14,P14,X14) -> 2 | AK14: =SUM(H15,P15,X15) -> 6 | AL14: fő | AM14: Du | AN14: =IF(X14=0,0,X12/X14) -> 0 | AO14: db/fő
C15: MPS létszám | D15: =E138 -> 0 | E15: fő | G15: MPS létszám | H15: =E168 -> 2 | I15: fő | K15: MPS létszám | L15: =M138 -> 4 | M15: fő | O15: MPS létszám | P15: =M168 -> 2 | Q15: fő | S15: MPS létszám | T15: =U138 -> 0 | U15: fő | W15: MPS létszám | X15: =U168 -> 2 | Y15: fő | AA15: Össz állásidő | AB15: =SUM(D16,L16,T16) -> 0 | AD15: perc | AE15: Napi | AF15: =IF(AB14=0,0,AB13/AB14) -> 0 | AG15: db/fő | AI15: Össz állásidő | AJ15: =SUM(H16,P16,X16) -> 0 | AL15: perc | AM15: Napi | AN15: =IF(AJ14=0,0,AJ13/AJ14) -> 81 | AO15: db/fő
C16: Össz állásidő | D16: =SUM(E153:E162) -> 0 | E16: perc | G16: Össz állásidő | H16: =SUM(E183:E192) -> 0 | I16: perc | K16: Össz állásidő | L16: =SUM(M153:M162) -> 0 | M16: perc | O16: Össz állásidő | P16: =SUM(M183:M192) -> 0 | Q16: perc | S16: Össz állásidő | T16: =SUM(U153:U162) -> 0 | U16: perc | W16: Össz állásidő | X16: =SUM(U183:U192) -> 0 | Y16: perc | AA16: Backlog sor/db | AB16: =SUM(E148,M148,U148) -> 0 | AC16: =SUM(E150,M150,U150) -> 0 | AD16: db | AE16: Elvárt | AF16: =IF(AC14=0,0,AC13/AC14) -> 5 | AG16: db/fő | AI16: Backlog sor/db | AJ16: =SUM(E178,M178,U178) -> 0 | AK16: =SUM(E180,M180,U180) -> 0 | AL16: db | AM16: Elvárt | AN16: =IF(AK14=0,0,AK13/AK14) -> 26 | AO16: db/fő
C17: =B194 -> NDE cella | G17: =B224 -> T+R | K17: =J194 -> NDE cella | O17: =J224 -> T+R | S17: =R194 -> NDE cella | W17: =R224 -> T+R | AA17: =C17 -> NDE cella | AI17: =O17 -> T+R
C18: Gyártott db | D18: =E195 -> 0 | E18: db | G18: Gyártott db | H18: =E225 -> 54 | I18: db | K18: Gyártott db | L18: =M195 -> 90 | M18: db | O18: Gyártott db | P18: =M225 -> 57 | Q18: db | S18: Gyártott db | T18: =U195 -> 95 | U18: db | W18: Gyártott db | X18: =U225 -> 54 | Y18: db | AB18: Aktuális | AC18: Elvárt | AE18: Éj | AF18: =IF(D20=0,0,D18/D20) -> 0 | AG18: db/fő | AJ18: Aktuális | AK18: Elvárt | AM18: Éj | AN18: =IF(H20=0,0,H18/H20) -> 18 | AO18: db/fő
C19: Elvárt db | D19: =E197 -> 95 | E19: db | G19: Elvárt db | H19: =E227 -> 54 | I19: db | K19: Elvárt db | L19: =M197 -> 95 | M19: db | O19: Elvárt db | P19: =M227 -> 54 | Q19: db | S19: Elvárt db | T19: =U197 -> 95 | U19: db | W19: Elvárt db | X19: =U227 -> 54 | Y19: db | AA19: Darabszám | AB19: =SUM(D18,L18,T18) -> 185 | AC19: =SUM(D19,L19,T19) -> 285 | AD19: db | AE19: De | AF19: =IF(L20=0,0,L18/L20) -> 0 | AG19: db/fő | AI19: Darabszám | AJ19: =SUM(H18,P18,X18) -> 165 | AK19: =SUM(H19,P19,X19) -> 162 | AL19: db | AM19: De | AN19: =IF(P20=0,0,P18/P20) -> 0 | AO19: db/fő
C20: Akt. létszám | D20: =E199 -> 0 | E20: fő | G20: Akt. létszám | H20: =E229 -> 3 | I20: fő | K20: Akt. létszám | L20: =M199 -> 0 | M20: fő | O20: Akt. létszám | P20: =M229 -> 0 | Q20: fő | S20: Akt. létszám | T20: =U199 -> 0 | U20: fő | W20: Akt. létszám | X20: =U229 -> 0 | Y20: fő | AA20: Létszám | AB20: =SUM(D20,L20,T20) -> 0 | AC20: =SUM(D21,L21,T21) -> 3 | AD20: fő | AE20: Du | AF20: =IF(T20=0,0,T18/T20) -> 0 | AG20: db/fő | AI20: Létszám | AJ20: =SUM(H20,P20,X20) -> 3 | AK20: =SUM(H21,P21,X21) -> 9 | AL20: fő | AM20: Du | AN20: =IF(X20=0,0,X18/X20) -> 0 | AO20: db/fő
C21: MPS létszám | D21: =E198 -> 1 | E21: fő | G21: MPS létszám | H21: =E228 -> 3 | I21: fő | K21: MPS létszám | L21: =M198 -> 1 | M21: fő | O21: MPS létszám | P21: =M228 -> 3 | Q21: fő | S21: MPS létszám | T21: =U198 -> 1 | U21: fő | W21: MPS létszám | X21: =U228 -> 3 | Y21: fő | AA21: Össz állásidő | AB21: =SUM(D22,L22,T22) -> 510 | AD21: perc | AE21: Napi | AF21: =IF(AB20=0,0,AB19/AB20) -> 0 | AG21: db/fő | AI21: Össz állásidő | AJ21: =SUM(H22,P22,X22) -> 20 | AL21: perc | AM21: Napi | AN21: =IF(AJ20=0,0,AJ19/AJ20) -> 55 | AO21: db/fő
C22: Össz állásidő | D22: =SUM(E213:E222) -> 480 | E22: perc | G22: Össz állásidő | H22: =SUM(E243:E252) -> 0 | I22: perc | K22: Össz állásidő | L22: =SUM(M213:M222) -> 30 | M22: perc | O22: Össz állásidő | P22: =SUM(M243:M252) -> 20 | Q22: perc | S22: Össz állásidő | T22: =SUM(U213:U222) -> 0 | U22: perc | W22: Össz állásidő | X22: =SUM(U243:U252) -> 0 | Y22: perc | AA22: Backlog sor/db | AB22: =SUM(E208,M208,U208) -> 0 | AC22: =SUM(E210,M210,U210) -> 0 | AD22: db | AE22: Elvárt | AF22: =IF(AC20=0,0,AC19/AC20) -> 95 | AG22: db/fő | AI22: Backlog sor/db | AJ22: =SUM(E238,M238,U238) -> 0 | AK22: =SUM(E240,M240,U240) -> 0 | AL22: db | AM22: Elvárt | AN22: =IF(AK20=0,0,AK19/AK20) -> 18 | AO22: db/fő
C23: =B254 -> Cella7 | G23: =B284 -> Cella8 | K23: =J254 -> Cella7 | O23: =J284 -> Cella8 | S23: =R254 -> Cella7 | W23: =R284 -> Cella8 | AA23: =C23 -> Cella7 | AI23: =O23 -> Cella8
C24: Gyártott db | D24: =E255 -> 0 | E24: db | G24: Gyártott db | H24: =E285 -> 0 | I24: db | K24: Gyártott db | L24: =M255 -> 0 | M24: db | O24: Gyártott db | P24: =M285 -> 0 | Q24: db | S24: Gyártott db | T24: =U255 -> 0 | U24: db | W24: Gyártott db | X24: =U285 -> 0 | Y24: db | AB24: Aktuális | AC24: Elvárt | AE24: Éj | AF24: =IF(D26=0,0,D24/D26) -> 0 | AG24: db/fő | AJ24: Aktuális | AK24: Elvárt | AM24: Éj | AN24: =IF(H26=0,0,H24/H26) -> 0 | AO24: db/fő
C25: Elvárt db | D25: =E257 -> 0 | E25: db | G25: Elvárt db | H25: =E287 -> 0 | I25: db | K25: Elvárt db | L25: =M257 -> 0 | M25: db | O25: Elvárt db | P25: =M287 -> 0 | Q25: db | S25: Elvárt db | T25: =U257 -> 0 | U25: db | W25: Elvárt db | X25: =U287 -> 0 | Y25: db | AA25: Darabszám | AB25: =SUM(D24,L24,T24) -> 0 | AC25: =SUM(D25,L25,T25) -> 0 | AD25: db | AE25: De | AF25: =IF(L26=0,0,L24/L26) -> 0 | AG25: db/fő | AI25: Darabszám | AJ25: =SUM(H24,P24,X24) -> 0 | AK25: =SUM(H25,P25,X25) -> 0 | AL25: db | AM25: De | AN25: =IF(P26=0,0,P24/P26) -> 0 | AO25: db/fő
C26: Akt. létszám | D26: =E259 -> 0 | E26: fő | G26: Akt. létszám | H26: =E289 -> 0 | I26: fő | K26: Akt. létszám | L26: =M259 -> 0 | M26: fő | O26: Akt. létszám | P26: =M289 -> 0 | Q26: fő | S26: Akt. létszám | T26: =U259 -> 0 | U26: fő | W26: Akt. létszám | X26: =U289 -> 0 | Y26: fő | AA26: Létszám | AB26: =SUM(D26,L26,T26) -> 0 | AC26: =SUM(D27,L27,T27) -> 0 | AD26: fő | AE26: Du | AF26: =IF(T26=0,0,T24/T26) -> 0 | AG26: db/fő | AI26: Létszám | AJ26: =SUM(H26,P26,X26) -> 0 | AK26: =SUM(H27,P27,X27) -> 0 | AL26: fő | AM26: Du | AN26: =IF(X26=0,0,X24/X26) -> 0 | AO26: db/fő
C27: MPS létszám | D27: =E258 -> 0 | E27: fő | G27: MPS létszám | H27: =E288 -> 0 | I27: fő | K27: MPS létszám | L27: =M258 -> 0 | M27: fő | O27: MPS létszám | P27: =M288 -> 0 | Q27: fő | S27: MPS létszám | T27: =U258 -> 0 | U27: fő | W27: MPS létszám | X27: =U288 -> 0 | Y27: fő | AA27: Össz állásidő | AB27: =SUM(D28,L28,T28) -> 0 | AD27: perc | AE27: Napi | AF27: =IF(AB26=0,0,AB25/AB26) -> 0 | AG27: db/fő | AI27: Össz állásidő | AJ27: =SUM(H28,P28,X28) -> 0 | AL27: perc | AM27: Napi | AN27: =IF(AJ26=0,0,AJ25/AJ26) -> 0 | AO27: db/fő
C28: Össz állásidő | D28: =SUM(E273:E282) -> 0 | E28: perc | G28: Össz állásidő | H28: =SUM(E303:E312) -> 0 | I28: perc | K28: Össz állásidő | L28: =SUM(M273:M282) -> 0 | M28: perc | O28: Össz állásidő | P28: =SUM(M303:M312) -> 0 | Q28: perc | S28: Össz állásidő | T28: =SUM(U273:U282) -> 0 | U28: perc | W28: Össz állásidő | X28: =SUM(U303:U312) -> 0 | Y28: perc | AA28: Backlog sor/db | AB28: =SUM(E160,M160,U160) -> 0 | AC28: =SUM(E162,M162,U162) -> 0 | AD28: db | AE28: Elvárt | AF28: =IF(AC26=0,0,AC25/AC26) -> 0 | AG28: db/fő | AI28: Backlog sor/db | AJ28: =SUM(E160,M160,U160) -> 0 | AK28: =SUM(E162,M162,U162) -> 0 | AL28: db | AM28: Elvárt | AN28: =IF(AK26=0,0,AK25/AK26) -> 0 | AO28: db/fő
C29: =B314 -> Cella9 | G29: =B344 -> Cella10 | K29: =J314 -> Cella9 | O29: =J344 -> Cella10 | S29: =R314 -> Cella9 | W29: =R344 -> Cella10 | AA29: =C29 -> Cella9 | AI29: =G29 -> Cella10
C30: Gyártott db | D30: =E315 -> 0 | E30: db | G30: Gyártott db | H30: =E345 -> 0 | I30: db | K30: Gyártott db | L30: =M315 -> 0 | M30: db | O30: Gyártott db | P30: =M345 -> 0 | Q30: db | S30: Gyártott db | T30: =U315 -> 0 | U30: db | W30: Gyártott db | X30: =U345 -> 0 | Y30: db | AB30: Aktuális | AC30: Elvárt | AE30: Éj | AF30: =IF(D32=0,0,D30/D32) -> 0 | AG30: db/fő | AJ30: Aktuális | AK30: Elvárt | AM30: Éj | AN30: =IF(D32=0,0,D30/D32) -> 0 | AO30: db/fő
C31: Elvárt db | D31: =E317 -> 0 | E31: db | G31: Elvárt db | H31: =E347 -> 0 | I31: db | K31: Elvárt db | L31: =M317 -> 0 | M31: db | O31: Elvárt db | P31: =M347 -> 0 | Q31: db | S31: Elvárt db | T31: =U317 -> 0 | U31: db | W31: Elvárt db | X31: =U347 -> 0 | Y31: db | AA31: Darabszám | AB31: =SUM(D30,L30,T30) -> 0 | AC31: =SUM(D31,L31,T31) -> 0 | AD31: db | AE31: De | AF31: =IF(L32=0,0,L30/L32) -> 0 | AG31: db/fő | AI31: Darabszám | AJ31: =SUM(H30,P30,X30) -> 0 | AK31: =SUM(H31,P31,X31) -> 0 | AL31: db | AM31: De | AN31: =IF(L32=0,0,L30/L32) -> 0 | AO31: db/fő
C32: Akt. létszám | D32: =E319 -> 0 | E32: fő | G32: Akt. létszám | H32: =E349 -> 0 | I32: fő | K32: Akt. létszám | L32: =M319 -> 0 | M32: fő | O32: Akt. létszám | P32: =M349 -> 0 | Q32: fő | S32: Akt. létszám | T32: =U319 -> 0 | U32: fő | W32: Akt. létszám | X32: =U349 -> 0 | Y32: fő | AA32: Létszám | AB32: =SUM(D32,L32,T32) -> 0 | AC32: =SUM(D33,L33,T33) -> 0 | AD32: fő | AE32: Du | AF32: =IF(T32=0,0,T30/T32) -> 0 | AG32: db/fő | AI32: Létszám | AJ32: =SUM(H32,P32,X32) -> 0 | AK32: =SUM(H33,P33,X33) -> 0 | AL32: fő | AM32: Du | AN32: =IF(T32=0,0,T30/T32) -> 0 | AO32: db/fő
C33: MPS létszám | D33: =E318 -> 0 | E33: fő | G33: MPS létszám | H33: =E348 -> 0 | I33: fő | K33: MPS létszám | L33: =M318 -> 0 | M33: fő | O33: MPS létszám | P33: =M348 -> 0 | Q33: fő | S33: MPS létszám | T33: =U318 -> 0 | U33: fő | W33: MPS létszám | X33: =U348 -> 0 | Y33: fő | AA33: Össz állásidő | AB33: =SUM(D34,L34,T34) -> 0 | AD33: perc | AE33: Napi | AF33: =IF(AB32=0,0,AB31/AB32) -> 0 | AG33: db/fő | AI33: Össz állásidő | AJ33: =SUM(H34,P34,X34) -> 0 | AL33: perc | AM33: Napi | AN33: =IF(AJ32=0,0,AJ31/AJ32) -> 0 | AO33: db/fő
C34: Össz állásidő | D34: =SUM(E333:E342) -> 0 | E34: perc | G34: Össz állásidő | H34: =SUM(E363:E372) -> 0 | I34: perc | K34: Össz állásidő | L34: =SUM(M333:M342) -> 0 | M34: perc | O34: Össz állásidő | P34: =SUM(M363:M372) -> 0 | Q34: perc | S34: Össz állásidő | T34: =SUM(U333:U342) -> 0 | U34: perc | W34: Össz állásidő | X34: =SUM(U363:U372) -> 0 | Y34: perc | AA34: Backlog sor/db | AB34: =SUM(E166,M166,U166) -> 0 | AC34: =SUM(E168,M168,U168) -> 6 | AD34: db | AE34: Elvárt | AF34: =IF(AC32=0,0,AC31/AC32) -> 0 | AG34: db/fő | AI34: Backlog sor/db | AJ34: =SUM(E172,M172,U172) -> 0 | AK34: =SUM(E174,M174,U174) -> 0 | AL34: db | AM34: Elvárt | AN34: =IF(AK32=0,0,AK31/AK32) -> 0 | AO34: db/fő
C35: =B374 -> Cella11 | G35: =B404 -> Cella12 | K35: =J374 -> Cella11 | O35: =J404 -> Cella12 | S35: =R374 -> Cella11 | W35: =R404 -> Cella12 | AA35: =C35 -> Cella11 | AI35: =G35 -> Cella12
C36: Gyártott db | D36: =E375 -> 0 | E36: db | G36: Gyártott db | H36: =E405 -> 0 | I36: db | K36: Gyártott db | L36: =M375 -> 0 | M36: db | O36: Gyártott db | P36: =M405 -> 0 | Q36: db | S36: Gyártott db | T36: =U375 -> 0 | U36: db | W36: Gyártott db | X36: =U405 -> 0 | Y36: db | AB36: Aktuális | AC36: Elvárt | AE36: Éj | AF36: =IF(D38=0,0,D36/D38) -> 0 | AG36: db/fő | AJ36: Aktuális | AK36: Elvárt | AM36: Éj | AN36: =IF(H38=0,0,H36/H38) -> 0 | AO36: db/fő
C37: Elvárt db | D37: =E377 -> 0 | E37: db | G37: Elvárt db | H37: =E407 -> 0 | I37: db | K37: Elvárt db | L37: =M377 -> 0 | M37: db | O37: Elvárt db | P37: =M407 -> 0 | Q37: db | S37: Elvárt db | T37: =U377 -> 0 | U37: db | W37: Elvárt db | X37: =U407 -> 0 | Y37: db | AA37: Darabszám | AB37: =SUM(D36,L36,T36) -> 0 | AC37: =SUM(D37,L37,T37) -> 0 | AD37: db | AE37: De | AF37: =IF(L38=0,0,L36/L38) -> 0 | AG37: db/fő | AI37: Darabszám | AJ37: =SUM(H36,LX36,X36) -> 0 | AK37: =SUM(H37,P37,X37) -> 0 | AL37: db | AM37: De | AN37: =IF(P38=0,0,P36/P38) -> 0 | AO37: db/fő
C38: Akt. létszám | D38: =E379 -> 0 | E38: fő | G38: Akt. létszám | H38: =E409 -> 0 | I38: fő | K38: Akt. létszám | L38: =M379 -> 0 | M38: fő | O38: Akt. létszám | P38: =M409 -> 0 | Q38: fő | S38: Akt. létszám | T38: =U379 -> 0 | U38: fő | W38: Akt. létszám | X38: =U409 -> 0 | Y38: fő | AA38: Létszám | AB38: =SUM(D38,L38,T38) -> 0 | AC38: =SUM(D39,L39,T39) -> 0 | AD38: fő | AE38: Du | AF38: =IF(T38=0,0,T36/T38) -> 0 | AG38: db/fő | AI38: Létszám | AJ38: =SUM(H38,P38,X38) -> 0 | AK38: =SUM(H39,P39,X39) -> 0 | AL38: fő | AM38: Du | AN38: =IF(X38=0,0,X37/X38) -> 0 | AO38: db/fő
C39: MPS létszám | D39: =E378 -> 0 | E39: fő | G39: MPS létszám | H39: =E408 -> 0 | I39: fő | K39: MPS létszám | L39: =M378 -> 0 | M39: fő | O39: MPS létszám | P39: =M408 -> 0 | Q39: fő | S39: MPS létszám | T39: =U378 -> 0 | U39: fő | W39: MPS létszám | X39: =U408 -> 0 | Y39: fő | AA39: Össz állásidő | AB39: =SUM(D40,L40,T40) -> 0 | AD39: perc | AE39: Napi | AF39: =IF(AB38=0,0,AB37/AB38) -> 0 | AG39: db/fő | AI39: Össz állásidő | AJ39: =SUM(H40,P40,X40) -> 0 | AL39: perc | AM39: Napi | AN39: =IF(AJ38=0,0,AJ37/AJ38) -> 0 | AO39: db/fő
C40: Össz állásidő | D40: =SUM(E393:E402) -> 0 | E40: perc | G40: Össz állásidő | H40: =SUM(E423:E432) -> 0 | I40: perc | K40: Össz állásidő | L40: =SUM(M393:M402) -> 0 | M40: perc | O40: Össz állásidő | P40: =SUM(M423:M432) -> 0 | Q40: perc | S40: Össz állásidő | T40: =SUM(U393:U402) -> 0 | U40: perc | W40: Össz állásidő | X40: =SUM(U423:U432) -> 0 | Y40: perc | AA40: Backlog sor/db | AB40: =SUM(E172,M172,U172) -> 0 | AC40: =SUM(E174,M174,U174) -> 0 | AD40: db | AE40: Elvárt | AF40: =IF(AC38=0,0,AC37/AC38) -> 0 | AG40: db/fő | AI40: Backlog sor/db | AJ40: =SUM(E178,M178,U178) -> 0 | AK40: =SUM(E180,M180,U180) -> 0 | AL40: db | AM40: Elvárt | AN40: =IF(AK38=0,0,AK37/AK38) -> 0 | AO40: db/fő
C41: =B434 -> Cella13 | G41: =B464 -> Cella14 | K41: =J434 -> Cella13 | O41: =J464 -> Cella14 | S41: =R434 -> Cella13 | W41: =R464 -> Cella14 | AA41: =C41 -> Cella13 | AI41: =G41 -> Cella14
C42: Gyártott db | D42: =E435 -> 0 | E42: db | G42: Gyártott db | H42: =E465 -> 0 | I42: db | K42: Gyártott db | L42: =M435 -> 0 | M42: db | O42: Gyártott db | P42: =M465 -> 0 | Q42: db | S42: Gyártott db | T42: =U435 -> 0 | U42: db | W42: Gyártott db | X42: =U465 -> 0 | Y42: db | AB42: Aktuális | AC42: Elvárt | AE42: Éj | AF42: =IF(D44=0,0,D42/D44) -> 0 | AG42: db/fő | AJ42: Aktuális | AK42: Elvárt | AM42: Éj | AN42: =IF(H44=0,0,H42/H44) -> 0 | AO42: db/fő
C43: Elvárt db | D43: =E437 -> 0 | E43: db | G43: Elvárt db | H43: =E467 -> 0 | I43: db | K43: Elvárt db | L43: =M437 -> 0 | M43: db | O43: Elvárt db | P43: =M467 -> 0 | Q43: db | S43: Elvárt db | T43: =U437 -> 0 | U43: db | W43: Elvárt db | X43: =U467 -> 0 | Y43: db | AA43: Darabszám | AB43: =SUM(D42,L42,T42) -> 0 | AC43: =SUM(D43,L43,T43) -> 0 | AD43: db | AE43: De | AF43: =IF(L44=0,0,L42/L44) -> 0 | AG43: db/fő | AI43: Darabszám | AJ43: =SUM(H42,P42,X42) -> 0 | AK43: =SUM(H43,P43,X43) -> 0 | AL43: db | AM43: De | AN43: =IF(P44=0,0,P42/P44) -> 0 | AO43: db/fő
C44: Akt. létszám | D44: =E439 -> 0 | E44: fő | G44: Akt. létszám | H44: =E469 -> 0 | I44: fő | K44: Akt. létszám | L44: =M439 -> 0 | M44: fő | O44: Akt. létszám | P44: =M469 -> 0 | Q44: fő | S44: Akt. létszám | T44: =U439 -> 0 | U44: fő | W44: Akt. létszám | X44: =U469 -> 0 | Y44: fő | AA44: Létszám | AB44: =SUM(D44,L44,T44) -> 0 | AC44: =SUM(D45,L45,T45) -> 0 | AD44: fő | AE44: Du | AF44: =IF(T44=0,0,T42/T44) -> 0 | AG44: db/fő | AI44: Létszám | AJ44: =SUM(D56,L56,T56) -> 0 | AK44: =SUM(D57,L57,T57) -> 0 | AL44: fő | AM44: Du | AN44: =IF(X44=0,0,X42/X44) -> 0 | AO44: db/fő
C45: MPS létszám | D45: =E438 -> 0 | E45: fő | G45: MPS létszám | H45: =E468 -> 0 | I45: fő | K45: MPS létszám | L45: =M438 -> 0 | M45: fő | O45: MPS létszám | P45: =M468 -> 0 | Q45: fő | S45: MPS létszám | T45: =U438 -> 0 | U45: fő | W45: MPS létszám | X45: =U468 -> 0 | Y45: fő | AA45: Össz állásidő | AB45: =SUM(D46,L46,T46) -> 0 | AD45: perc | AE45: Napi | AF45: =IF(AB44=0,0,AB43/AB44) -> 0 | AG45: db/fő | AI45: Össz állásidő | AJ45: =SUM(D58,L58,T58) -> 0 | AL45: perc | AM45: Napi | AN45: =IF(AJ44=0,0,AJ43/AJ44) -> 0 | AO45: db/fő
C46: Össz állásidő | D46: =SUM(E453:E462) -> 0 | E46: perc | G46: Össz állásidő | H46: =SUM(E483:E492) -> 0 | I46: perc | K46: Össz állásidő | L46: =SUM(M453:M462) -> 0 | M46: perc | O46: Össz állásidő | P46: =SUM(M483:M492) -> 0 | Q46: perc | S46: Össz állásidő | T46: =SUM(U453:U462) -> 0 | U46: perc | W46: Össz állásidő | X46: =SUM(U483:U492) -> 0 | Y46: perc | AA46: Backlog sor/db | AB46: =SUM(E178,M178,U178) -> 0 | AC46: =SUM(E180,M180,U180) -> 0 | AD46: db | AE46: Elvárt | AF46: =IF(AC44=0,0,AC43/AC44) -> 0 | AG46: db/fő | AI46: Backlog sor/db | AJ46: =SUM(E190,M190,U190) -> 0 | AK46: =SUM(E192,M192,U192) -> 0 | AL46: db | AM46: Elvárt | AN46: =IF(AK44=0,0,AK43/AK44) -> 0 | AO46: db/fő
C47: =B494 -> Cella15 | K47: =J494 -> Cella15 | S47: =R494 -> Cella15 | AA47: =C47 -> Cella15
C48: Gyártott db | D48: =E495 -> 0 | E48: db | K48: Gyártott db | L48: =M495 -> 0 | M48: db | S48: Gyártott db | T48: =U495 -> 0 | U48: db | AB48: Aktuális | AC48: Elvárt | AE48: Éj | AF48: =IF(D50=0,0,D48/D50) -> 0 | AG48: db/fő
C49: Elvárt db | D49: =E497 -> 0 | E49: db | K49: Elvárt db | L49: =M497 -> 0 | M49: db | S49: Elvárt db | T49: =U497 -> 0 | U49: db | AA49: Darabszám | AB49: =SUM(D48,L48,T48) -> 0 | AC49: =SUM(D49,L49,T49) -> 0 | AD49: db | AE49: De | AF49: =IF(L50=0,0,L48/L50) -> 0 | AG49: db/fő
C50: Akt. létszám | D50: =E499 -> 0 | E50: fő | K50: Akt. létszám | L50: =M499 -> 0 | M50: fő | S50: Akt. létszám | T50: =U499 -> 0 | U50: fő | AA50: Létszám | AB50: =SUM(D50,L50,T50) -> 0 | AC50: =SUM(D51,L51,T51) -> 0 | AD50: fő | AE50: Du | AF50: =IF(T50=0,0,T48/T50) -> 0 | AG50: db/fő
C51: MPS létszám | D51: =E498 -> 0 | E51: fő | K51: MPS létszám | L51: =M498 -> 0 | M51: fő | S51: MPS létszám | T51: =U498 -> 0 | U51: fő | AA51: Össz állásidő | AB51: =SUM(D52,L52,T52) -> 0 | AD51: perc | AE51: Napi | AF51: =IF(AB50=0,0,AB49/AB50) -> 0 | AG51: db/fő
C52: Össz állásidő | D52: =SUM(E513:E522) -> 0 | E52: perc | K52: Össz állásidő | L52: =SUM(M513:M522) -> 0 | M52: perc | S52: Össz állásidő | T52: =SUM(U513:U522) -> 0 | U52: perc | AA52: Backlog sor/db | AB52: =SUM(E194,M194,U194) -> 0 | AC52: =SUM(E196,M196,U196) -> 0 | AD52: db | AE52: Elvárt | AF52: =IF(AC50=0,0,AC49/AC50) -> 0 | AG52: db/fő
B54: Megjegyzés/egyéb fontos információ: | I54: Megoldva? | J54: Megjegyzés/egyéb fontos információ: | Q54: Megoldva? | R54: Megjegyzés/egyéb fontos információ: | Y54: Megoldva?
B55: Biztonság | J55: Biztonság | R55: Biztonság
B57: Minőség | J57: Minőség | R57: Minőség
B59: Termelés | D59: Besütő: 54 db E-tower: 54 db | J59: Termelés | L59: Besütő:25db, E- tower:35db, | R59: Termelés | T59: BESÜTŐ: 62db, E-TOWER: 54db .
D60: BWS: 41 db lakkozó:62 | L60: BWS:52db Alliance:62db Fornax:6db | T60: BWS:34db Alliance:51db
B61: Dolgozók | D61: Szabi: 1fő Beteg. | J61: Dolgozók | L61: Szabi:3fő Beteg:2fő | R61: Dolgozók | T61: 1 fő CNC- s a motorsoron.
D62: 112 Qtn: 1fő | T62: Szabi:1fő Beteg:3fő
B63: Támogatók | D63: megrendelő:7 HM.7db | J63: Támogatók | L63: megrendelő 11:db HM12:db | R63: Támogatók | T63: megrendelő:12db HM:14db
B65: 5S | J65: 5S | R65: 5S
B67: Karbantartás | D67: Lakkozó jobb oldali szívattyú 6909742 10 perc | I67: ok | J67: Karbantartás | R67: Karbantartás
D71: Szt. backlog:
D72: Motor backlog:2/2
B74: =Alapadatok!C5 -> Motor sor | J74: =B74 -> Motor sor | R74: =B74 -> Motor sor
D75: Gyártott: | E75: 52 | F75: db | L75: Gyártott: | M75: 55 | N75: db | T75: Gyártott: | U75: 54 | V75: db
D77: Elvárt darabszám: | E77: 52 | F77: db | H77: Elvárt db/op: | I77: 7.43 | L77: Elvárt darabszám: | M77: 54 | N77: db | P77: Elvárt db/op: | Q77: 6.75 | T77: Elvárt darabszám: | U77: 54 | V77: db | X77: Elvárt db/op: | Y77: 6.75
D78: Szükséges létszám: | E78: 7 | F78: fő | L78: Szükséges létszám: | M78: 8 | N78: fő | T78: Szükséges létszám: | U78: 8 | V78: fő
D79: Aktuális létszám: | E79: 8 | F79: fő | H79: Aktuális db/op: | I79: 6.5 | L79: Aktuális létszám: | M79: 0 | N79: fő | P79: Aktuális db/op: | Q79: 0 | T79: Aktuális létszám: | U79: 0 | V79: fő | X79: Aktuális db/op: | Y79: 0
D81: Operátor | E81: 7 | F81: fő | L81: Operátor | M81: 6 | N81: fő | T81: Operátor | U81: 8 | V81: fő
D82: Koordinátor | E82: 1 | F82: fő | L82: Koordinátor | M82: 1 | N82: fő | T82: Koordinátor | V82: fő
D83: Beállító | F83: fő | L83: Beállító | N83: fő | T83: Beállító | V83: fő
D84: QA, Service | F84: fő | L84: QA, Service | N84: fő | T84: QA, Service | V84: fő
D85: Anyagszállító | F85: fő | L85: Anyagszállító | N85: fő | T85: Anyagszállító | V85: fő
D86: Egyéb | F86: fő | L86: Egyéb | N86: fő | T86: Egyéb | V86: fő
D88: Backlog: | F88: sorok száma | L88: Backlog: | N88: sorok száma | T88: Backlog: | V88: sorok száma
D90: Backlog: | F90: összes darab | L90: Backlog: | N90: összes darab | T90: Backlog: | V90: összes darab
D92: Kód: | E92: Időtartam | F92: Állásidő megnevezése | L92: Kód: | M92: Időtartam | N92: Állásidő megnevezése | T92: Kód: | U92: Időtartam | V92: Állásidő megnevezése
D93: 300 | E93: 480 | F93: =VLOOKUP(D93,állásidő_kódok!$B:$D,3,0) -> G - Gyártósor meghibásodása | L93: 300 | M93: 200 | N93: =VLOOKUP(L93,állásidő_kódok!$B:$D,3,0) -> G - Gyártósor meghibásodása | T93: 300 | U93: 100 | V93: =VLOOKUP(T93,állásidő_kódok!$B:$D,3,0) -> G - Gyártósor meghibásodása
F94: =VLOOKUP(D94,állásidő_kódok!$B:$D,3,0) ->  | N94: =VLOOKUP(L94,állásidő_kódok!$B:$D,3,0) ->  | V94: =VLOOKUP(T94,állásidő_kódok!$B:$D,3,0) -> 
F95: =VLOOKUP(D95,állásidő_kódok!$B:$D,3,0) ->  | N95: =VLOOKUP(L95,állásidő_kódok!$B:$D,3,0) ->  | V95: =VLOOKUP(T95,állásidő_kódok!$B:$D,3,0) -> 
F96: =VLOOKUP(D96,állásidő_kódok!$B:$D,3,0) ->  | N96: =VLOOKUP(L96,állásidő_kódok!$B:$D,3,0) ->  | V96: =VLOOKUP(T96,állásidő_kódok!$B:$D,3,0) -> 
F97: =VLOOKUP(D97,állásidő_kódok!$B:$D,3,0) ->  | N97: =VLOOKUP(L97,állásidő_kódok!$B:$D,3,0) ->  | V97: =VLOOKUP(T97,állásidő_kódok!$B:$D,3,0) -> 
F98: =VLOOKUP(D98,állásidő_kódok!$B:$D,3,0) ->  | N98: =VLOOKUP(L98,állásidő_kódok!$B:$D,3,0) ->  | V98: =VLOOKUP(T98,állásidő_kódok!$B:$D,3,0) -> 
F99: =VLOOKUP(D99,állásidő_kódok!$B:$D,3,0) ->  | N99: =VLOOKUP(L99,állásidő_kódok!$B:$D,3,0) ->  | V99: =VLOOKUP(T99,állásidő_kódok!$B:$D,3,0) -> 
F100: =VLOOKUP(D100,állásidő_kódok!$B:$D,3,0) ->  | N100: =VLOOKUP(L100,állásidő_kódok!$B:$D,3,0) ->  | V100: =VLOOKUP(T100,állásidő_kódok!$B:$D,3,0) -> 
F101: =VLOOKUP(D101,állásidő_kódok!$B:$D,3,0) ->  | N101: =VLOOKUP(L101,állásidő_kódok!$B:$D,3,0) ->  | V101: =VLOOKUP(T101,állásidő_kódok!$B:$D,3,0) -> 
D102: 205 | E102: 400 | F102: =VLOOKUP(D102,állásidő_kódok!$B:$D,3,0) -> AE - Csomagolóanyag hiány | L102: 1 | M102: 100 | N102: =VLOOKUP(L102,állásidő_kódok!$B:$D,3,0) -> E-I. - Emberi erőforrás hiány | T102: 5 | U102: 200 | V102: =VLOOKUP(T102,állásidő_kódok!$B:$D,3,0) -> E-I. - 5%-os emberi erőforrás hiány
E103: Állásidők nélküli teljesítés: | F103: =((SUM(E93:E102)/445))+E75/E77 -> 2.97752809 | M103: Állásidők nélküli teljesítés: | N103: =((SUM(M93:M102)/445))+M75/M77 -> 1.692675822 | U103: Állásidők nélküli teljesítés: | V103: =((SUM(U93:U102)/445))+U75/U77 -> 1.674157303
B104: =Alapadatok!C6 -> 2p Sztátor sor | J104: =B104 -> 2p Sztátor sor | R104: =B104 -> 2p Sztátor sor
D105: Gyártott: | E105: 45 | F105: db | L105: Gyártott: | M105: 52 | N105: db | T105: Gyártott: | U105: 33 | V105: db
D107: Elvárt darabszám: | E107: 50 | F107: db | H107: Elvárt db/op: | I107: 8.33 | L107: Elvárt darabszám: | M107: 52 | N107: db | P107: Elvárt db/op: | Q107: 8.67 | T107: Elvárt darabszám: | U107: 45 | V107: db | X107: Elvárt db/op: | Y107: 9
D108: Szükséges létszám: | E108: 6 | F108: fő | L108: Szükséges létszám: | M108: 6 | N108: fő | T108: Szükséges létszám: | U108: 5 | V108: fő
D109: Aktuális létszám: | E109: 7 | F109: fő | H109: Aktuális db/op: | I109: 6.428571429 | L109: Aktuális létszám: | M109: 0 | N109: fő | P109: Aktuális db/op: | Q109: 0 | T109: Aktuális létszám: | U109: 0 | V109: fő | X109: Aktuális db/op: | Y109: 0
D111: Operátor | E111: 5 | F111: fő | L111: Operátor | M111: 5 | N111: fő | T111: Operátor | U111: 5 | V111: fő
D112: Koordinátor | E112: 1 | F112: fő | L112: Koordinátor | M112: 1 | N112: fő | T112: Koordinátor | U112: 1 | V112: fő
D113: Beállító | E113: 1 | F113: fő | L113: Beállító | M113: 1 | N113: fő | T113: Beállító | U113: 1 | V113: fő
D114: QA, Service | F114: fő | L114: QA, Service | N114: fő | T114: QA, Service | V114: fő
D115: Anyagszállító | F115: fő | L115: Anyagszállító | N115: fő | T115: Anyagszállító | V115: fő
D116: Egyéb | F116: fő | L116: Egyéb | N116: fő | T116: Egyéb | V116: fő
D118: Backlog: | F118: sorok száma | L118: Backlog: | N118: sorok száma | T118: Backlog: | V118: sorok száma
D120: Backlog: | F120: összes darab | L120: Backlog: | N120: összes darab | T120: Backlog: | V120: összes darab
D122: Kód: | E122: Időtartam | F122: Állásidő megnevezése | L122: Kód: | M122: Időtartam | N122: Állásidő megnevezése | T122: Kód: | U122: Időtartam | V122: Állásidő megnevezése
F123: =VLOOKUP(D123,állásidő_kódok!$B:$D,3,0) ->  | N123: =VLOOKUP(L123,állásidő_kódok!$B:$D,3,0) ->  | T123: 100 | U123: 60 | V123: =VLOOKUP(T123,állásidő_kódok!$B:$D,3,0) -> E-II. - Betanulás-betanítás
F124: =VLOOKUP(D124,állásidő_kódok!$B:$D,3,0) ->  | N124: =VLOOKUP(L124,állásidő_kódok!$B:$D,3,0) ->  | V124: =VLOOKUP(T124,állásidő_kódok!$B:$D,3,0) -> 
F125: =VLOOKUP(D125,állásidő_kódok!$B:$D,3,0) ->  | N125: =VLOOKUP(L125,állásidő_kódok!$B:$D,3,0) ->  | V125: =VLOOKUP(T125,állásidő_kódok!$B:$D,3,0) -> 
F126: =VLOOKUP(D126,állásidő_kódok!$B:$D,3,0) ->  | N126: =VLOOKUP(L126,állásidő_kódok!$B:$D,3,0) ->  | V126: =VLOOKUP(T126,állásidő_kódok!$B:$D,3,0) -> 
F127: =VLOOKUP(D127,állásidő_kódok!$B:$D,3,0) ->  | N127: =VLOOKUP(L127,állásidő_kódok!$B:$D,3,0) ->  | V127: =VLOOKUP(T127,állásidő_kódok!$B:$D,3,0) -> 
F128: =VLOOKUP(D128,állásidő_kódok!$B:$D,3,0) ->  | N128: =VLOOKUP(L128,állásidő_kódok!$B:$D,3,0) ->  | V128: =VLOOKUP(T128,állásidő_kódok!$B:$D,3,0) -> 
F129: =VLOOKUP(D129,állásidő_kódok!$B:$D,3,0) ->  | N129: =VLOOKUP(L129,állásidő_kódok!$B:$D,3,0) ->  | V129: =VLOOKUP(T129,állásidő_kódok!$B:$D,3,0) -> 
F130: =VLOOKUP(D130,állásidő_kódok!$B:$D,3,0) ->  | N130: =VLOOKUP(L130,állásidő_kódok!$B:$D,3,0) ->  | V130: =VLOOKUP(T130,állásidő_kódok!$B:$D,3,0) -> 
F131: =VLOOKUP(D131,állásidő_kódok!$B:$D,3,0) ->  | N131: =VLOOKUP(L131,állásidő_kódok!$B:$D,3,0) ->  | V131: =VLOOKUP(T131,állásidő_kódok!$B:$D,3,0) -> 
F132: =VLOOKUP(D132,állásidő_kódok!$B:$D,3,0) ->  | N132: =VLOOKUP(L132,állásidő_kódok!$B:$D,3,0) ->  | V132: =VLOOKUP(T132,állásidő_kódok!$B:$D,3,0) -> 
E133: Állásidők nélküli teljesítés: | F133: =((SUM(E123:E132)/445))+E105/E107 -> 0.9 | M133: Állásidők nélküli teljesítés: | N133: =((SUM(M123:M132)/445))+M105/M107 -> 1 | U133: Állásidők nélküli teljesítés: | V133: =((SUM(U123:U132)/445))+U105/U107 -> 0.868164794
B134: =Alapadatok!C7 -> 4p sztátor sor | J134: =B134 -> 4p sztátor sor | R134: =B134 -> 4p sztátor sor
D135: Gyártott: | F135: db | L135: Gyártott: | M135: 20 | N135: db | T135: Gyártott: | V135: db
D137: Elvárt darabszám: | E137: 0 | F137: db | H137: Elvárt db/op: | I137: 0 | L137: Elvárt darabszám: | M137: 20 | N137: db | P137: Elvárt db/op: | Q137: 5 | T137: Elvárt darabszám: | U137: 0 | V137: db | X137: Elvárt db/op: | Y137: 0
D138: Szükséges létszám: | E138: 0 | F138: fő | L138: Szükséges létszám: | M138: 4 | N138: fő | T138: Szükséges létszám: | U138: 0 | V138: fő
D139: Aktuális létszám: | E139: 0 | F139: fő | H139: Aktuális db/op: | I139: 0 | L139: Aktuális létszám: | M139: 0 | N139: fő | P139: Aktuális db/op: | Q139: 0 | T139: Aktuális létszám: | U139: 0 | V139: fő | X139: Aktuális db/op: | Y139: 0
D141: Operátor | F141: fő | L141: Operátor | M141: 4 | N141: fő | T141: Operátor | V141: fő
D142: Koordinátor | F142: fő | L142: Koordinátor | N142: fő | T142: Koordinátor | V142: fő
D143: Beállító | F143: fő | L143: Beállító | N143: fő | T143: Beállító | V143: fő
D144: QA, Service | F144: fő | L144: QA, Service | N144: fő | T144: QA, Service | V144: fő
D145: Anyagszállító | F145: fő | L145: Anyagszállító | N145: fő | T145: Anyagszállító | V145: fő
D146: Egyéb | F146: fő | L146: Egyéb | N146: fő | T146: Egyéb | V146: fő
D148: Backlog: | F148: sorok száma | L148: Backlog: | N148: sorok száma | T148: Backlog: | V148: sorok száma
D150: Backlog: | F150: összes darab | L150: Backlog: | N150: összes darab | T150: Backlog: | V150: összes darab
D152: Kód: | E152: Időtartam | F152: Állásidő megnevezése | L152: Kód: | M152: Időtartam | N152: Állásidő megnevezése | T152: Kód: | U152: Időtartam | V152: Állásidő megnevezése
F153: =VLOOKUP(D153,állásidő_kódok!$B:$D,3,0) ->  | N153: =VLOOKUP(L153,állásidő_kódok!$B:$D,3,0) ->  | V153: =VLOOKUP(T153,állásidő_kódok!$B:$D,3,0) -> 
F154: =VLOOKUP(D154,állásidő_kódok!$B:$D,3,0) ->  | N154: =VLOOKUP(L154,állásidő_kódok!$B:$D,3,0) ->  | V154: =VLOOKUP(T154,állásidő_kódok!$B:$D,3,0) -> 
F155: =VLOOKUP(D155,állásidő_kódok!$B:$D,3,0) ->  | N155: =VLOOKUP(L155,állásidő_kódok!$B:$D,3,0) ->  | V155: =VLOOKUP(T155,állásidő_kódok!$B:$D,3,0) -> 
F156: =VLOOKUP(D156,állásidő_kódok!$B:$D,3,0) ->  | N156: =VLOOKUP(L156,állásidő_kódok!$B:$D,3,0) ->  | V156: =VLOOKUP(T156,állásidő_kódok!$B:$D,3,0) -> 
F157: =VLOOKUP(D157,állásidő_kódok!$B:$D,3,0) ->  | N157: =VLOOKUP(L157,állásidő_kódok!$B:$D,3,0) ->  | V157: =VLOOKUP(T157,állásidő_kódok!$B:$D,3,0) -> 
F158: =VLOOKUP(D158,állásidő_kódok!$B:$D,3,0) ->  | N158: =VLOOKUP(L158,állásidő_kódok!$B:$D,3,0) ->  | V158: =VLOOKUP(T158,állásidő_kódok!$B:$D,3,0) -> 
F159: =VLOOKUP(D159,állásidő_kódok!$B:$D,3,0) ->  | N159: =VLOOKUP(L159,állásidő_kódok!$B:$D,3,0) ->  | V159: =VLOOKUP(T159,állásidő_kódok!$B:$D,3,0) -> 
F160: =VLOOKUP(D160,állásidő_kódok!$B:$D,3,0) ->  | N160: =VLOOKUP(L160,állásidő_kódok!$B:$D,3,0) ->  | V160: =VLOOKUP(T160,állásidő_kódok!$B:$D,3,0) -> 
F161: =VLOOKUP(D161,állásidő_kódok!$B:$D,3,0) ->  | N161: =VLOOKUP(L161,állásidő_kódok!$B:$D,3,0) ->  | V161: =VLOOKUP(T161,állásidő_kódok!$B:$D,3,0) -> 
F162: =VLOOKUP(D162,állásidő_kódok!$B:$D,3,0) ->  | N162: =VLOOKUP(L162,állásidő_kódok!$B:$D,3,0) ->  | V162: =VLOOKUP(T162,állásidő_kódok!$B:$D,3,0) -> 
E163: Állásidők nélküli teljesítés: | F163: =((SUM(E153:E162)/445))+E135/E137 ->  | M163: Állásidők nélküli teljesítés: | N163: =((SUM(M153:M162)/445))+M135/M137 -> 1 | U163: Állásidők nélküli teljesítés: | V163: =((SUM(U153:U162)/445))+U135/U137 -> 
B164: =Alapadatok!C8 -> DE cella | J164: =B164 -> DE cella | R164: =B164 -> DE cella
D165: Gyártott: | E165: 54 | F165: db | L165: Gyártott: | M165: 56 | N165: db | T165: Gyártott: | U165: 52 | V165: db
D167: Elvárt darabszám: | E167: 52 | F167: db | H167: Elvárt db/op: | I167: 26 | L167: Elvárt darabszám: | M167: 52 | N167: db | P167: Elvárt db/op: | Q167: 26 | T167: Elvárt darabszám: | U167: 52 | V167: db | X167: Elvárt db/op: | Y167: 26
D168: Szükséges létszám: | E168: 2 | F168: fő | L168: Szükséges létszám: | M168: 2 | N168: fő | T168: Szükséges létszám: | U168: 2 | V168: fő
D169: Aktuális létszám: | E169: 2 | F169: fő | H169: Aktuális db/op: | I169: 27 | L169: Aktuális létszám: | M169: 0 | N169: fő | P169: Aktuális db/op: | Q169: 0 | T169: Aktuális létszám: | U169: 0 | V169: fő | X169: Aktuális db/op: | Y169: 0
D171: Operátor | E171: 2 | F171: fő | L171: Operátor | M171: 1 | N171: fő | T171: Operátor | U171: 1 | V171: fő
D172: Koordinátor | F172: fő | L172: Koordinátor | N172: fő | T172: Koordinátor | V172: fő
D173: Beállító | F173: fő | L173: Beállító | N173: fő | T173: Beállító | V173: fő
D174: QA, Service | F174: fő | L174: QA, Service | N174: fő | T174: QA, Service | V174: fő
D175: Anyagszállító | F175: fő | L175: Anyagszállító | N175: fő | T175: Anyagszállító | V175: fő
D176: Egyéb | F176: fő | L176: Egyéb | N176: fő | T176: Egyéb | V176: fő
D178: Backlog: | F178: sorok száma | L178: Backlog: | N178: sorok száma | T178: Backlog: | V178: sorok száma
D180: Backlog: | F180: összes darab | L180: Backlog: | N180: összes darab | T180: Backlog: | V180: összes darab
D182: Kód: | E182: Időtartam | F182: Állásidő megnevezése | L182: Kód: | M182: Időtartam | N182: Állásidő megnevezése | T182: Kód: | U182: Időtartam | V182: Állásidő megnevezése
F183: =VLOOKUP(D183,állásidő_kódok!$B:$D,3,0) ->  | N183: =VLOOKUP(L183,állásidő_kódok!$B:$D,3,0) ->  | V183: =VLOOKUP(T183,állásidő_kódok!$B:$D,3,0) -> 
F184: =VLOOKUP(D184,állásidő_kódok!$B:$D,3,0) ->  | N184: =VLOOKUP(L184,állásidő_kódok!$B:$D,3,0) ->  | V184: =VLOOKUP(T184,állásidő_kódok!$B:$D,3,0) -> 
F185: =VLOOKUP(D185,állásidő_kódok!$B:$D,3,0) ->  | N185: =VLOOKUP(L185,állásidő_kódok!$B:$D,3,0) ->  | V185: =VLOOKUP(T185,állásidő_kódok!$B:$D,3,0) -> 
F186: =VLOOKUP(D186,állásidő_kódok!$B:$D,3,0) ->  | N186: =VLOOKUP(L186,állásidő_kódok!$B:$D,3,0) ->  | V186: =VLOOKUP(T186,állásidő_kódok!$B:$D,3,0) -> 
F187: =VLOOKUP(D187,állásidő_kódok!$B:$D,3,0) ->  | N187: =VLOOKUP(L187,állásidő_kódok!$B:$D,3,0) ->  | V187: =VLOOKUP(T187,állásidő_kódok!$B:$D,3,0) -> 
F188: =VLOOKUP(D188,állásidő_kódok!$B:$D,3,0) ->  | N188: =VLOOKUP(L188,állásidő_kódok!$B:$D,3,0) ->  | V188: =VLOOKUP(T188,állásidő_kódok!$B:$D,3,0) -> 
F189: =VLOOKUP(D189,állásidő_kódok!$B:$D,3,0) ->  | N189: =VLOOKUP(L189,állásidő_kódok!$B:$D,3,0) ->  | V189: =VLOOKUP(T189,állásidő_kódok!$B:$D,3,0) -> 
F190: =VLOOKUP(D190,állásidő_kódok!$B:$D,3,0) ->  | N190: =VLOOKUP(L190,állásidő_kódok!$B:$D,3,0) ->  | V190: =VLOOKUP(T190,állásidő_kódok!$B:$D,3,0) -> 
F191: =VLOOKUP(D191,állásidő_kódok!$B:$D,3,0) ->  | N191: =VLOOKUP(L191,állásidő_kódok!$B:$D,3,0) ->  | V191: =VLOOKUP(T191,állásidő_kódok!$B:$D,3,0) -> 
F192: =VLOOKUP(D192,állásidő_kódok!$B:$D,3,0) ->  | N192: =VLOOKUP(L192,állásidő_kódok!$B:$D,3,0) ->  | V192: =VLOOKUP(T192,állásidő_kódok!$B:$D,3,0) -> 
E193: Állásidők nélküli teljesítés: | F193: =((SUM(E183:E192)/445))+E165/E167 -> 1.038461538 | M193: Állásidők nélküli teljesítés: | N193: =((SUM(M183:M192)/445))+M165/M167 -> 1.076923077 | U193: Állásidők nélküli teljesítés: | V193: =((SUM(U183:U192)/445))+U165/U167 -> 1
B194: =Alapadatok!C9 -> NDE cella | J194: =B194 -> NDE cella | R194: =B194 -> NDE cella
D195: Gyártott: | E195: 0 | F195: db | L195: Gyártott: | M195: 90 | N195: db | T195: Gyártott: | U195: 95 | V195: db
D197: Elvárt darabszám: | E197: 95 | F197: db | H197: Elvárt db/op: | I197: 95 | L197: Elvárt darabszám: | M197: 95 | N197: db | P197: Elvárt db/op: | Q197: 95 | T197: Elvárt darabszám: | U197: 95 | V197: db | X197: Elvárt db/op: | Y197: 95
D198: Szükséges létszám: | E198: 1 | F198: fő | L198: Szükséges létszám: | M198: 1 | N198: fő | T198: Szükséges létszám: | U198: 1 | V198: fő
D199: Aktuális létszám: | E199: 0 | F199: fő | H199: Aktuális db/op: | I199: 0 | L199: Aktuális létszám: | M199: 0 | N199: fő | P199: Aktuális db/op: | Q199: 0 | T199: Aktuális létszám: | U199: 0 | V199: fő | X199: Aktuális db/op: | Y199: 0
D201: Operátor | E201: 0 | F201: fő | L201: Operátor | M201: 1 | N201: fő | T201: Operátor | U201: 1 | V201: fő
D202: Koordinátor | F202: fő | L202: Koordinátor | N202: fő | T202: Koordinátor | V202: fő
D203: Beállító | F203: fő | L203: Beállító | N203: fő | T203: Beállító | V203: fő
D204: QA, Service | F204: fő | L204: QA, Service | N204: fő | T204: QA, Service | V204: fő
D205: Anyagszállító | F205: fő | L205: Anyagszállító | N205: fő | T205: Anyagszállító | V205: fő
D206: Egyéb | F206: fő | L206: Egyéb | N206: fő | T206: Egyéb | V206: fő
D208: Backlog: | F208: sorok száma | L208: Backlog: | N208: sorok száma | T208: Backlog: | V208: sorok száma
D210: Backlog: | F210: összes darab | L210: Backlog: | N210: összes darab | T210: Backlog: | V210: összes darab
D212: Kód: | E212: Időtartam | F212: Állásidő megnevezése | L212: Kód: | M212: Időtartam | N212: Állásidő megnevezése | T212: Kód: | U212: Időtartam | V212: Állásidő megnevezése
D213: 1 | E213: 480 | F213: =VLOOKUP(D213,állásidő_kódok!$B:$D,3,0) -> E-I. - Emberi erőforrás hiány | L213: 310 | M213: 10 | N213: =VLOOKUP(L213,állásidő_kódok!$B:$D,3,0) -> G - Átállás | V213: =VLOOKUP(T213,állásidő_kódok!$B:$D,3,0) -> 
F214: =VLOOKUP(D214,állásidő_kódok!$B:$D,3,0) ->  | L214: 304 | M214: 20 | N214: =VLOOKUP(L214,állásidő_kódok!$B:$D,3,0) -> G - Gagemax hiba/várakozás | V214: =VLOOKUP(T214,állásidő_kódok!$B:$D,3,0) -> 
F215: =VLOOKUP(D215,állásidő_kódok!$B:$D,3,0) ->  | N215: =VLOOKUP(L215,állásidő_kódok!$B:$D,3,0) ->  | V215: =VLOOKUP(T215,állásidő_kódok!$B:$D,3,0) -> 
F216: =VLOOKUP(D216,állásidő_kódok!$B:$D,3,0) ->  | N216: =VLOOKUP(L216,állásidő_kódok!$B:$D,3,0) ->  | V216: =VLOOKUP(T216,állásidő_kódok!$B:$D,3,0) -> 
F217: =VLOOKUP(D217,állásidő_kódok!$B:$D,3,0) ->  | N217: =VLOOKUP(L217,állásidő_kódok!$B:$D,3,0) ->  | V217: =VLOOKUP(T217,állásidő_kódok!$B:$D,3,0) -> 
F218: =VLOOKUP(D218,állásidő_kódok!$B:$D,3,0) ->  | N218: =VLOOKUP(L218,állásidő_kódok!$B:$D,3,0) ->  | V218: =VLOOKUP(T218,állásidő_kódok!$B:$D,3,0) -> 
F219: =VLOOKUP(D219,állásidő_kódok!$B:$D,3,0) ->  | N219: =VLOOKUP(L219,állásidő_kódok!$B:$D,3,0) ->  | V219: =VLOOKUP(T219,állásidő_kódok!$B:$D,3,0) -> 
F220: =VLOOKUP(D220,állásidő_kódok!$B:$D,3,0) ->  | N220: =VLOOKUP(L220,állásidő_kódok!$B:$D,3,0) ->  | V220: =VLOOKUP(T220,állásidő_kódok!$B:$D,3,0) -> 
F221: =VLOOKUP(D221,állásidő_kódok!$B:$D,3,0) ->  | N221: =VLOOKUP(L221,állásidő_kódok!$B:$D,3,0) ->  | V221: =VLOOKUP(T221,állásidő_kódok!$B:$D,3,0) -> 
F222: =VLOOKUP(D222,állásidő_kódok!$B:$D,3,0) ->  | N222: =VLOOKUP(L222,állásidő_kódok!$B:$D,3,0) ->  | V222: =VLOOKUP(T222,állásidő_kódok!$B:$D,3,0) -> 
E223: Állásidők nélküli teljesítés: | F223: =((SUM(E213:E222)/445))+E195/E197 -> 1.078651685 | M223: Állásidők nélküli teljesítés: | N223: =((SUM(M213:M222)/445))+M195/M197 -> 1.014784151 | U223: Állásidők nélküli teljesítés: | V223: =((SUM(U213:U222)/445))+U195/U197 -> 1
B224: =Alapadatok!C10 -> T+R | J224: =B224 -> T+R | R224: =B224 -> T+R
D225: Gyártott: | E225: 54 | F225: db | L225: Gyártott: | M225: 57 | N225: db | T225: Gyártott: | U225: 54 | V225: db
D227: Elvárt darabszám: | E227: 54 | F227: db | H227: Elvárt db/op: | I227: 18 | L227: Elvárt darabszám: | M227: 54 | N227: db | P227: Elvárt db/op: | Q227: 18 | T227: Elvárt darabszám: | U227: 54 | V227: db | X227: Elvárt db/op: | Y227: 18
D228: Szükséges létszám: | E228: 3 | F228: fő | L228: Szükséges létszám: | M228: 3 | N228: fő | T228: Szükséges létszám: | U228: 3 | V228: fő
D229: Aktuális létszám: | E229: 3 | F229: fő | H229: Aktuális db/op: | I229: 18 | L229: Aktuális létszám: | M229: 0 | N229: fő | P229: Aktuális db/op: | Q229: 0 | T229: Aktuális létszám: | U229: 0 | V229: fő | X229: Aktuális db/op: | Y229: 0
D231: Operátor | E231: 3 | F231: fő | L231: Operátor | M231: 3 | N231: fő | T231: Operátor | U231: 3 | V231: fő
D232: Koordinátor | F232: fő | L232: Koordinátor | M232: 1 | N232: fő | T232: Koordinátor | V232: fő
D233: Beállító | F233: fő | L233: Beállító | N233: fő | T233: Beállító | V233: fő
D234: QA, Service | F234: fő | L234: QA, Service | N234: fő | T234: QA, Service | V234: fő
D235: Anyagszállító | F235: fő | L235: Anyagszállító | N235: fő | T235: Anyagszállító | V235: fő
D236: Egyéb | F236: fő | L236: Egyéb | N236: fő | T236: Egyéb | V236: fő
D238: Backlog: | F238: sorok száma | L238: Backlog: | N238: sorok száma | T238: Backlog: | V238: sorok száma
... 238 more rows

Sheet wk_45_4
J2: =Alapadatok!C2 -> MG 160/180 | R2: Dátum: | T2: 2018-11-08 | X2: Töltsd ki a kereten belüli fehér mezőket!
B3: Éjszaka | G3: Műszak | J3: Délelőtt | O3: Műszak | R3: Délután | W3: Műszak | Z3: Napi összesítő | AQ3: Levél küldéséhez
AQ4: kattins az ikonra!
C5: =B74 -> Motor sor | G5: =B104 -> 2p Sztátor sor | K5: =J74 -> Motor sor | O5: =J104 -> 2p Sztátor sor | S5: =R74 -> Motor sor | W5: =R104 -> 2p Sztátor sor | AA5: =C5 -> Motor sor | AI5: =O5 -> 2p Sztátor sor
C6: Gyártott db | D6: =E75 -> 46 | E6: db | G6: Gyártott db | H6: =E105 -> 42 | I6: db | K6: Gyártott db | L6: =M75 -> 60 | M6: db | O6: Gyártott db | P6: =M105 -> 48 | Q6: db | S6: Gyártott db | T6: =U75 -> 30 | U6: db | W6: Gyártott db | X6: =U105 -> 27 | Y6: db | AB6: Aktuális | AC6: Elvárt | AE6: Éj | AF6: =IF(D8=0,0,D6/D8) -> 6.571428571 | AG6: db/fő | AJ6: Aktuális | AK6: Elvárt | AM6: Éj | AN6: =IF(H8=0,0,H6/H8) -> 7 | AO6: db/fő
C7: Elvárt db | D7: =E77 -> 52 | E7: db | G7: Elvárt db | H7: =E107 -> 50 | I7: db | K7: Elvárt db | L7: =M77 -> 54 | M7: db | O7: Elvárt db | P7: =M107 -> 52 | Q7: db | S7: Elvárt db | T7: =U77 -> 54 | U7: db | W7: Elvárt db | X7: =U107 -> 45 | Y7: db | AA7: Darabszám | AB7: =SUM(D6,L6,T6) -> 136 | AC7: =SUM(D7,L7,T7) -> 160 | AD7: db | AE7: De | AF7: =IF(L8=0,0,L6/L8) -> 0 | AG7: db/fő | AI7: Darabszám | AJ7: =SUM(H6,P6,X6) -> 117 | AK7: =SUM(H7,P7,X7) -> 147 | AL7: db | AM7: De | AN7: =IF(P8=0,0,P6/P8) -> 0 | AO7: db/fő
C8: Akt. létszám | D8: =E79 -> 7 | E8: fő | G8: Akt. létszám | H8: =E109 -> 6 | I8: fő | K8: Akt. létszám | L8: =M79 -> 0 | M8: fő | O8: Akt. létszám | P8: =M109 -> 0 | Q8: fő | S8: Akt. létszám | T8: =U79 -> 0 | U8: fő | W8: Akt. létszám | X8: =U109 -> 0 | Y8: fő | AA8: Létszám | AB8: =SUM(D8,L8,T8) -> 7 | AC8: =SUM(D9,L9,T9) -> 23 | AD8: fő | AE8: Du | AF8: =IF(T8=0,0,T6/T8) -> 0 | AG8: db/fő | AI8: Létszám | AJ8: =SUM(H8,P8,X8) -> 6 | AK8: =SUM(H9,P9,X9) -> 17 | AL8: fő | AM8: Du | AN8: =IF(X8=0,0,X6/X8) -> 0 | AO8: db/fő
C9: MPS létszám | D9: =E78 -> 7 | E9: fő | G9: MPS létszám | H9: =E108 -> 6 | I9: fő | K9: MPS létszám | L9: =M78 -> 8 | M9: fő | O9: MPS létszám | P9: =M108 -> 6 | Q9: fő | S9: MPS létszám | T9: =U78 -> 8 | U9: fő | W9: MPS létszám | X9: =U108 -> 5 | Y9: fő | AA9: Össz állásidő | AB9: =SUM(D10,L10,T10) -> 1000 | AD9: perc | AE9: Napi | AF9: =IF(AB8=0,0,AB7/AB8) -> 19.42857143 | AG9: db/fő | AI9: Össz állásidő | AJ9: =SUM(H10,P10,X10) -> 960 | AL9: perc | AM9: Napi | AN9: =IF(AJ8=0,0,AJ7/AJ8) -> 19.5 | AO9: db/fő
C10: Össz állásidő | D10: =SUM(E93:E102) -> 400 | E10: perc | G10: Össz állásidő | H10: =SUM(E123:E132) -> 480 | I10: perc | K10: Össz állásidő | L10: =SUM(M93:M102) -> 300 | M10: perc | O10: Össz állásidő | P10: =SUM(M123:M132) -> 0 | Q10: perc | S10: Össz állásidő | T10: =SUM(U93:U102) -> 300 | U10: perc | W10: Össz állásidő | X10: =SUM(U123:U132) -> 480 | Y10: perc | AA10: Backlog sor/db | AB10: =E88+M88+U88 -> 0 | AC10: =E90+M90+U90 -> 0 | AD10: db | AE10: Elvárt | AF10: =IF(AC8=0,0,AC7/AC8) -> 6.956521739 | AG10: db/fő | AI10: Backlog sor/db | AJ10: =E118+M118+U118 -> 0 | AK10: =E120+M120+U120 -> 0 | AL10: db | AM10: Elvárt | AN10: =IF(AK8=0,0,AK7/AK8) -> 8.647058824 | AO10: db/fő
C11: =B134 -> 4p sztátor sor | G11: =B164 -> DE cella | K11: =J134 -> 4p sztátor sor | O11: =J164 -> DE cella | S11: =R134 -> 4p sztátor sor | W11: =R164 -> DE cella | AA11: =C11 -> 4p sztátor sor | AI11: =O11 -> DE cella
C12: Gyártott db | D12: =E135 -> 0 | E12: db | G12: Gyártott db | H12: =E165 -> 54 | I12: db | K12: Gyártott db | L12: =M135 -> 20 | M12: db | O12: Gyártott db | P12: =M165 -> 56 | Q12: db | S12: Gyártott db | T12: =U135 -> 0 | U12: db | W12: Gyártott db | X12: =U165 -> 52 | Y12: db | AB12: Aktuális | AC12: Elvárt | AE12: Éj | AF12: =IF(D14=0,0,D12/D14) -> 0 | AG12: db/fő | AJ12: Aktuális | AK12: Elvárt | AM12: Éj | AN12: =IF(H14=0,0,H12/H14) -> 27 | AO12: db/fő
C13: Elvárt db | D13: =E137 -> 0 | E13: db | G13: Elvárt db | H13: =E167 -> 52 | I13: db | K13: Elvárt db | L13: =M137 -> 20 | M13: db | O13: Elvárt db | P13: =M167 -> 52 | Q13: db | S13: Elvárt db | T13: =U137 -> 0 | U13: db | W13: Elvárt db | X13: =U167 -> 52 | Y13: db | AA13: Darabszám | AB13: =SUM(D12,L12,T12) -> 20 | AC13: =SUM(D13,L13,T13) -> 20 | AD13: db | AE13: De | AF13: =IF(L14=0,0,L12/L14) -> 0 | AG13: db/fő | AI13: Darabszám | AJ13: =SUM(H12,P12,X12) -> 162 | AK13: =SUM(H13,P13,X13) -> 156 | AL13: db | AM13: De | AN13: =IF(P14=0,0,P12/P14) -> 0 | AO13: db/fő
C14: Akt. létszám | D14: =E139 -> 0 | E14: fő | G14: Akt. létszám | H14: =E169 -> 2 | I14: fő | K14: Akt. létszám | L14: =M139 -> 0 | M14: fő | O14: Akt. létszám | P14: =M169 -> 0 | Q14: fő | S14: Akt. létszám | T14: =U139 -> 0 | U14: fő | W14: Akt. létszám | X14: =U169 -> 0 | Y14: fő | AA14: Létszám | AB14: =SUM(D14,L14,T14) -> 0 | AC14: =SUM(D15,L15,T15) -> 4 | AD14: fő | AE14: Du | AF14: =IF(T14=0,0,T12/T14) -> 0 | AG14: db/fő | AI14: Létszám | AJ14: =SUM(H14,P14,X14) -> 2 | AK14: =SUM(H15,P15,X15) -> 6 | AL14: fő | AM14: Du | AN14: =IF(X14=0,0,X12/X14) -> 0 | AO14: db/fő
C15: MPS létszám | D15: =E138 -> 0 | E15: fő | G15: MPS létszám | H15: =E168 -> 2 | I15: fő | K15: MPS létszám | L15: =M138 -> 4 | M15: fő | O15: MPS létszám | P15: =M168 -> 2 | Q15: fő | S15: MPS létszám | T15: =U138 -> 0 | U15: fő | W15: MPS létszám | X15: =U168 -> 2 | Y15: fő | AA15: Össz állásidő | AB15: =SUM(D16,L16,T16) -> 0 | AD15: perc | AE15: Napi | AF15: =IF(AB14=0,0,AB13/AB14) -> 0 | AG15: db/fő | AI15: Össz állásidő | AJ15: =SUM(H16,P16,X16) -> 0 | AL15: perc | AM15: Napi | AN15: =IF(AJ14=0,0,AJ13/AJ14) -> 81 | AO15: db/fő
C16: Össz állásidő | D16: =SUM(E153:E162) -> 0 | E16: perc | G16: Össz állásidő | H16: =SUM(E183:E192) -> 0 | I16: perc | K16: Össz állásidő | L16: =SUM(M153:M162) -> 0 | M16: perc | O16: Össz állásidő | P16: =SUM(M183:M192) -> 0 | Q16: perc | S16: Össz állásidő | T16: =SUM(U153:U162) -> 0 | U16: perc | W16: Össz állásidő | X16: =SUM(U183:U192) -> 0 | Y16: perc | AA16: Backlog sor/db | AB16: =SUM(E148,M148,U148) -> 0 | AC16: =SUM(E150,M150,U150) -> 0 | AD16: db | AE16: Elvárt | AF16: =IF(AC14=0,0,AC13/AC14) -> 5 | AG16: db/fő | AI16: Backlog sor/db | AJ16: =SUM(E178,M178,U178) -> 0 | AK16: =SUM(E180,M180,U180) -> 0 | AL16: db | AM16: Elvárt | AN16: =IF(AK14=0,0,AK13/AK14) -> 26 | AO16: db/fő
C17: =B194 -> NDE cella | G17: =B224 -> T+R | K17: =J194 -> NDE cella | O17: =J224 -> T+R | S17: =R194 -> NDE cella | W17: =R224 -> T+R | AA17: =C17 -> NDE cella | AI17: =O17 -> T+R
C18: Gyártott db | D18: =E195 -> 0 | E18: db | G18: Gyártott db | H18: =E225 -> 54 | I18: db | K18: Gyártott db | L18: =M195 -> 96 | M18: db | O18: Gyártott db | P18: =M225 -> 54 | Q18: db | S18: Gyártott db | T18: =U195 -> 95 | U18: db | W18: Gyártott db | X18: =U225 -> 54 | Y18: db | AB18: Aktuális | AC18: Elvárt | AE18: Éj | AF18: =IF(D20=0,0,D18/D20) -> 0 | AG18: db/fő | AJ18: Aktuális | AK18: Elvárt | AM18: Éj | AN18: =IF(H20=0,0,H18/H20) -> 18 | AO18: db/fő
C19: Elvárt db | D19: =E197 -> 95 | E19: db | G19: Elvárt db | H19: =E227 -> 54 | I19: db | K19: Elvárt db | L19: =M197 -> 95 | M19: db | O19: Elvárt db | P19: =M227 -> 54 | Q19: db | S19: Elvárt db | T19: =U197 -> 95 | U19: db | W19: Elvárt db | X19: =U227 -> 54 | Y19: db | AA19: Darabszám | AB19: =SUM(D18,L18,T18) -> 191 | AC19: =SUM(D19,L19,T19) -> 285 | AD19: db | AE19: De | AF19: =IF(L20=0,0,L18/L20) -> 0 | AG19: db/fő | AI19: Darabszám | AJ19: =SUM(H18,P18,X18) -> 162 | AK19: =SUM(H19,P19,X19) -> 162 | AL19: db | AM19: De | AN19: =IF(P20=0,0,P18/P20) -> 0 | AO19: db/fő
C20: Akt. létszám | D20: =E199 -> 0 | E20: fő | G20: Akt. létszám | H20: =E229 -> 3 | I20: fő | K20: Akt. létszám | L20: =M199 -> 0 | M20: fő | O20: Akt. létszám | P20: =M229 -> 0 | Q20: fő | S20: Akt. létszám | T20: =U199 -> 0 | U20: fő | W20: Akt. létszám | X20: =U229 -> 0 | Y20: fő | AA20: Létszám | AB20: =SUM(D20,L20,T20) -> 0 | AC20: =SUM(D21,L21,T21) -> 3 | AD20: fő | AE20: Du | AF20: =IF(T20=0,0,T18/T20) -> 0 | AG20: db/fő | AI20: Létszám | AJ20: =SUM(H20,P20,X20) -> 3 | AK20: =SUM(H21,P21,X21) -> 9 | AL20: fő | AM20: Du | AN20: =IF(X20=0,0,X18/X20) -> 0 | AO20: db/fő
C21: MPS létszám | D21: =E198 -> 1 | E21: fő | G21: MPS létszám | H21: =E228 -> 3 | I21: fő | K21: MPS létszám | L21: =M198 -> 1 | M21: fő | O21: MPS létszám | P21: =M228 -> 3 | Q21: fő | S21: MPS létszám | T21: =U198 -> 1 | U21: fő | W21: MPS létszám | X21: =U228 -> 3 | Y21: fő | AA21: Össz állásidő | AB21: =SUM(D22,L22,T22) -> 0 | AD21: perc | AE21: Napi | AF21: =IF(AB20=0,0,AB19/AB20) -> 0 | AG21: db/fő | AI21: Össz állásidő | AJ21: =SUM(H22,P22,X22) -> 0 | AL21: perc | AM21: Napi | AN21: =IF(AJ20=0,0,AJ19/AJ20) -> 54 | AO21: db/fő
C22: Össz állásidő | D22: =SUM(E213:E222) -> 0 | E22: perc | G22: Össz állásidő | H22: =SUM(E243:E252) -> 0 | I22: perc | K22: Össz állásidő | L22: =SUM(M213:M222) -> 0 | M22: perc | O22: Össz állásidő | P22: =SUM(M243:M252) -> 0 | Q22: perc | S22: Össz állásidő | T22: =SUM(U213:U222) -> 0 | U22: perc | W22: Össz állásidő | X22: =SUM(U243:U252) -> 0 | Y22: perc | AA22: Backlog sor/db | AB22: =SUM(E208,M208,U208) -> 0 | AC22: =SUM(E210,M210,U210) -> 0 | AD22: db | AE22: Elvárt | AF22: =IF(AC20=0,0,AC19/AC20) -> 95 | AG22: db/fő | AI22: Backlog sor/db | AJ22: =SUM(E238,M238,U238) -> 0 | AK22: =SUM(E240,M240,U240) -> 0 | AL22: db | AM22: Elvárt | AN22: =IF(AK20=0,0,AK19/AK20) -> 18 | AO22: db/fő
C23: =B254 -> Cella7 | G23: =B284 -> Cella8 | K23: =J254 -> Cella7 | O23: =J284 -> Cella8 | S23: =R254 -> Cella7 | W23: =R284 -> Cella8 | AA23: =C23 -> Cella7 | AI23: =O23 -> Cella8
C24: Gyártott db | D24: =E255 -> 0 | E24: db | G24: Gyártott db | H24: =E285 -> 0 | I24: db | K24: Gyártott db | L24: =M255 -> 0 | M24: db | O24: Gyártott db | P24: =M285 -> 0 | Q24: db | S24: Gyártott db | T24: =U255 -> 0 | U24: db | W24: Gyártott db | X24: =U285 -> 0 | Y24: db | AB24: Aktuális | AC24: Elvárt | AE24: Éj | AF24: =IF(D26=0,0,D24/D26) -> 0 | AG24: db/fő | AJ24: Aktuális | AK24: Elvárt | AM24: Éj | AN24: =IF(H26=0,0,H24/H26) -> 0 | AO24: db/fő
C25: Elvárt db | D25: =E257 -> 0 | E25: db | G25: Elvárt db | H25: =E287 -> 0 | I25: db | K25: Elvárt db | L25: =M257 -> 0 | M25: db | O25: Elvárt db | P25: =M287 -> 0 | Q25: db | S25: Elvárt db | T25: =U257 -> 0 | U25: db | W25: Elvárt db | X25: =U287 -> 0 | Y25: db | AA25: Darabszám | AB25: =SUM(D24,L24,T24) -> 0 | AC25: =SUM(D25,L25,T25) -> 0 | AD25: db | AE25: De | AF25: =IF(L26=0,0,L24/L26) -> 0 | AG25: db/fő | AI25: Darabszám | AJ25: =SUM(H24,P24,X24) -> 0 | AK25: =SUM(H25,P25,X25) -> 0 | AL25: db | AM25: De | AN25: =IF(P26=0,0,P24/P26) -> 0 | AO25: db/fő
C26: Akt. létszám | D26: =E259 -> 0 | E26: fő | G26: Akt. létszám | H26: =E289 -> 0 | I26: fő | K26: Akt. létszám | L26: =M259 -> 0 | M26: fő | O26: Akt. létszám | P26: =M289 -> 0 | Q26: fő | S26: Akt. létszám | T26: =U259 -> 0 | U26: fő | W26: Akt. létszám | X26: =U289 -> 0 | Y26: fő | AA26: Létszám | AB26: =SUM(D26,L26,T26) -> 0 | AC26: =SUM(D27,L27,T27) -> 0 | AD26: fő | AE26: Du | AF26: =IF(T26=0,0,T24/T26) -> 0 | AG26: db/fő | AI26: Létszám | AJ26: =SUM(H26,P26,X26) -> 0 | AK26: =SUM(H27,P27,X27) -> 0 | AL26: fő | AM26: Du | AN26: =IF(X26=0,0,X24/X26) -> 0 | AO26: db/fő
C27: MPS létszám | D27: =E258 -> 0 | E27: fő | G27: MPS létszám | H27: =E288 -> 0 | I27: fő | K27: MPS létszám | L27: =M258 -> 0 | M27: fő | O27: MPS létszám | P27: =M288 -> 0 | Q27: fő | S27: MPS létszám | T27: =U258 -> 0 | U27: fő | W27: MPS létszám | X27: =U288 -> 0 | Y27: fő | AA27: Össz állásidő | AB27: =SUM(D28,L28,T28) -> 0 | AD27: perc | AE27: Napi | AF27: =IF(AB26=0,0,AB25/AB26) -> 0 | AG27: db/fő | AI27: Össz állásidő | AJ27: =SUM(H28,P28,X28) -> 0 | AL27: perc | AM27: Napi | AN27: =IF(AJ26=0,0,AJ25/AJ26) -> 0 | AO27: db/fő
C28: Össz állásidő | D28: =SUM(E273:E282) -> 0 | E28: perc | G28: Össz állásidő | H28: =SUM(E303:E312) -> 0 | I28: perc | K28: Össz állásidő | L28: =SUM(M273:M282) -> 0 | M28: perc | O28: Össz állásidő | P28: =SUM(M303:M312) -> 0 | Q28: perc | S28: Össz állásidő | T28: =SUM(U273:U282) -> 0 | U28: perc | W28: Össz állásidő | X28: =SUM(U303:U312) -> 0 | Y28: perc | AA28: Backlog sor/db | AB28: =SUM(E160,M160,U160) -> 0 | AC28: =SUM(E162,M162,U162) -> 0 | AD28: db | AE28: Elvárt | AF28: =IF(AC26=0,0,AC25/AC26) -> 0 | AG28: db/fő | AI28: Backlog sor/db | AJ28: =SUM(E160,M160,U160) -> 0 | AK28: =SUM(E162,M162,U162) -> 0 | AL28: db | AM28: Elvárt | AN28: =IF(AK26=0,0,AK25/AK26) -> 0 | AO28: db/fő
C29: =B314 -> Cella9 | G29: =B344 -> Cella10 | K29: =J314 -> Cella9 | O29: =J344 -> Cella10 | S29: =R314 -> Cella9 | W29: =R344 -> Cella10 | AA29: =C29 -> Cella9 | AI29: =G29 -> Cella10
C30: Gyártott db | D30: =E315 -> 0 | E30: db | G30: Gyártott db | H30: =E345 -> 0 | I30: db | K30: Gyártott db | L30: =M315 -> 0 | M30: db | O30: Gyártott db | P30: =M345 -> 0 | Q30: db | S30: Gyártott db | T30: =U315 -> 0 | U30: db | W30: Gyártott db | X30: =U345 -> 0 | Y30: db | AB30: Aktuális | AC30: Elvárt | AE30: Éj | AF30: =IF(D32=0,0,D30/D32) -> 0 | AG30: db/fő | AJ30: Aktuális | AK30: Elvárt | AM30: Éj | AN30: =IF(D32=0,0,D30/D32) -> 0 | AO30: db/fő
C31: Elvárt db | D31: =E317 -> 0 | E31: db | G31: Elvárt db | H31: =E347 -> 0 | I31: db | K31: Elvárt db | L31: =M317 -> 0 | M31: db | O31: Elvárt db | P31: =M347 -> 0 | Q31: db | S31: Elvárt db | T31: =U317 -> 0 | U31: db | W31: Elvárt db | X31: =U347 -> 0 | Y31: db | AA31: Darabszám | AB31: =SUM(D30,L30,T30) -> 0 | AC31: =SUM(D31,L31,T31) -> 0 | AD31: db | AE31: De | AF31: =IF(L32=0,0,L30/L32) -> 0 | AG31: db/fő | AI31: Darabszám | AJ31: =SUM(H30,P30,X30) -> 0 | AK31: =SUM(H31,P31,X31) -> 0 | AL31: db | AM31: De | AN31: =IF(L32=0,0,L30/L32) -> 0 | AO31: db/fő
C32: Akt. létszám | D32: =E319 -> 0 | E32: fő | G32: Akt. létszám | H32: =E349 -> 0 | I32: fő | K32: Akt. létszám | L32: =M319 -> 0 | M32: fő | O32: Akt. létszám | P32: =M349 -> 0 | Q32: fő | S32: Akt. létszám | T32: =U319 -> 0 | U32: fő | W32: Akt. létszám | X32: =U349 -> 0 | Y32: fő | AA32: Létszám | AB32: =SUM(D32,L32,T32) -> 0 | AC32: =SUM(D33,L33,T33) -> 0 | AD32: fő | AE32: Du | AF32: =IF(T32=0,0,T30/T32) -> 0 | AG32: db/fő | AI32: Létszám | AJ32: =SUM(H32,P32,X32) -> 0 | AK32: =SUM(H33,P33,X33) -> 0 | AL32: fő | AM32: Du | AN32: =IF(T32=0,0,T30/T32) -> 0 | AO32: db/fő
C33: MPS létszám | D33: =E318 -> 0 | E33: fő | G33: MPS létszám | H33: =E348 -> 0 | I33: fő | K33: MPS létszám | L33: =M318 -> 0 | M33: fő | O33: MPS létszám | P33: =M348 -> 0 | Q33: fő | S33: MPS létszám | T33: =U318 -> 0 | U33: fő | W33: MPS létszám | X33: =U348 -> 0 | Y33: fő | AA33: Össz állásidő | AB33: =SUM(D34,L34,T34) -> 0 | AD33: perc | AE33: Napi | AF33: =IF(AB32=0,0,AB31/AB32) -> 0 | AG33: db/fő | AI33: Össz állásidő | AJ33: =SUM(H34,P34,X34) -> 0 | AL33: perc | AM33: Napi | AN33: =IF(AJ32=0,0,AJ31/AJ32) -> 0 | AO33: db/fő
C34: Össz állásidő | D34: =SUM(E333:E342) -> 0 | E34: perc | G34: Össz állásidő | H34: =SUM(E363:E372) -> 0 | I34: perc | K34: Össz állásidő | L34: =SUM(M333:M342) -> 0 | M34: perc | O34: Össz állásidő | P34: =SUM(M363:M372) -> 0 | Q34: perc | S34: Össz állásidő | T34: =SUM(U333:U342) -> 0 | U34: perc | W34: Össz állásidő | X34: =SUM(U363:U372) -> 0 | Y34: perc | AA34: Backlog sor/db | AB34: =SUM(E166,M166,U166) -> 0 | AC34: =SUM(E168,M168,U168) -> 6 | AD34: db | AE34: Elvárt | AF34: =IF(AC32=0,0,AC31/AC32) -> 0 | AG34: db/fő | AI34: Backlog sor/db | AJ34: =SUM(E172,M172,U172) -> 0 | AK34: =SUM(E174,M174,U174) -> 0 | AL34: db | AM34: Elvárt | AN34: =IF(AK32=0,0,AK31/AK32) -> 0 | AO34: db/fő
C35: =B374 -> Cella11 | G35: =B404 -> Cella12 | K35: =J374 -> Cella11 | O35: =J404 -> Cella12 | S35: =R374 -> Cella11 | W35: =R404 -> Cella12 | AA35: =C35 -> Cella11 | AI35: =G35 -> Cella12
C36: Gyártott db | D36: =E375 -> 0 | E36: db | G36: Gyártott db | H36: =E405 -> 0 | I36: db | K36: Gyártott db | L36: =M375 -> 0 | M36: db | O36: Gyártott db | P36: =M405 -> 0 | Q36: db | S36: Gyártott db | T36: =U375 -> 0 | U36: db | W36: Gyártott db | X36: =U405 -> 0 | Y36: db | AB36: Aktuális | AC36: Elvárt | AE36: Éj | AF36: =IF(D38=0,0,D36/D38) -> 0 | AG36: db/fő | AJ36: Aktuális | AK36: Elvárt | AM36: Éj | AN36: =IF(H38=0,0,H36/H38) -> 0 | AO36: db/fő
C37: Elvárt db | D37: =E377 -> 0 | E37: db | G37: Elvárt db | H37: =E407 -> 0 | I37: db | K37: Elvárt db | L37: =M377 -> 0 | M37: db | O37: Elvárt db | P37: =M407 -> 0 | Q37: db | S37: Elvárt db | T37: =U377 -> 0 | U37: db | W37: Elvárt db | X37: =U407 -> 0 | Y37: db | AA37: Darabszám | AB37: =SUM(D36,L36,T36) -> 0 | AC37: =SUM(D37,L37,T37) -> 0 | AD37: db | AE37: De | AF37: =IF(L38=0,0,L36/L38) -> 0 | AG37: db/fő | AI37: Darabszám | AJ37: =SUM(H36,LX36,X36) -> 0 | AK37: =SUM(H37,P37,X37) -> 0 | AL37: db | AM37: De | AN37: =IF(P38=0,0,P36/P38) -> 0 | AO37: db/fő
C38: Akt. létszám | D38: =E379 -> 0 | E38: fő | G38: Akt. létszám | H38: =E409 -> 0 | I38: fő | K38: Akt. létszám | L38: =M379 -> 0 | M38: fő | O38: Akt. létszám | P38: =M409 -> 0 | Q38: fő | S38: Akt. létszám | T38: =U379 -> 0 | U38: fő | W38: Akt. létszám | X38: =U409 -> 0 | Y38: fő | AA38: Létszám | AB38: =SUM(D38,L38,T38) -> 0 | AC38: =SUM(D39,L39,T39) -> 0 | AD38: fő | AE38: Du | AF38: =IF(T38=0,0,T36/T38) -> 0 | AG38: db/fő | AI38: Létszám | AJ38: =SUM(H38,P38,X38) -> 0 | AK38: =SUM(H39,P39,X39) -> 0 | AL38: fő | AM38: Du | AN38: =IF(X38=0,0,X37/X38) -> 0 | AO38: db/fő
C39: MPS létszám | D39: =E378 -> 0 | E39: fő | G39: MPS létszám | H39: =E408 -> 0 | I39: fő | K39: MPS létszám | L39: =M378 -> 0 | M39: fő | O39: MPS létszám | P39: =M408 -> 0 | Q39: fő | S39: MPS létszám | T39: =U378 -> 0 | U39: fő | W39: MPS létszám | X39: =U408 -> 0 | Y39: fő | AA39: Össz állásidő | AB39: =SUM(D40,L40,T40) -> 0 | AD39: perc | AE39: Napi | AF39: =IF(AB38=0,0,AB37/AB38) -> 0 | AG39: db/fő | AI39: Össz állásidő | AJ39: =SUM(H40,P40,X40) -> 0 | AL39: perc | AM39: Napi | AN39: =IF(AJ38=0,0,AJ37/AJ38) -> 0 | AO39: db/fő
C40: Össz állásidő | D40: =SUM(E393:E402) -> 0 | E40: perc | G40: Össz állásidő | H40: =SUM(E423:E432) -> 0 | I40: perc | K40: Össz állásidő | L40: =SUM(M393:M402) -> 0 | M40: perc | O40: Össz állásidő | P40: =SUM(M423:M432) -> 0 | Q40: perc | S40: Össz állásidő | T40: =SUM(U393:U402) -> 0 | U40: perc | W40: Össz állásidő | X40: =SUM(U423:U432) -> 0 | Y40: perc | AA40: Backlog sor/db | AB40: =SUM(E172,M172,U172) -> 0 | AC40: =SUM(E174,M174,U174) -> 0 | AD40: db | AE40: Elvárt | AF40: =IF(AC38=0,0,AC37/AC38) -> 0 | AG40: db/fő | AI40: Backlog sor/db | AJ40: =SUM(E178,M178,U178) -> 0 | AK40: =SUM(E180,M180,U180) -> 0 | AL40: db | AM40: Elvárt | AN40: =IF(AK38=0,0,AK37/AK38) -> 0 | AO40: db/fő
C41: =B434 -> Cella13 | G41: =B464 -> Cella14 | K41: =J434 -> Cella13 | O41: =J464 -> Cella14 | S41: =R434 -> Cella13 | W41: =R464 -> Cella14 | AA41: =C41 -> Cella13 | AI41: =G41 -> Cella14
C42: Gyártott db | D42: =E435 -> 0 | E42: db | G42: Gyártott db | H42: =E465 -> 0 | I42: db | K42: Gyártott db | L42: =M435 -> 0 | M42: db | O42: Gyártott db | P42: =M465 -> 0 | Q42: db | S42: Gyártott db | T42: =U435 -> 0 | U42: db | W42: Gyártott db | X42: =U465 -> 0 | Y42: db | AB42: Aktuális | AC42: Elvárt | AE42: Éj | AF42: =IF(D44=0,0,D42/D44) -> 0 | AG42: db/fő | AJ42: Aktuális | AK42: Elvárt | AM42: Éj | AN42: =IF(H44=0,0,H42/H44) -> 0 | AO42: db/fő
C43: Elvárt db | D43: =E437 -> 0 | E43: db | G43: Elvárt db | H43: =E467 -> 0 | I43: db | K43: Elvárt db | L43: =M437 -> 0 | M43: db | O43: Elvárt db | P43: =M467 -> 0 | Q43: db | S43: Elvárt db | T43: =U437 -> 0 | U43: db | W43: Elvárt db | X43: =U467 -> 0 | Y43: db | AA43: Darabszám | AB43: =SUM(D42,L42,T42) -> 0 | AC43: =SUM(D43,L43,T43) -> 0 | AD43: db | AE43: De | AF43: =IF(L44=0,0,L42/L44) -> 0 | AG43: db/fő | AI43: Darabszám | AJ43: =SUM(H42,P42,X42) -> 0 | AK43: =SUM(H43,P43,X43) -> 0 | AL43: db | AM43: De | AN43: =IF(P44=0,0,P42/P44) -> 0 | AO43: db/fő
C44: Akt. létszám | D44: =E439 -> 0 | E44: fő | G44: Akt. létszám | H44: =E469 -> 0 | I44: fő | K44: Akt. létszám | L44: =M439 -> 0 | M44: fő | O44: Akt. létszám | P44: =M469 -> 0 | Q44: fő | S44: Akt. létszám | T44: =U439 -> 0 | U44: fő | W44: Akt. létszám | X44: =U469 -> 0 | Y44: fő | AA44: Létszám | AB44: =SUM(D44,L44,T44) -> 0 | AC44: =SUM(D45,L45,T45) -> 0 | AD44: fő | AE44: Du | AF44: =IF(T44=0,0,T42/T44) -> 0 | AG44: db/fő | AI44: Létszám | AJ44: =SUM(D56,L56,T56) -> 0 | AK44: =SUM(D57,L57,T57) -> 0 | AL44: fő | AM44: Du | AN44: =IF(X44=0,0,X42/X44) -> 0 | AO44: db/fő
C45: MPS létszám | D45: =E438 -> 0 | E45: fő | G45: MPS létszám | H45: =E468 -> 0 | I45: fő | K45: MPS létszám | L45: =M438 -> 0 | M45: fő | O45: MPS létszám | P45: =M468 -> 0 | Q45: fő | S45: MPS létszám | T45: =U438 -> 0 | U45: fő | W45: MPS létszám | X45: =U468 -> 0 | Y45: fő | AA45: Össz állásidő | AB45: =SUM(D46,L46,T46) -> 0 | AD45: perc | AE45: Napi | AF45: =IF(AB44=0,0,AB43/AB44) -> 0 | AG45: db/fő | AI45: Össz állásidő | AJ45: =SUM(D58,L58,T58) -> 0 | AL45: perc | AM45: Napi | AN45: =IF(AJ44=0,0,AJ43/AJ44) -> 0 | AO45: db/fő
C46: Össz állásidő | D46: =SUM(E453:E462) -> 0 | E46: perc | G46: Össz állásidő | H46: =SUM(E483:E492) -> 0 | I46: perc | K46: Össz állásidő | L46: =SUM(M453:M462) -> 0 | M46: perc | O46: Össz állásidő | P46: =SUM(M483:M492) -> 0 | Q46: perc | S46: Össz állásidő | T46: =SUM(U453:U462) -> 0 | U46: perc | W46: Össz állásidő | X46: =SUM(U483:U492) -> 0 | Y46: perc | AA46: Backlog sor/db | AB46: =SUM(E178,M178,U178) -> 0 | AC46: =SUM(E180,M180,U180) -> 0 | AD46: db | AE46: Elvárt | AF46: =IF(AC44=0,0,AC43/AC44) -> 0 | AG46: db/fő | AI46: Backlog sor/db | AJ46: =SUM(E190,M190,U190) -> 0 | AK46: =SUM(E192,M192,U192) -> 0 | AL46: db | AM46: Elvárt | AN46: =IF(AK44=0,0,AK43/AK44) -> 0 | AO46: db/fő
C47: =B494 -> Cella15 | K47: =J494 -> Cella15 | S47: =R494 -> Cella15 | AA47: =C47 -> Cella15
C48: Gyártott db | D48: =E495 -> 0 | E48: db | K48: Gyártott db | L48: =M495 -> 0 | M48: db | S48: Gyártott db | T48: =U495 -> 0 | U48: db | AB48: Aktuális | AC48: Elvárt | AE48: Éj | AF48: =IF(D50=0,0,D48/D50) -> 0 | AG48: db/fő
C49: Elvárt db | D49: =E497 -> 0 | E49: db | K49: Elvárt db | L49: =M497 -> 0 | M49: db | S49: Elvárt db | T49: =U497 -> 0 | U49: db | AA49: Darabszám | AB49: =SUM(D48,L48,T48) -> 0 | AC49: =SUM(D49,L49,T49) -> 0 | AD49: db | AE49: De | AF49: =IF(L50=0,0,L48/L50) -> 0 | AG49: db/fő
C50: Akt. létszám | D50: =E499 -> 0 | E50: fő | K50: Akt. létszám | L50: =M499 -> 0 | M50: fő | S50: Akt. létszám | T50: =U499 -> 0 | U50: fő | AA50: Létszám | AB50: =SUM(D50,L50,T50) -> 0 | AC50: =SUM(D51,L51,T51) -> 0 | AD50: fő | AE50: Du | AF50: =IF(T50=0,0,T48/T50) -> 0 | AG50: db/fő
C51: MPS létszám | D51: =E498 -> 0 | E51: fő | K51: MPS létszám | L51: =M498 -> 0 | M51: fő | S51: MPS létszám | T51: =U498 -> 0 | U51: fő | AA51: Össz állásidő | AB51: =SUM(D52,L52,T52) -> 0 | AD51: perc | AE51: Napi | AF51: =IF(AB50=0,0,AB49/AB50) -> 0 | AG51: db/fő
C52: Össz állásidő | D52: =SUM(E513:E522) -> 0 | E52: perc | K52: Össz állásidő | L52: =SUM(M513:M522) -> 0 | M52: perc | S52: Össz állásidő | T52: =SUM(U513:U522) -> 0 | U52: perc | AA52: Backlog sor/db | AB52: =SUM(E194,M194,U194) -> 0 | AC52: =SUM(E196,M196,U196) -> 0 | AD52: db | AE52: Elvárt | AF52: =IF(AC50=0,0,AC49/AC50) -> 0 | AG52: db/fő
B54: Megjegyzés/egyéb fontos információ: | I54: Megoldva? | J54: Megjegyzés/egyéb fontos információ: | Q54: Megoldva? | R54: Megjegyzés/egyéb fontos információ: | Y54: Megoldva?
B55: Biztonság | J55: Biztonság | R55: Biztonság
B57: Minőség | J57: Minőség | R57: Minőség
B59: Termelés | D59: Besütő: 54db E-tower: 54db | J59: Termelés | L59: Besütő: 10db ( 1/2 műszak), E- tower:35db (1/2 műszak), | R59: Termelés | T59: BESÜTŐ: 40db, E-TOWER: 36db .
D60: BWS: 39db Lakkozó: 40db Fornax: 10db | L60: BWS:48db Alliance:40db Fornax:0db | T60: BWS:30db Alliance: motorsoron NEMA gyártás tengeri csomagolás és egy két darabos megrendelők 56db
B61: Dolgozók | D61: Szabi: 2fő Beteg: - | J61: Dolgozók | L61: Szabi:4fő Beteg:2fő | R61: Dolgozók | T61: 2fő segitség a motorsoron
D62: 112 Qtn: 1fő | T62: Szabi:3fő Beteg:3fő
B63: Támogatók | D63: megrendelő: 12 MGE: 0 | J63: Támogatók | L63: megrendelő : 6db HM: 14db | R63: Támogatók | T63: megrendelő:12db HM:17db
B65: 5S | J65: 5S | R65: 5S
B67: Karbantartás | D67: Lakkozó bal oldal hővédőlemez javítás MLsz:7052407 | I67: x | J67: Karbantartás | R67: Karbantartás | T67: besütő javitása mlsz:7052729
D71: Szt. backlog:
D72: Motor backlog: 1megren. 1db
B74: =Alapadatok!C5 -> Motor sor | J74: =B74 -> Motor sor | R74: =B74 -> Motor sor
D75: Gyártott: | E75: 46 | F75: db | L75: Gyártott: | M75: 60 | N75: db | T75: Gyártott: | U75: 30 | V75: db
D77: Elvárt darabszám: | E77: 52 | F77: db | H77: Elvárt db/op: | I77: 7.43 | L77: Elvárt darabszám: | M77: 54 | N77: db | P77: Elvárt db/op: | Q77: 6.75 | T77: Elvárt darabszám: | U77: 54 | V77: db | X77: Elvárt db/op: | Y77: 6.75
D78: Szükséges létszám: | E78: 7 | F78: fő | L78: Szükséges létszám: | M78: 8 | N78: fő | T78: Szükséges létszám: | U78: 8 | V78: fő
D79: Aktuális létszám: | E79: 7 | F79: fő | H79: Aktuális db/op: | I79: 6.571428571 | L79: Aktuális létszám: | M79: 0 | N79: fő | P79: Aktuális db/op: | Q79: 0 | T79: Aktuális létszám: | U79: 0 | V79: fő | X79: Aktuális db/op: | Y79: 0
D81: Operátor | E81: 6 | F81: fő | L81: Operátor | M81: 6 | N81: fő | T81: Operátor | U81: 9 | V81: fő
D82: Koordinátor | E82: 1 | F82: fő | L82: Koordinátor | M82: 1 | N82: fő | T82: Koordinátor | V82: fő
D83: Beállító | F83: fő | L83: Beállító | N83: fő | T83: Beállító | V83: fő
D84: QA, Service | F84: fő | L84: QA, Service | N84: fő | T84: QA, Service | V84: fő
D85: Anyagszállító | F85: fő | L85: Anyagszállító | N85: fő | T85: Anyagszállító | V85: fő
D86: Egyéb | F86: fő | L86: Egyéb | N86: fő | T86: Egyéb | V86: fő
D88: Backlog: | F88: sorok száma | L88: Backlog: | N88: sorok száma | T88: Backlog: | V88: sorok száma
D90: Backlog: | F90: összes darab | L90: Backlog: | N90: összes darab | T90: Backlog: | V90: összes darab
D92: Kód: | E92: Időtartam | F92: Állásidő megnevezése | L92: Kód: | M92: Időtartam | N92: Állásidő megnevezése | T92: Kód: | U92: Időtartam | V92: Állásidő megnevezése
F93: =VLOOKUP(D93,állásidő_kódok!$B:$D,3,0) ->  | L93: 5 | M93: 200 | N93: =VLOOKUP(L93,állásidő_kódok!$B:$D,3,0) -> E-I. - 5%-os emberi erőforrás hiány | T93: 5 | U93: 100 | V93: =VLOOKUP(T93,állásidő_kódok!$B:$D,3,0) -> E-I. - 5%-os emberi erőforrás hiány
F94: =VLOOKUP(D94,állásidő_kódok!$B:$D,3,0) ->  | N94: =VLOOKUP(L94,állásidő_kódok!$B:$D,3,0) ->  | V94: =VLOOKUP(T94,állásidő_kódok!$B:$D,3,0) -> 
F95: =VLOOKUP(D95,állásidő_kódok!$B:$D,3,0) ->  | N95: =VLOOKUP(L95,állásidő_kódok!$B:$D,3,0) ->  | V95: =VLOOKUP(T95,állásidő_kódok!$B:$D,3,0) -> 
F96: =VLOOKUP(D96,állásidő_kódok!$B:$D,3,0) ->  | N96: =VLOOKUP(L96,állásidő_kódok!$B:$D,3,0) ->  | V96: =VLOOKUP(T96,állásidő_kódok!$B:$D,3,0) -> 
F97: =VLOOKUP(D97,állásidő_kódok!$B:$D,3,0) ->  | N97: =VLOOKUP(L97,állásidő_kódok!$B:$D,3,0) ->  | V97: =VLOOKUP(T97,állásidő_kódok!$B:$D,3,0) -> 
F98: =VLOOKUP(D98,állásidő_kódok!$B:$D,3,0) ->  | N98: =VLOOKUP(L98,állásidő_kódok!$B:$D,3,0) ->  | V98: =VLOOKUP(T98,állásidő_kódok!$B:$D,3,0) -> 
F99: =VLOOKUP(D99,állásidő_kódok!$B:$D,3,0) ->  | N99: =VLOOKUP(L99,állásidő_kódok!$B:$D,3,0) ->  | V99: =VLOOKUP(T99,állásidő_kódok!$B:$D,3,0) -> 
F100: =VLOOKUP(D100,állásidő_kódok!$B:$D,3,0) ->  | N100: =VLOOKUP(L100,állásidő_kódok!$B:$D,3,0) ->  | V100: =VLOOKUP(T100,állásidő_kódok!$B:$D,3,0) -> 
F101: =VLOOKUP(D101,állásidő_kódok!$B:$D,3,0) ->  | N101: =VLOOKUP(L101,állásidő_kódok!$B:$D,3,0) ->  | V101: =VLOOKUP(T101,állásidő_kódok!$B:$D,3,0) -> 
D102: 205 | E102: 400 | F102: =VLOOKUP(D102,állásidő_kódok!$B:$D,3,0) -> AE - Csomagolóanyag hiány | L102: 1 | M102: 100 | N102: =VLOOKUP(L102,állásidő_kódok!$B:$D,3,0) -> E-I. - Emberi erőforrás hiány | T102: 5 | U102: 200 | V102: =VLOOKUP(T102,állásidő_kódok!$B:$D,3,0) -> E-I. - 5%-os emberi erőforrás hiány
E103: Állásidők nélküli teljesítés: | F103: =((SUM(E93:E102)/445))+E75/E77 -> 1.783491789 | M103: Állásidők nélküli teljesítés: | N103: =((SUM(M93:M102)/445))+M75/M77 -> 1.785268414 | U103: Állásidők nélküli teljesítés: | V103: =((SUM(U93:U102)/445))+U75/U77 -> 1.229712859
B104: =Alapadatok!C6 -> 2p Sztátor sor | J104: =B104 -> 2p Sztátor sor | R104: =B104 -> 2p Sztátor sor
D105: Gyártott: | E105: 42 | F105: db | L105: Gyártott: | M105: 48 | N105: db | T105: Gyártott: | U105: 27 | V105: db
D107: Elvárt darabszám: | E107: 50 | F107: db | H107: Elvárt db/op: | I107: 8.33 | L107: Elvárt darabszám: | M107: 52 | N107: db | P107: Elvárt db/op: | Q107: 8.67 | T107: Elvárt darabszám: | U107: 45 | V107: db | X107: Elvárt db/op: | Y107: 9
D108: Szükséges létszám: | E108: 6 | F108: fő | L108: Szükséges létszám: | M108: 6 | N108: fő | T108: Szükséges létszám: | U108: 5 | V108: fő
D109: Aktuális létszám: | E109: 6 | F109: fő | H109: Aktuális db/op: | I109: 7 | L109: Aktuális létszám: | M109: 0 | N109: fő | P109: Aktuális db/op: | Q109: 0 | T109: Aktuális létszám: | U109: 0 | V109: fő | X109: Aktuális db/op: | Y109: 0
D111: Operátor | E111: 4 | F111: fő | L111: Operátor | M111: 6 | N111: fő | T111: Operátor | U111: 4 | V111: fő
D112: Koordinátor | E112: 1 | F112: fő | L112: Koordinátor | M112: 0 | N112: fő | T112: Koordinátor | U112: 1 | V112: fő
D113: Beállító | E113: 1 | F113: fő | L113: Beállító | M113: 1 | N113: fő | T113: Beállító | U113: 1 | V113: fő
D114: QA, Service | F114: fő | L114: QA, Service | N114: fő | T114: QA, Service | V114: fő
D115: Anyagszállító | F115: fő | L115: Anyagszállító | N115: fő | T115: Anyagszállító | V115: fő
D116: Egyéb | F116: fő | L116: Egyéb | N116: fő | T116: Egyéb | V116: fő
D118: Backlog: | F118: sorok száma | L118: Backlog: | N118: sorok száma | T118: Backlog: | V118: sorok száma
D120: Backlog: | F120: összes darab | L120: Backlog: | N120: összes darab | T120: Backlog: | V120: összes darab
D122: Kód: | E122: Időtartam | F122: Állásidő megnevezése | L122: Kód: | M122: Időtartam | N122: Állásidő megnevezése | T122: Kód: | U122: Időtartam | V122: Állásidő megnevezése
D123: 1 | E123: 480 | F123: =VLOOKUP(D123,állásidő_kódok!$B:$D,3,0) -> E-I. - Emberi erőforrás hiány | N123: =VLOOKUP(L123,állásidő_kódok!$B:$D,3,0) ->  | T123: 1 | U123: 480 | V123: =VLOOKUP(T123,állásidő_kódok!$B:$D,3,0) -> E-I. - Emberi erőforrás hiány
F124: =VLOOKUP(D124,állásidő_kódok!$B:$D,3,0) ->  | N124: =VLOOKUP(L124,állásidő_kódok!$B:$D,3,0) ->  | V124: =VLOOKUP(T124,állásidő_kódok!$B:$D,3,0) -> 
F125: =VLOOKUP(D125,állásidő_kódok!$B:$D,3,0) ->  | N125: =VLOOKUP(L125,állásidő_kódok!$B:$D,3,0) ->  | V125: =VLOOKUP(T125,állásidő_kódok!$B:$D,3,0) -> 
F126: =VLOOKUP(D126,állásidő_kódok!$B:$D,3,0) ->  | N126: =VLOOKUP(L126,állásidő_kódok!$B:$D,3,0) ->  | V126: =VLOOKUP(T126,állásidő_kódok!$B:$D,3,0) -> 
F127: =VLOOKUP(D127,állásidő_kódok!$B:$D,3,0) ->  | N127: =VLOOKUP(L127,állásidő_kódok!$B:$D,3,0) ->  | V127: =VLOOKUP(T127,állásidő_kódok!$B:$D,3,0) -> 
F128: =VLOOKUP(D128,állásidő_kódok!$B:$D,3,0) ->  | N128: =VLOOKUP(L128,állásidő_kódok!$B:$D,3,0) ->  | V128: =VLOOKUP(T128,állásidő_kódok!$B:$D,3,0) -> 
F129: =VLOOKUP(D129,állásidő_kódok!$B:$D,3,0) ->  | N129: =VLOOKUP(L129,állásidő_kódok!$B:$D,3,0) ->  | V129: =VLOOKUP(T129,állásidő_kódok!$B:$D,3,0) -> 
F130: =VLOOKUP(D130,állásidő_kódok!$B:$D,3,0) ->  | N130: =VLOOKUP(L130,állásidő_kódok!$B:$D,3,0) ->  | V130: =VLOOKUP(T130,állásidő_kódok!$B:$D,3,0) -> 
F131: =VLOOKUP(D131,állásidő_kódok!$B:$D,3,0) ->  | N131: =VLOOKUP(L131,állásidő_kódok!$B:$D,3,0) ->  | V131: =VLOOKUP(T131,állásidő_kódok!$B:$D,3,0) -> 
F132: =VLOOKUP(D132,állásidő_kódok!$B:$D,3,0) ->  | N132: =VLOOKUP(L132,állásidő_kódok!$B:$D,3,0) ->  | V132: =VLOOKUP(T132,állásidő_kódok!$B:$D,3,0) -> 
E133: Állásidők nélküli teljesítés: | F133: =((SUM(E123:E132)/445))+E105/E107 -> 1.918651685 | M133: Állásidők nélküli teljesítés: | N133: =((SUM(M123:M132)/445))+M105/M107 -> 0.9230769231 | U133: Állásidők nélküli teljesítés: | V133: =((SUM(U123:U132)/445))+U105/U107 -> 1.678651685
B134: =Alapadatok!C7 -> 4p sztátor sor | J134: =B134 -> 4p sztátor sor | R134: =B134 -> 4p sztátor sor
D135: Gyártott: | F135: db | L135: Gyártott: | M135: 20 | N135: db | T135: Gyártott: | V135: db
D137: Elvárt darabszám: | E137: 0 | F137: db | H137: Elvárt db/op: | I137: 0 | L137: Elvárt darabszám: | M137: 20 | N137: db | P137: Elvárt db/op: | Q137: 5 | T137: Elvárt darabszám: | U137: 0 | V137: db | X137: Elvárt db/op: | Y137: 0
D138: Szükséges létszám: | E138: 0 | F138: fő | L138: Szükséges létszám: | M138: 4 | N138: fő | T138: Szükséges létszám: | U138: 0 | V138: fő
D139: Aktuális létszám: | E139: 0 | F139: fő | H139: Aktuális db/op: | I139: 0 | L139: Aktuális létszám: | M139: 0 | N139: fő | P139: Aktuális db/op: | Q139: 0 | T139: Aktuális létszám: | U139: 0 | V139: fő | X139: Aktuális db/op: | Y139: 0
D141: Operátor | F141: fő | L141: Operátor | M141: 3 | N141: fő | T141: Operátor | V141: fő
D142: Koordinátor | F142: fő | L142: Koordinátor | N142: fő | T142: Koordinátor | V142: fő
D143: Beállító | F143: fő | L143: Beállító | N143: fő | T143: Beállító | V143: fő
D144: QA, Service | F144: fő | L144: QA, Service | N144: fő | T144: QA, Service | V144: fő
D145: Anyagszállító | F145: fő | L145: Anyagszállító | N145: fő | T145: Anyagszállító | V145: fő
D146: Egyéb | F146: fő | L146: Egyéb | N146: fő | T146: Egyéb | V146: fő
D148: Backlog: | F148: sorok száma | L148: Backlog: | N148: sorok száma | T148: Backlog: | V148: sorok száma
D150: Backlog: | F150: összes darab | L150: Backlog: | N150: összes darab | T150: Backlog: | V150: összes darab
D152: Kód: | E152: Időtartam | F152: Állásidő megnevezése | L152: Kód: | M152: Időtartam | N152: Állásidő megnevezése | T152: Kód: | U152: Időtartam | V152: Állásidő megnevezése
F153: =VLOOKUP(D153,állásidő_kódok!$B:$D,3,0) ->  | N153: =VLOOKUP(L153,állásidő_kódok!$B:$D,3,0) ->  | V153: =VLOOKUP(T153,állásidő_kódok!$B:$D,3,0) -> 
F154: =VLOOKUP(D154,állásidő_kódok!$B:$D,3,0) ->  | N154: =VLOOKUP(L154,állásidő_kódok!$B:$D,3,0) ->  | V154: =VLOOKUP(T154,állásidő_kódok!$B:$D,3,0) -> 
F155: =VLOOKUP(D155,állásidő_kódok!$B:$D,3,0) ->  | N155: =VLOOKUP(L155,állásidő_kódok!$B:$D,3,0) ->  | V155: =VLOOKUP(T155,állásidő_kódok!$B:$D,3,0) -> 
F156: =VLOOKUP(D156,állásidő_kódok!$B:$D,3,0) ->  | N156: =VLOOKUP(L156,állásidő_kódok!$B:$D,3,0) ->  | V156: =VLOOKUP(T156,állásidő_kódok!$B:$D,3,0) -> 
F157: =VLOOKUP(D157,állásidő_kódok!$B:$D,3,0) ->  | N157: =VLOOKUP(L157,állásidő_kódok!$B:$D,3,0) ->  | V157: =VLOOKUP(T157,állásidő_kódok!$B:$D,3,0) -> 
F158: =VLOOKUP(D158,állásidő_kódok!$B:$D,3,0) ->  | N158: =VLOOKUP(L158,állásidő_kódok!$B:$D,3,0) ->  | V158: =VLOOKUP(T158,állásidő_kódok!$B:$D,3,0) -> 
F159: =VLOOKUP(D159,állásidő_kódok!$B:$D,3,0) ->  | N159: =VLOOKUP(L159,állásidő_kódok!$B:$D,3,0) ->  | V159: =VLOOKUP(T159,állásidő_kódok!$B:$D,3,0) -> 
F160: =VLOOKUP(D160,állásidő_kódok!$B:$D,3,0) ->  | N160: =VLOOKUP(L160,állásidő_kódok!$B:$D,3,0) ->  | V160: =VLOOKUP(T160,állásidő_kódok!$B:$D,3,0) -> 
F161: =VLOOKUP(D161,állásidő_kódok!$B:$D,3,0) ->  | N161: =VLOOKUP(L161,állásidő_kódok!$B:$D,3,0) ->  | V161: =VLOOKUP(T161,állásidő_kódok!$B:$D,3,0) -> 
F162: =VLOOKUP(D162,állásidő_kódok!$B:$D,3,0) ->  | N162: =VLOOKUP(L162,állásidő_kódok!$B:$D,3,0) ->  | V162: =VLOOKUP(T162,állásidő_kódok!$B:$D,3,0) -> 
E163: Állásidők nélküli teljesítés: | F163: =((SUM(E153:E162)/445))+E135/E137 ->  | M163: Állásidők nélküli teljesítés: | N163: =((SUM(M153:M162)/445))+M135/M137 -> 1 | U163: Állásidők nélküli teljesítés: | V163: =((SUM(U153:U162)/445))+U135/U137 -> 
B164: =Alapadatok!C8 -> DE cella | J164: =B164 -> DE cella | R164: =B164 -> DE cella
D165: Gyártott: | E165: 54 | F165: db | L165: Gyártott: | M165: 56 | N165: db | T165: Gyártott: | U165: 52 | V165: db
D167: Elvárt darabszám: | E167: 52 | F167: db | H167: Elvárt db/op: | I167: 26 | L167: Elvárt darabszám: | M167: 52 | N167: db | P167: Elvárt db/op: | Q167: 26 | T167: Elvárt darabszám: | U167: 52 | V167: db | X167: Elvárt db/op: | Y167: 26
D168: Szükséges létszám: | E168: 2 | F168: fő | L168: Szükséges létszám: | M168: 2 | N168: fő | T168: Szükséges létszám: | U168: 2 | V168: fő
D169: Aktuális létszám: | E169: 2 | F169: fő | H169: Aktuális db/op: | I169: 27 | L169: Aktuális létszám: | M169: 0 | N169: fő | P169: Aktuális db/op: | Q169: 0 | T169: Aktuális létszám: | U169: 0 | V169: fő | X169: Aktuális db/op: | Y169: 0
D171: Operátor | E171: 2 | F171: fő | L171: Operátor | N171: fő | T171: Operátor | U171: 1 | V171: fő
D172: Koordinátor | F172: fő | L172: Koordinátor | N172: fő | T172: Koordinátor | V172: fő
D173: Beállító | F173: fő | L173: Beállító | M173: 1 | N173: fő | T173: Beállító | V173: fő
D174: QA, Service | F174: fő | L174: QA, Service | N174: fő | T174: QA, Service | V174: fő
D175: Anyagszállító | F175: fő | L175: Anyagszállító | N175: fő | T175: Anyagszállító | V175: fő
D176: Egyéb | F176: fő | L176: Egyéb | N176: fő | T176: Egyéb | V176: fő
D178: Backlog: | F178: sorok száma | L178: Backlog: | N178: sorok száma | T178: Backlog: | V178: sorok száma
D180: Backlog: | F180: összes darab | L180: Backlog: | N180: összes darab | T180: Backlog: | V180: összes darab
D182: Kód: | E182: Időtartam | F182: Állásidő megnevezése | L182: Kód: | M182: Időtartam | N182: Állásidő megnevezése | T182: Kód: | U182: Időtartam | V182: Állásidő megnevezése
F183: =VLOOKUP(D183,állásidő_kódok!$B:$D,3,0) ->  | N183: =VLOOKUP(L183,állásidő_kódok!$B:$D,3,0) ->  | V183: =VLOOKUP(T183,állásidő_kódok!$B:$D,3,0) -> 
F184: =VLOOKUP(D184,állásidő_kódok!$B:$D,3,0) ->  | N184: =VLOOKUP(L184,állásidő_kódok!$B:$D,3,0) ->  | V184: =VLOOKUP(T184,állásidő_kódok!$B:$D,3,0) -> 
F185: =VLOOKUP(D185,állásidő_kódok!$B:$D,3,0) ->  | N185: =VLOOKUP(L185,állásidő_kódok!$B:$D,3,0) ->  | V185: =VLOOKUP(T185,állásidő_kódok!$B:$D,3,0) -> 
F186: =VLOOKUP(D186,állásidő_kódok!$B:$D,3,0) ->  | N186: =VLOOKUP(L186,állásidő_kódok!$B:$D,3,0) ->  | V186: =VLOOKUP(T186,állásidő_kódok!$B:$D,3,0) -> 
F187: =VLOOKUP(D187,állásidő_kódok!$B:$D,3,0) ->  | N187: =VLOOKUP(L187,állásidő_kódok!$B:$D,3,0) ->  | V187: =VLOOKUP(T187,állásidő_kódok!$B:$D,3,0) -> 
F188: =VLOOKUP(D188,állásidő_kódok!$B:$D,3,0) ->  | N188: =VLOOKUP(L188,állásidő_kódok!$B:$D,3,0) ->  | V188: =VLOOKUP(T188,állásidő_kódok!$B:$D,3,0) -> 
F189: =VLOOKUP(D189,állásidő_kódok!$B:$D,3,0) ->  | N189: =VLOOKUP(L189,állásidő_kódok!$B:$D,3,0) ->  | V189: =VLOOKUP(T189,állásidő_kódok!$B:$D,3,0) -> 
F190: =VLOOKUP(D190,állásidő_kódok!$B:$D,3,0) ->  | N190: =VLOOKUP(L190,állásidő_kódok!$B:$D,3,0) ->  | V190: =VLOOKUP(T190,állásidő_kódok!$B:$D,3,0) -> 
F191: =VLOOKUP(D191,állásidő_kódok!$B:$D,3,0) ->  | N191: =VLOOKUP(L191,állásidő_kódok!$B:$D,3,0) ->  | V191: =VLOOKUP(T191,állásidő_kódok!$B:$D,3,0) -> 
F192: =VLOOKUP(D192,állásidő_kódok!$B:$D,3,0) ->  | N192: =VLOOKUP(L192,állásidő_kódok!$B:$D,3,0) ->  | V192: =VLOOKUP(T192,állásidő_kódok!$B:$D,3,0) -> 
E193: Állásidők nélküli teljesítés: | F193: =((SUM(E183:E192)/445))+E165/E167 -> 1.038461538 | M193: Állásidők nélküli teljesítés: | N193: =((SUM(M183:M192)/445))+M165/M167 -> 1.076923077 | U193: Állásidők nélküli teljesítés: | V193: =((SUM(U183:U192)/445))+U165/U167 -> 1
B194: =Alapadatok!C9 -> NDE cella | J194: =B194 -> NDE cella | R194: =B194 -> NDE cella
D195: Gyártott: | E195: 0 | F195: db | L195: Gyártott: | M195: 96 | N195: db | T195: Gyártott: | U195: 95 | V195: db
D197: Elvárt darabszám: | E197: 95 | F197: db | H197: Elvárt db/op: | I197: 95 | L197: Elvárt darabszám: | M197: 95 | N197: db | P197: Elvárt db/op: | Q197: 95 | T197: Elvárt darabszám: | U197: 95 | V197: db | X197: Elvárt db/op: | Y197: 95
D198: Szükséges létszám: | E198: 1 | F198: fő | L198: Szükséges létszám: | M198: 1 | N198: fő | T198: Szükséges létszám: | U198: 1 | V198: fő
D199: Aktuális létszám: | E199: 0 | F199: fő | H199: Aktuális db/op: | I199: 0 | L199: Aktuális létszám: | M199: 0 | N199: fő | P199: Aktuális db/op: | Q199: 0 | T199: Aktuális létszám: | U199: 0 | V199: fő | X199: Aktuális db/op: | Y199: 0
D201: Operátor | F201: fő | L201: Operátor | M201: 1 | N201: fő | T201: Operátor | U201: 1 | V201: fő
D202: Koordinátor | F202: fő | L202: Koordinátor | N202: fő | T202: Koordinátor | V202: fő
D203: Beállító | F203: fő | L203: Beállító | N203: fő | T203: Beállító | V203: fő
D204: QA, Service | F204: fő | L204: QA, Service | N204: fő | T204: QA, Service | V204: fő
D205: Anyagszállító | F205: fő | L205: Anyagszállító | N205: fő | T205: Anyagszállító | V205: fő
D206: Egyéb | F206: fő | L206: Egyéb | N206: fő | T206: Egyéb | V206: fő
D208: Backlog: | F208: sorok száma | L208: Backlog: | N208: sorok száma | T208: Backlog: | V208: sorok száma
D210: Backlog: | F210: összes darab | L210: Backlog: | N210: összes darab | T210: Backlog: | V210: összes darab
D212: Kód: | E212: Időtartam | F212: Állásidő megnevezése | L212: Kód: | M212: Időtartam | N212: Állásidő megnevezése | T212: Kód: | U212: Időtartam | V212: Állásidő megnevezése
F213: =VLOOKUP(D213,állásidő_kódok!$B:$D,3,0) ->  | N213: =VLOOKUP(L213,állásidő_kódok!$B:$D,3,0) ->  | V213: =VLOOKUP(T213,állásidő_kódok!$B:$D,3,0) -> 
F214: =VLOOKUP(D214,állásidő_kódok!$B:$D,3,0) ->  | N214: =VLOOKUP(L214,állásidő_kódok!$B:$D,3,0) ->  | V214: =VLOOKUP(T214,állásidő_kódok!$B:$D,3,0) -> 
F215: =VLOOKUP(D215,állásidő_kódok!$B:$D,3,0) ->  | N215: =VLOOKUP(L215,állásidő_kódok!$B:$D,3,0) ->  | V215: =VLOOKUP(T215,állásidő_kódok!$B:$D,3,0) -> 
F216: =VLOOKUP(D216,állásidő_kódok!$B:$D,3,0) ->  | N216: =VLOOKUP(L216,állásidő_kódok!$B:$D,3,0) ->  | V216: =VLOOKUP(T216,állásidő_kódok!$B:$D,3,0) -> 
F217: =VLOOKUP(D217,állásidő_kódok!$B:$D,3,0) ->  | N217: =VLOOKUP(L217,állásidő_kódok!$B:$D,3,0) ->  | V217: =VLOOKUP(T217,állásidő_kódok!$B:$D,3,0) -> 
F218: =VLOOKUP(D218,állásidő_kódok!$B:$D,3,0) ->  | N218: =VLOOKUP(L218,állásidő_kódok!$B:$D,3,0) ->  | V218: =VLOOKUP(T218,állásidő_kódok!$B:$D,3,0) -> 
F219: =VLOOKUP(D219,állásidő_kódok!$B:$D,3,0) ->  | N219: =VLOOKUP(L219,állásidő_kódok!$B:$D,3,0) ->  | V219: =VLOOKUP(T219,állásidő_kódok!$B:$D,3,0) -> 
F220: =VLOOKUP(D220,állásidő_kódok!$B:$D,3,0) ->  | N220: =VLOOKUP(L220,állásidő_kódok!$B:$D,3,0) ->  | V220: =VLOOKUP(T220,állásidő_kódok!$B:$D,3,0) -> 
F221: =VLOOKUP(D221,állásidő_kódok!$B:$D,3,0) ->  | N221: =VLOOKUP(L221,állásidő_kódok!$B:$D,3,0) ->  | V221: =VLOOKUP(T221,állásidő_kódok!$B:$D,3,0) -> 
F222: =VLOOKUP(D222,állásidő_kódok!$B:$D,3,0) ->  | N222: =VLOOKUP(L222,állásidő_kódok!$B:$D,3,0) ->  | V222: =VLOOKUP(T222,állásidő_kódok!$B:$D,3,0) -> 
E223: Állásidők nélküli teljesítés: | F223: =((SUM(E213:E222)/445))+E195/E197 -> 0 | M223: Állásidők nélküli teljesítés: | N223: =((SUM(M213:M222)/445))+M195/M197 -> 1.010526316 | U223: Állásidők nélküli teljesítés: | V223: =((SUM(U213:U222)/445))+U195/U197 -> 1
B224: =Alapadatok!C10 -> T+R | J224: =B224 -> T+R | R224: =B224 -> T+R
D225: Gyártott: | E225: 54 | F225: db | L225: Gyártott: | M225: 54 | N225: db | T225: Gyártott: | U225: 54 | V225: db
D227: Elvárt darabszám: | E227: 54 | F227: db | H227: Elvárt db/op: | I227: 18 | L227: Elvárt darabszám: | M227: 54 | N227: db | P227: Elvárt db/op: | Q227: 18 | T227: Elvárt darabszám: | U227: 54 | V227: db | X227: Elvárt db/op: | Y227: 18
D228: Szükséges létszám: | E228: 3 | F228: fő | L228: Szükséges létszám: | M228: 3 | N228: fő | T228: Szükséges létszám: | U228: 3 | V228: fő
D229: Aktuális létszám: | E229: 3 | F229: fő | H229: Aktuális db/op: | I229: 18 | L229: Aktuális létszám: | M229: 0 | N229: fő | P229: Aktuális db/op: | Q229: 0 | T229: Aktuális létszám: | U229: 0 | V229: fő | X229: Aktuális db/op: | Y229: 0
D231: Operátor | E231: 3 | F231: fő | L231: Operátor | M231: 3 | N231: fő | T231: Operátor | U231: 2 | V231: fő
D232: Koordinátor | F232: fő | L232: Koordinátor | M232: 1 | N232: fő | T232: Koordinátor | V232: fő
D233: Beállító | F233: fő | L233: Beállító | N233: fő | T233: Beállító | V233: fő
D234: QA, Service | F234: fő | L234: QA, Service | N234: fő | T234: QA, Service | V234: fő
D235: Anyagszállító | F235: fő | L235: Anyagszállító | N235: fő | T235: Anyagszállító | V235: fő
D236: Egyéb | F236: fő | L236: Egyéb | N236: fő | T236: Egyéb | V236: fő
D238: Backlog: | F238: sorok száma | L238: Backlog: | N238: sorok száma | T238: Backlog: | V238: sorok száma
... 238 more rows
